{"text_format":"1","workbook":"xlsx","n_sheets":5,"sheets":["Tech Infeasible Form","Tech Infeasible Form Addtl Data","Validation","Data","Instructions"],"not_rendered":{"charts":0,"images":98,"macros":1,"external_links":0,"defined_names":168,"comments":0,"pivot_tables":0},"unopened":[],"bounds":{"document_bytes":16777216,"sheet_cells":100000,"rows_first":2000,"rows_last":500,"rows_between":2000,"halvings":0,"cell_chars":16384,"cell_head_chars":4096},"cells_cut":0,"cells_raw":0,"read":"whole","date_system":"1900"}

{"sheet":"Tech Infeasible Form","index":0,"n_rows":74,"n_cols":12,"rows_kept":74,"cut":false,"hidden":false,"merged":[[32,4,32,5],[37,1,37,3],[0,3,0,8],[19,6,19,7],[20,6,20,7],[26,4,26,5],[21,6,21,7],[21,4,21,5],[18,4,18,5],[23,4,23,5],[25,4,25,5],[19,4,19,5],[20,4,20,5],[72,0,72,8],[41,0,41,2],[42,0,42,2],[42,3,42,8],[43,0,43,8],[41,3,41,8],[44,0,46,8],[71,1,71,8],[67,1,67,3],[67,6,67,8],[69,6,69,8],[40,0,40,2],[39,0,39,2],[34,4,34,5],[33,4,33,5],[20,1,20,3],[29,1,29,3],[28,4,28,5],[31,4,31,5],[37,4,37,5],[35,4,35,5],[36,4,36,5],[24,4,24,5],[29,4,29,5],[27,4,27,5],[40,3,40,8],[39,3,39,8],[30,4,30,5],[19,1,19,3],[10,6,10,7],[11,6,11,7],[10,4,10,5],[11,4,11,5],[15,4,15,8],[12,6,12,7],[17,6,17,7],[16,4,16,5],[16,6,16,7],[1,0,1,8],[18,6,18,7],[4,6,4,8],[5,6,5,8],[6,6,6,8],[7,6,7,8],[8,6,8,8],[12,4,12,5],[17,1,17,3],[18,1,18,3],[2,0,2,3],[13,6,13,7],[7,1,7,3],[14,4,14,5],[13,4,13,5],[17,4,17,5]]}
["(03-20)",null,null,"Forward Completed Forms to District ADA Coordinators"]
["ADA Technically Infeasible Form\n(Used to document design decisions and to be completed before construction)"]
["*Facility Type",null,null,null,"Complete Section Below to ADD Location to Transition Plan"]
[null,null,null,null,"*Add Location to Transition Plan"]
[null,null,null,null,"Suggested Repair"]
[null,null,null,null,"Approx. Repair Costs"]
[null,null,null,null,"Actual Repair Costs"]
[null,null,null,null,"Actual Repair"]
[null,null,null,null,"Date Repaired"]
["Justification for Technically Infeasible",null,null,null,"General Information"]
["(check all that apply)",null,null,null,"*District:"]
[null,null,null,null,"*County:",null,null,null,null,null,null,"Keep this information below"]
[null,null,null,null,"*Township/Boro:",null,null,null,null,null,null,{"$f":"IF(G12=\"\",\"\",VLOOKUP(G12,Validation!E2:F69,2))","v":""}]
[null,null,null,null,"Project ECMS #"]
[]
[null,null,null,null,"Submitter Information"]
[null,null,null,null,"Submitted By:"]
[null,null,null,null,"Submitter Company:"]
[null,null,null,null,"Street Address"]
[null,null,null,null,"City State Zip"]
[null,null,null,null,"Telephone",null,null,null,null," "]
[null,null,null,null,"*Date Submitted:"]
["Project Information",null,null,null,"Location Identification"]
["Project Type",null,null,null,null,null,null,null,"    Northbound"]
[]
[null,null,null,null,"*SR North - Segment, Offset"]
[]
[]
[null,null,null,null,"*SR South - Segment, Offset"]
[]
["Pedestrian Traffic"]
["Pedestrian Trip Generators",null,null,null,"*SR East - Segment, Offset"]
["Safety Concerns"]
["R9-3A \"No Peds\" Signs"]
["Existing Crosswalk",null,null,null,"*SR West - Segment,Offset"]
["Existing Sidewalk"]
["Existing Push Buttons"]
["ADT",null,null,null,"Location #"]
[]
["Investigated design alternatives",null,null,"Why alternative was not selected"]
["1.) "]
["2.) "]
["3.) "]
["Alternative selected and description of what requirement is not met"]
[]
[]
[]
[]
[]
[]
[]
[]
[]
[]
[]
[]
[]
[]
[]
[]
[]
[]
[]
[]
[]
["ADA Review Committee Recommendation",null,null,null,"ADE of Design Approval Status"]
[]
[]
[null,"ADA Review Committee Chair - Date",null,null,null,null,"District ADE of Design - Date"]
[]
[]
["TIF #:",{"$f":"IF(G11=\"\",\"\",IF(Data!AX2=\"Yes\",\"TIF-TP-\"&G11&\"-\"&G12&\"-\"&G13&\"-(\"&E25&\")-(\"&E28&\")-(\"&E31&\")-(\"&E34&\")-\"&TEXT(E37,\"00\")&\"-\"&TEXT(G22,\"mmm d, yyyy\"),\"TIF-\"&G11&\"-\"&G12&\"-\"&G13&\"-(\"&E25&\")-(\"&E28&\")-(\"&E31&\")-(\"&E34&\")-\"&TEXT(E37,\"00\")&\"-\"&TEXT(G22,\"mmm d, yyyy\")))","v":""}]
["(TIF Number automatically assigned. All fields marked with * provide data for TIF #)"]
["Sheet 1 - Technically Infeasible Form"]

{"sheet":"Tech Infeasible Form Addtl Data","index":1,"n_rows":54,"n_cols":2,"rows_kept":54,"cut":false,"hidden":false,"merged":[[5,0,5,8],[6,0,14,8],[2,0,2,8],[51,1,51,8],[52,0,52,8],[16,0,16,8],[28,0,28,8],[17,0,26,8],[29,0,37,8],[39,0,39,8],[40,0,48,8]]}
[{"$f":"'Tech Infeasible Form'!A1","v":"(03-20)"}]
[]
["ADA Technically Infeasible Form"]
["(Additional Explanation Sheet)"]
[]
["Investigated Design Alternative #1"]
[]
[]
[]
[]
[]
[]
[]
[]
[]
[]
["Investigated Design Alternative #2"]
[]
[]
[]
[]
[]
[]
[]
[]
[]
[]
[]
["Investigated Design Alternative #3"]
[]
[]
[]
[]
[]
[]
[]
[]
[]
[]
["Summary"]
[]
[]
[]
[]
[]
[]
[]
[]
[]
[]
[]
["TIF #:",{"$f":"IF('Tech Infeasible Form'!B72:I72=\"\",\"\",'Tech Infeasible Form'!B72:I72)","v":""}]
["(TIF Number automatically assigned. All fields marked with * provide data for TIF #)"]
["Sheet 2 - Technically Infeasible Form"]

{"sheet":"Validation","index":2,"n_rows":2575,"n_cols":25,"rows_kept":2575,"cut":false,"hidden":true,"merged":[]}
["C:\\","(Month)","(Day)","Engineering District Code","County","County Code","Municipality Name","Municipality Code","Construction Phase","Ramp Crosses","Ramp Surface","yes or no","DWS Type","Road Desc","CrossWalks","Ramp Type","MUNICIPAL_NAME","FIPS_MUN_CODE","FIPS_COUNTY_CODE","Blank","Status","Ramp Location #","County",null,"photos"]
["(Year)","(Month)","(Day)","(Select)","(Select)","(Select)","(Select)","(Select)","(Select)","(Select)","(Select)","(Select)","(Select)","(Select)","(Select)","(Select)",null,null,null,"(Select)","Current","(Select)","(Select)",null,1]
["2006","01","01","01","Adams","001","Abbottstown Boro",116,"Constructed","State Route","Brick","No","Mat","SR","Single Ramp with Single Cross Walk","Type 1","Abbottstown Boro",116,1,null,"Archive","01","Crawford",1,2]
["2007","02","02","02","Allegheny","003","Arendtsville Boro",2928,"Ex - Surveyed","Local Road","Concrete","Yes","Paver",null,"Single Ramp with Double Cross Walk","Type 1A","Arendtsville Boro",2928,1,null,null,"02","Erie",1,3]
["2008","03","03","03","Armstrong","005","Benderville Boro",5536,"Missing","Both","Other",null,"Steel","Ave",null,"Type 2","Benderville Boro",5536,1,null,null,"03","Forest",1,4]
["2009","04","04","04","Beaver","007","Berwick Twp",5880,null,null,null,null,"Tile","Blvd",null,"Type 3","Berwick Twp",5880,1,null,null,"04","Mercer",1,5]
["2010","05","05","05","Bedford","009","Biglerville Boro",6296,null,null,null,null,"Other","Dr",null,"Type 4","Biglerville Boro",6296,1,null,null,"05","Venango",1,6]
["2011","06","06","06","Berks","011","Bonneauville Boro",7560," ",null,null,null,null,"Expwy",null,"Type 4A","Bonneauville Boro",7560,1,null,null,"06","Warren",1,7]
["2012","07","07","08","Blair","013","Butler Twp",10456,null,null,null,null,null,"Frwy",null,"Type 5","Butler Twp",10456,1,null,null,"07","Cameron",2,8]
["2013","08","08","09","Bradford","015","Carroll Valley Boro",11472,null,null,null,null,null,"Hwy",null,"Type 6","Carroll Valley Boro",11472,1,null,null,"08","Centre",2,9]
["2014","09","09","10","Bucks","017","Conewago Twp",15632,null,null,null,null,null,"Ln",null,"Median Type A","Conewago Twp",15632,1,null,null,"09","Clearfield",2,10]
["2015","10","10","11","Butler","019","Cumberland Twp",17640,null,null,null,null,null,"Pkwy",null,"Median Type B","Cumberland Twp",17640,1,null,null,"10","Clinton",2,11]
["2016","11","11","12","Cambria","021","East Berlin Boro",20792,null,null,null,null,null,"Rd",null,"Blended Transition","East Berlin Boro",20792,1,null,null,"11","Elk",2,12]
["2017","12","12",null,"Cameron","023","Fairfield Boro",24560,null,null,null,null,null,"St",null,null,"Fairfield Boro",24560,1,null,null,"12","Juniata",2,13]
["2018",null,"13",null,"Carbon","025","Franklin Twp",27320,null,null,null,null,null,null,null,null,"Franklin Twp",27320,1,null,null,"13","McKean",2,14]
["2019",null,"14",null,"Centre","027","Freedom Twp",27704,null,null,null,null,null,null,null,null,"Freedom Twp",27704,1,null,null,"14","Mifflin",2,15]
["2020",null,"15",null,"Chester","029","Germany Twp",28936,null,null,null,null,null,null,null,null,"Germany Twp",28936,1,null,null,"15","Potter",2,16]
["2021",null,"16",null,"Clarion","031","Gettysburg Boro",28960,null,null,null,null,null,null,null,null,"Gettysburg Boro",28960,1,null,null,"16","Bradford",3,17]
["2022",null,"17",null,"Clearfield","033","Hamilton Twp",32144,null,null,null,null,null,null,null,null,"Hamilton Twp",32144,1,null,null,"17","Columbia",3,18]
["2023",null,"18",null,"Clinton","035","Hamiltonban Twp",32200,null,null,null,null,null,null,null,null,"Hamiltonban Twp",32200,1,null,null,"18","Lycoming",3,19]
["2024",null,"19",null,"Columbia","037","Highland Twp",34424,null,null,null,null,null,null,null,null,"Highland Twp",34424,1,null,null,"19","Montour",3,20]
["2025",null,"20",null,"Crawford","039","Huntington Twp",36424,null,null,null,null,null,null,null,null,"Huntington Twp",36424,1,null,null,"20","Northumberland",3,21]
["2026",null,"21",null,"Cumberland","041","Latimore Twp",41672,null,null,null,null,null,null,null,null,"Latimore Twp",41672,1,null,null,"21","Snyder",3,22]
["2027",null,"22",null,"Dauphin","043","Liberty Twp",43056,null,null,null,null,null,null,null,null,"Liberty Twp",43056,1,null,null,"22","Sullivan",3,23]
["2028",null,"23",null,"Delaware","045","Littlestown Boro",43944,null,null,null,null,null,null,null,null,"Littlestown Boro",43944,1,null,null,"23","Tioga",3,24]
["2029",null,"24",null,"Elk","047","McSherrystown Boro",46376,null,null,null,null,null,null,null,null,"McSherrystown Boro",46376,1,null,null,"24","Union",3,25]
["2030",null,"25",null,"Erie","049","Menallen Twp",48608,null,null,null,null,null,null,null,null,"Menallen Twp",48608,1,null,null,"25","Lackawanna",4,26]
["2031",null,"26",null,"Fayette","051","Mount Joy Twp",51640,null,null,null,null,null,null,null,null,"Mount Joy Twp",51640,1,null,null,"26","Luzerne",4,27]
["2032",null,"27",null,"Forest","053","Mount Pleasant Twp",51776,null,null,null,null,null,null,null,null,"Mount Pleasant Twp",51776,1,null,null,"27","Pike",4,28]
["2033",null,"28",null,"Franklin","055","New Oxford Boro",53920,null,null,null,null,null,null,null,null,"New Oxford Boro",53920,1,null,null,"28","Susquehanna",4,29]
["2034",null,"29",null,"Fulton","057","Oxford Twp",57472,null,null,null,null,null,null,null,null,"Oxford Twp",57472,1,null,null,"29","Wayne",4,30]
["2035",null,"30",null,"Greene","059","Reading Twp",63616,null,null,null,null,null,null,null,null,"Reading Twp",63616,1,null,null,"30","Wyoming",4,31]
["2036",null,"31",null,"Huntingdon","061","Straban Twp",74680,null,null,null,null,null,null,null,null,"Straban Twp",74680,1,null,null,"31","Berks",5,32]
["2037",null,null,null,"Indiana","063","Tyrone Twp",78160,null,null,null,null,null,null,null,null,"Tyrone Twp",78160,1,null,null,"32","Carbon",5,33]
["2038",null,null,null,"Jefferson","065","Union Twp",78264,null,null,null,null,null,null,null,null,"Union Twp",78264,1,null,null,"33","Lehigh",5,34]
["2039",null,null,null,"Juniata","067","York Springs Boro",87136,null,null,null,null,null,null,null,null,"York Springs Boro",87136,1,null,null,"34","Monroe",5,35]
["2040",null,null,null,"Lackawanna","069","Aleppo Twp",724,null,null,null,null,null,null,null,null,"Aleppo Twp",724,3,null,null,"35","Northampton",5,36]
["2041",null,null,null,"Lancaster","071","Aspinwall Boro",3320,null,null,null,null,null,null,null,null,"Aspinwall Boro",3320,3,null,null,"36","Schuylkill",5,37]
["2042",null,null,null,"Lawrence","073","Avalon Boro",3608,null,null,null,null,null,null,null,null,"Avalon Boro",3608,3,null,null,"37","Bucks",6,38]
["2043",null,null,null,"Lebanon","075","Baldwin Boro",3928,null,null,null,null,null,null,null,null,"Baldwin Boro",3928,3,null,null,"38","Chester",6,39]
["2044",null,null,null,"Lehigh","077","Baldwin Twp",3932,null,null,null,null,null,null,null,null,"Baldwin Twp",3932,3,null,null,"39","Delaware",6,40]
["2045",null,null,null,"Luzerne","079","Bell Acres Boro",5216,null,null,null,null,null,null,null,null,"Bell Acres Boro",5216,3,null,null,"40","Montgomery",6,41]
["2046",null,null,null,"Lycoming","081","Bellevue Boro",5312,null,null,null,null,null,null,null,null,"Bellevue Boro",5312,3,null,null,"41","Philadelphia",6,42]
["2047",null,null,null,"McKean","083","Ben Avon Boro",5504,null,null,null,null,null,null,null,null,"Ben Avon Boro",5504,3,null,null,"42","Adams",8,43]
["2048",null,null,null,"Mercer","085","Ben Avon Heights Boro",5520,null,null,null,null,null,null,null,null,"Ben Avon Heights Boro",5520,3,null,null,"43","Cumberland",8,44]
["2049",null,null,null,"Mifflin","087","Bethel Park Boro",6064,null,null,null,null,null,null,null,null,"Bethel Park Boro",6064,3,null,null,"44","Dauphin",8,45]
["2050",null,null,null,"Monroe","089","Blawnox Boro",7000,null,null,null,null,null,null,null,null,"Blawnox Boro",7000,3,null,null,"45","Franklin",8,46]
["2051",null,null,null,"Montgomery","091","Brackenridge Boro",7976,null,null,null,null,null,null,null,null,"Brackenridge Boro",7976,3,null,null,"46","Lancaster",8,47]
["2052",null,null,null,"Montour","093","Braddock Boro",7992,null,null,null,null,null,null,null,null,"Braddock Boro",7992,3,null,null,"47","Lebanon",8,48]
["2053",null,null,null,"Northampton","095","Braddock Hills Boro",8008,null,null,null,null,null,null,null,null,"Braddock Hills Boro",8008,3,null,null,"48","Perry",8,49]
["2054",null,null,null,"Northumberland","097","Bradfordwoods Boro",8064,null,null,null,null,null,null,null,null,"Bradfordwoods Boro",8064,3,null,null,null,"York",8,50]
["2055",null,null,null,"Perry","099","Brentwood Boro",8416,null,null,null,null,null,null,null,null,"Brentwood Boro",8416,3,null,null,null,"Bedford",9,51]
["2056",null,null,null,"Philadelphia","101","Bridgeville Boro",8624,null,null,null,null,null,null,null,null,"Bridgeville Boro",8624,3,null,null,null,"Blair",9,52]
["2057",null,null,null,"Pike","103","Carnegie Boro",11336,null,null,null,null,null,null,null,null,"Carnegie Boro",11336,3,null,null,null,"Cambria",9,53]
["2058",null,null,null,"Potter","105","Castle Shannon Boro",11680,null,null,null,null,null,null,null,null,"Castle Shannon Boro",11680,3,null,null,null,"Fulton",9,54]
["2059",null,null,null,"Schuylkill","107","Chalfant Boro",12496,null,null,null,null,null,null,null,null,"Chalfant Boro",12496,3,null,null,null,"Huntingdon",9,55]
["2060",null,null,null,"Snyder","109","Cheswick Boro",13392,null,null,null,null,null,null,null,null,"Cheswick Boro",13392,3,null,null,null,"Somerset",9,56]
["2061",null,null,null,"Somerset","111","Churchill Boro",13608,null,null,null,null,null,null,null,null,"Churchill Boro",13608,3,null,null,null,"Armstrong",10,57]
["2062",null,null,null,"Sullivan","113","Clairton City",13704,null,null,null,null,null,null,null,null,"Clairton City",13704,3,null,null,null,"Butler",10,58]
["2063",null,null,null,"Susquehanna","115","Collier Twp",15216,null,null,null,null,null,null,null,null,"Collier Twp",15216,3,null,null,null,"Clarion",10,59]
["2064",null,null,null,"Tioga","117","Coraopolis Boro",16144,null,null,null,null,null,null,null,null,"Coraopolis Boro",16144,3,null,null,null,"Indiana",10,60]
["2065",null,null,null,"Union","119","Crafton Boro",16848,null,null,null,null,null,null,null,null,"Crafton Boro",16848,3,null,null,null,"Jefferson",10,61]
["2066",null,null,null,"Venango","121","Crescent Twp",17048,null,null,null,null,null,null,null,null,"Crescent Twp",17048,3,null,null,null,"Allegheny",11,62]
["2067",null,null,null,"Warren","123","Dormont Boro",19576,null,null,null,null,null,null,null,null,"Dormont Boro",19576,3,null,null,null,"Beaver",11,63]
["2068",null,null,null,"Washington","125","Dravosburg Boro",19856,null,null,null,null,null,null,null,null,"Dravosburg Boro",19856,3,null,null,null,"Lawrence",11,64]
["2069",null,null,null,"Wayne","127","Duquesne City",20432,null,null,null,null,null,null,null,null,"Duquesne City",20432,3,null,null,null,"Fayette",12,65]
["2070",null,null,null,"Westmoreland","129","East Deer Twp",21024,null,null,null,null,null,null,null,null,"East Deer Twp",21024,3,null,null,null,"Greene",12,66]
["2071",null,null,null,"Wyoming","131","East Mckeesport Boro",21444,null,null,null,null,null,null,null,null,"East Mckeesport Boro",21444,3,null,null,null,"Washington",12,67]
["2072",null,null,null,"York","133","East Pittsburgh Boro",21712,null,null,null,null,null,null,null,null,"East Pittsburgh Boro",21712,3,null,null,null,"Westmoreland",12,68]
["2073",null,null,null,null,null,"Edgewood Boro",22520,null,null,null,null,null,null,null,null,"Edgewood Boro",22520,3,null,null,null,null,null,69]
["2074",null,null,null,null,null,"Edgeworth Boro",22576,null,null,null,null,null,null,null,null,"Edgeworth Boro",22576,3,null,null,null,null,null,70]
["2075",null,null,null,null,null,"Elizabeth Boro",22992,null,null,null,null,null,null,null,null,"Elizabeth Boro",22992,3,null,null,null,null,null,71]
["2076",null,null,null,null,null,"Elizabeth Twp",23000,null,null,null,null,null,null,null,null,"Elizabeth Twp",23000,3,null,null,null,null,null,72]
["2077",null,null,null,null,null,"Emsworth Boro",23616,null,null,null,null,null,null,null,null,"Emsworth Boro",23616,3,null,null,null,null,null,73]
["2078",null,null,null,null,null,"Etna Boro",24160,null,null,null,null,null,null,null,null,"Etna Boro",24160,3,null,null,null,null,null,74]
["2079",null,null,null,null,null,"Fawn Twp",25400,null,null,null,null,null,null,null,null,"Fawn Twp",25400,3,null,null,null,null,null,75]
["2080",null,null,null,null,null,"Findlay Twp",25904,null,null,null,null,null,null,null,null,"Findlay Twp",25904,3,null,null,null,null,null,76]
["2081",null,null,null,null,null,"Forest Hills Boro",26592,null,null,null,null,null,null,null,null,"Forest Hills Boro",26592,3,null,null,null,null,null,77]
["2082",null,null,null,null,null,"Forward Twp",26896,null,null,null,null,null,null,null,null,"Forward Twp",26896,3,null,null,null,null,null,78]
["2083",null,null,null,null,null,"Fox Chapel Boro",27120,null,null,null,null,null,null,null,null,"Fox Chapel Boro",27120,3,null,null,null,null,null,79]
["2084",null,null,null,null,null,"Franklin Park Boro",27552,null,null,null,null,null,null,null,null,"Franklin Park Boro",27552,3,null,null,null,null,null,80]
["2085",null,null,null,null,null,"Frazer Twp",27608,null,null,null,null,null,null,null,null,"Frazer Twp",27608,3,null,null,null,null,null,81]
["2086",null,null,null,null,null,"Glassport Boro",29432,null,null,null,null,null,null,null,null,"Glassport Boro",29432,3,null,null,null,null,null,82]
["2087",null,null,null,null,null,"Glenfield Boro",29592,null,null,null,null,null,null,null,null,"Glenfield Boro",29592,3,null,null,null,null,null,83]
["2088",null,null,null,null,null,"Greentree Boro",31256,null,null,null,null,null,null,null,null,"Greentree Boro",31256,3,null,null,null,null,null,84]
["2089",null,null,null,null,null,"Hampton Twp",32328,null,null,null,null,null,null,null,null,"Hampton Twp",32328,3,null,null,null,null,null,85]
["2090",null,null,null,null,null,"Harmar Twp",32624,null,null,null,null,null,null,null,null,"Harmar Twp",32624,3,null,null,null,null,null,86]
["2091",null,null,null,null,null,"Harrison Twp",32832,null,null,null,null,null,null,null,null,"Harrison Twp",32832,3,null,null,null,null,null,87]
["2092",null,null,null,null,null,"Haysville Boro",33312,null,null,null,null,null,null,null,null,"Haysville Boro",33312,3,null,null,null,null,null,88]
["2093",null,null,null,null,null,"Heidelburg Boro",33592,null,null,null,null,null,null,null,null,"Heidelburg Boro",33592,3,null,null,null,null,null,89]
["2094",null,null,null,null,null,"Homestead Boro",35424,null,null,null,null,null,null,null,null,"Homestead Boro",35424,3,null,null,null,null,null,90]
["2095",null,null,null,null,null,"Indiana Twp",36808,null,null,null,null,null,null,null,null,"Indiana Twp",36808,3,null,null,null,null,null,91]
["2096",null,null,null,null,null,"Ingram Boro",37000,null,null,null,null,null,null,null,null,"Ingram Boro",37000,3,null,null,null,null,null,92]
["2097",null,null,null,null,null,"Jefferson Hills Boro",37955,null,null,null,null,null,null,null,null,"Jefferson Hills Boro",37955,3,null,null,null,null,null,93]
["2098",null,null,null,null,null,"Kennedy Twp",39312,null,null,null,null,null,null,null,null,"Kennedy Twp",39312,3,null,null,null,null,null,94]
["2099",null,null,null,null,null,"Kilbuck Twp",39624,null,null,null,null,null,null,null,null,"Kilbuck Twp",39624,3,null,null,null,null,null,95]
["2100",null,null,null,null,null,"Leet Twp",42368,null,null,null,null,null,null,null,null,"Leet Twp",42368,3,null,null,null,null,null,96]
[null,null,null,null,null,null,"Leetsdale Boro",42392,null,null,null,null,null,null,null,null,"Leetsdale Boro",42392,3,null,null,null,null,null,97]
[null,null,null,null,null,null,"Liberty Boro",43064,null,null,null,null,null,null,null,null,"Liberty Boro",43064,3,null,null,null,null,null,98]
[null,null,null,null,null,null,"Lincoln Boro",43408,null,null,null,null,null,null,null,null,"Lincoln Boro",43408,3,null,null,null,null,null,99]
[null,null,null,null,null,null,"McCandless Twp",45900,null,null,null,null,null,null,null,null,"McCandless Twp",45900,3,null,null,null,null,null,100]
[null,null,null,null,null,null,"McDonald Boro",46072,null,null,null,null,null,null,null,null,"McDonald Boro",46072,3]
[null,null,null,null,null,null,"McKeesport City",46256,null,null,null,null,null,null,null,null,"McKeesport City",46256,3]
[null,null,null,null,null,null,"McKees Rocks Boro",46264,null,null,null,null,null,null,null,null,"McKees Rocks Boro",46264,3]
[null,null,null,null,null,null,"Marshall Twp",47696,null,null,null,null,null,null,null,null,"Marshall Twp",47696,3]
[null,null,null,null,null,null,"Millvale Boro",49920,null,null,null,null,null,null,null,null,"Millvale Boro",49920,3]
[null,null,null,null,null,null,"Moon Twp",50784,null,null,null,null,null,null,null,null,"Moon Twp",50784,3]
[null,null,null,null,null,null,"Mt Lebanon Twp",51696,null,null,null,null,null,null,null,null,"Mt Lebanon Twp",51696,3]
[null,null,null,null,null,null,"Mt Oliver Boro",51744,null,null,null,null,null,null,null,null,"Mt Oliver Boro",51744,3]
[null,null,null,null,null,null,"Munhall Boro",52320,null,null,null,null,null,null,null,null,"Munhall Boro",52320,3]
[null,null,null,null,null,null,"Monroeville Boro",52330,null,null,null,null,null,null,null,null,"Monroeville Boro",52330,3]
[null,null,null,null,null,null,"Neville Twp",53136,null,null,null,null,null,null,null,null,"Neville Twp",53136,3]
[null,null,null,null,null,null,"North Braddock Boro",54816,null,null,null,null,null,null,null,null,"North Braddock Boro",54816,3]
[null,null,null,null,null,null,"North Fayette Twp",55016,null,null,null,null,null,null,null,null,"North Fayette Twp",55016,3]
[null,null,null,null,null,null,"North Versailles Twp",55488,null,null,null,null,null,null,null,null,"North Versailles Twp",55488,3]
[null,null,null,null,null,null,"Oakdale Boro",55840,null,null,null,null,null,null,null,null,"Oakdale Boro",55840,3]
[null,null,null,null,null,null,"Oakmont Boro",56088,null,null,null,null,null,null,null,null,"Oakmont Boro",56088,3]
[null,null,null,null,null,null,"Ohara Twp",56384,null,null,null,null,null,null,null,null,"Ohara Twp",56384,3]
[null,null,null,null,null,null,"Ohio Twp",56392,null,null,null,null,null,null,null,null,"Ohio Twp",56392,3]
[null,null,null,null,null,null,"Osborne Boro",57200,null,null,null,null,null,null,null,null,"Osborne Boro",57200,3]
[null,null,null,null,null,null,"Penn Hills Twp",59032,null,null,null,null,null,null,null,null,"Penn Hills Twp",59032,3]
[null,null,null,null,null,null,"Pennsbury Village Boro",59152,null,null,null,null,null,null,null,null,"Pennsbury Village Boro",59152,3]
[null,null,null,null,null,null,"Pine Twp",60272,null,null,null,null,null,null,null,null,"Pine Twp",60272,3]
[null,null,null,null,null,null,"Pitcairn Boro",60712,null,null,null,null,null,null,null,null,"Pitcairn Boro",60712,3]
[null,null,null,null,null,null,"Pittsburgh City",61000,null,null,null,null,null,null,null,null,"Pittsburgh City",61000,3]
[null,null,null,null,null,null,"Pleasant Hills Boro",61328,null,null,null,null,null,null,null,null,"Pleasant Hills Boro",61328,3]
[null,null,null,null,null,null,"Plum Boro",61536,null,null,null,null,null,null,null,null,"Plum Boro",61536,3]
[null,null,null,null,null,null,"Port Vue Boro",62320,null,null,null,null,null,null,null,null,"Port Vue Boro",62320,3]
[null,null,null,null,null,null,"Rankin Boro",63408,null,null,null,null,null,null,null,null,"Rankin Boro",63408,3]
[null,null,null,null,null,null,"Reserve Twp",64240,null,null,null,null,null,null,null,null,"Reserve Twp",64240,3]
[null,null,null,null,null,null,"Richland Twp",64528,null,null,null,null,null,null,null,null,"Richland Twp",64528,3]
[null,null,null,null,null,null,"Robinson Twp",65352,null,null,null,null,null,null,null,null,"Robinson Twp",65352,3]
[null,null,null,null,null,null,"Ross Twp",66264,null,null,null,null,null,null,null,null,"Ross Twp",66264,3]
[null,null,null,null,null,null,"Rosslyn Farms Boro",66320,null,null,null,null,null,null,null,null,"Rosslyn Farms Boro",66320,3]
[null,null,null,null,null,null,"Scott Twp",68388,null,null,null,null,null,null,null,null,"Scott Twp",68388,3]
[null,null,null,null,null,null,"Sewickley Boro",69376,null,null,null,null,null,null,null,null,"Sewickley Boro",69376,3]
[null,null,null,null,null,null,"Sewickley Heights Boro",69400,null,null,null,null,null,null,null,null,"Sewickley Heights Boro",69400,3]
[null,null,null,null,null,null,"Sewickley Hills Boro",69416,null,null,null,null,null,null,null,null,"Sewickley Hills Boro",69416,3]
[null,null,null,null,null,null,"Shaler Twp",69584,null,null,null,null,null,null,null,null,"Shaler Twp",69584,3]
[null,null,null,null,null,null,"Sharpsburg Boro",69776,null,null,null,null,null,null,null,null,"Sharpsburg Boro",69776,3]
[null,null,null,null,null,null,"South Fayette Twp",72160,null,null,null,null,null,null,null,null,"South Fayette Twp",72160,3]
[null,null,null,null,null,null,"South Park Twp",72400,null,null,null,null,null,null,null,null,"South Park Twp",72400,3]
[null,null,null,null,null,null,"South Versailles Twp",72568,null,null,null,null,null,null,null,null,"South Versailles Twp",72568,3]
[null,null,null,null,null,null,"Springdale Boro",72960,null,null,null,null,null,null,null,null,"Springdale Boro",72960,3]
[null,null,null,null,null,null,"Springdale Twp",72968,null,null,null,null,null,null,null,null,"Springdale Twp",72968,3]
[null,null,null,null,null,null,"Stowe Twp",74648,null,null,null,null,null,null,null,null,"Stowe Twp",74648,3]
[null,null,null,null,null,null,"Swissvale Boro",75816,null,null,null,null,null,null,null,null,"Swissvale Boro",75816,3]
[null,null,null,null,null,null,"Tarentum Boro",76104,null,null,null,null,null,null,null,null,"Tarentum Boro",76104,3]
[null,null,null,null,null,null,"Thornburg Boro",76560,null,null,null,null,null,null,null,null,"Thornburg Boro",76560,3]
[null,null,null,null,null,null,"Trafford Boro",77272,null,null,null,null,null,null,null,null,"Trafford Boro",77272,3]
[null,null,null,null,null,null,"Turtle Creek Boro",77912,null,null,null,null,null,null,null,null,"Turtle Creek Boro",77912,3]
[null,null,null,null,null,null,"Upper St Clair Twp",79274,null,null,null,null,null,null,null,null,"Upper St Clair Twp",79274,3]
[null,null,null,null,null,null,"Verona Boro",80032,null,null,null,null,null,null,null,null,"Verona Boro",80032,3]
[null,null,null,null,null,null,"Versailles Boro",80040,null,null,null,null,null,null,null,null,"Versailles Boro",80040,3]
[null,null,null,null,null,null,"Wall Boro",80600,null,null,null,null,null,null,null,null,"Wall Boro",80600,3]
[null,null,null,null,null,null,"West Deer Twp",82800,null,null,null,null,null,null,null,null,"West Deer Twp",82800,3]
[null,null,null,null,null,null,"West Elizabeth Boro",82848,null,null,null,null,null,null,null,null,"West Elizabeth Boro",82848,3]
[null,null,null,null,null,null,"West Homestead Boro",83200,null,null,null,null,null,null,null,null,"West Homestead Boro",83200,3]
[null,null,null,null,null,null,"West Mifflin Boro",83512,null,null,null,null,null,null,null,null,"West Mifflin Boro",83512,3]
[null,null,null,null,null,null,"West View Boro",84144,null,null,null,null,null,null,null,null,"West View Boro",84144,3]
[null,null,null,null,null,null,"Whitaker Boro",84440,null,null,null,null,null,null,null,null,"Whitaker Boro",84440,3]
[null,null,null,null,null,null,"Whitehall Boro",84512,null,null,null,null,null,null,null,null,"Whitehall Boro",84512,3]
[null,null,null,null,null,null,"White Oak Boro",84704,null,null,null,null,null,null,null,null,"White Oak Boro",84704,3]
[null,null,null,null,null,null,"Wilkins Twp",85184,null,null,null,null,null,null,null,null,"Wilkins Twp",85184,3]
[null,null,null,null,null,null,"Wilkinsburg Boro",85188,null,null,null,null,null,null,null,null,"Wilkinsburg Boro",85188,3]
[null,null,null,null,null,null,"Wilmerding Boro",85496,null,null,null,null,null,null,null,null,"Wilmerding Boro",85496,3]
[null,null,null,null,null,null,"Apollo Boro",2720,null,null,null,null,null,null,null,null,"Apollo Boro",2720,5]
[null,null,null,null,null,null,"Applewold Boro",2752,null,null,null,null,null,null,null,null,"Applewold Boro",2752,5]
[null,null,null,null,null,null,"Atwood Boro",3480,null,null,null,null,null,null,null,null,"Atwood Boro",3480,5]
[null,null,null,null,null,null,"Bethel Twp",5992,null,null,null,null,null,null,null,null,"Bethel Twp",5992,5]
[null,null,null,null,null,null,"Boggs Twp",7416,null,null,null,null,null,null,null,null,"Boggs Twp",7416,5]
[null,null,null,null,null,null,"Bradys Bend Twp",8152,null,null,null,null,null,null,null,null,"Bradys Bend Twp",8152,5]
[null,null,null,null,null,null,"Burrell Twp",10344,null,null,null,null,null,null,null,null,"Burrell Twp",10344,5]
[null,null,null,null,null,null,"Cadogan Twp",10680,null,null,null,null,null,null,null,null,"Cadogan Twp",10680,5]
[null,null,null,null,null,null,"Cowanshannock Twp",16728,null,null,null,null,null,null,null,null,"Cowanshannock Twp",16728,5]
[null,null,null,null,null,null,"Dayton Boro",18400,null,null,null,null,null,null,null,null,"Dayton Boro",18400,5]
[null,null,null,null,null,null,"East Franklin Twp",21160,null,null,null,null,null,null,null,null,"East Franklin Twp",21160,5]
[null,null,null,null,null,null,"Elderton Boro",22832,null,null,null,null,null,null,null,null,"Elderton Boro",22832,5]
[null,null,null,null,null,null,"Ford City Boro",26512,null,null,null,null,null,null,null,null,"Ford City Boro",26512,5]
[null,null,null,null,null,null,"Ford Cliff Boro",26520,null,null,null,null,null,null,null,null,"Ford Cliff Boro",26520,5]
[null,null,null,null,null,null,"Freeport Boro",27784,null,null,null,null,null,null,null,null,"Freeport Boro",27784,5]
[null,null,null,null,null,null,"Gilpin Twp",29184,null,null,null,null,null,null,null,null,"Gilpin Twp",29184,5]
[null,null,null,null,null,null,"Hovey Twp",35936,null,null,null,null,null,null,null,null,"Hovey Twp",35936,5]
[null,null,null,null,null,null,"Kiskiminetas Twp",39968,null,null,null,null,null,null,null,null,"Kiskiminetas Twp",39968,5]
[null,null,null,null,null,null,"Kittanning Boro",40040,null,null,null,null,null,null,null,null,"Kittanning Boro",40040,5]
[null,null,null,null,null,null,"Kittanning Twp",40056,null,null,null,null,null,null,null,null,"Kittanning Twp",40056,5]
[null,null,null,null,null,null,"Leechburg Boro",42280,null,null,null,null,null,null,null,null,"Leechburg Boro",42280,5]
[null,null,null,null,null,null,"Madison Twp",46456,null,null,null,null,null,null,null,null,"Madison Twp",46456,5]
[null,null,null,null,null,null,"Mahoning Twp",46632,null,null,null,null,null,null,null,null,"Mahoning Twp",46632,5]
[null,null,null,null,null,null,"Manor Twp",46976,null,null,null,null,null,null,null,null,"Manor Twp",46976,5]
[null,null,null,null,null,null,"Manorville Boro",47064,null,null,null,null,null,null,null,null,"Manorville Boro",47064,5]
[null,null,null,null,null,null,"North Apollo Boro",54728,null,null,null,null,null,null,null,null,"North Apollo Boro",54728,5]
[null,null,null,null,null,null,"North Buffalo Twp",54856,null,null,null,null,null,null,null,null,"North Buffalo Twp",54856,5]
[null,null,null,null,null,null,"Parker City",57976,null,null,null,null,null,null,null,null,"Parker City",57976,5]
[null,null,null,null,null,null,"Parks Twp",58160,null,null,null,null,null,null,null,null,"Parks Twp",58160,5]
[null,null,null,null,null,null,"Perry Twp",59440,null,null,null,null,null,null,null,null,"Perry Twp",59440,5]
[null,null,null,null,null,null,"Pine Twp",60280,null,null,null,null,null,null,null,null,"Pine Twp",60280,5]
[null,null,null,null,null,null,"Plumcreek Twp",61576,null,null,null,null,null,null,null,null,"Plumcreek Twp",61576,5]
[null,null,null,null,null,null,"Rayburn Twp",63560,null,null,null,null,null,null,null,null,"Rayburn Twp",63560,5]
[null,null,null,null,null,null,"Redbank Twp",63712,null,null,null,null,null,null,null,null,"Redbank Twp",63712,5]
[null,null,null,null,null,null,"Rural Valley Boro",66720,null,null,null,null,null,null,null,null,"Rural Valley Boro",66720,5]
[null,null,null,null,null,null,"South Bend Twp",71968,null,null,null,null,null,null,null,null,"South Bend Twp",71968,5]
[null,null,null,null,null,null,"South Bethlehem Boro",71976,null,null,null,null,null,null,null,null,"South Bethlehem Boro",71976,5]
[null,null,null,null,null,null,"South Buffalo Twp",72000,null,null,null,null,null,null,null,null,"South Buffalo Twp",72000,5]
[null,null,null,null,null,null,"Sugarcreek Twp",74992,null,null,null,null,null,null,null,null,"Sugarcreek Twp",74992,5]
[null,null,null,null,null,null,"Valley Twp",79528,null,null,null,null,null,null,null,null,"Valley Twp",79528,5]
[null,null,null,null,null,null,"Washington Twp",81176,null,null,null,null,null,null,null,null,"Washington Twp",81176,5]
[null,null,null,null,null,null,"Wayne Twp",81720,null,null,null,null,null,null,null,null,"Wayne Twp",81720,5]
[null,null,null,null,null,null,"West Franklin Twp",83024,null,null,null,null,null,null,null,null,"West Franklin Twp",83024,5]
[null,null,null,null,null,null,"West Kittanning Boro",83248,null,null,null,null,null,null,null,null,"West Kittanning Boro",83248,5]
[null,null,null,null,null,null,"Worthington Boro",86560,null,null,null,null,null,null,null,null,"Worthington Boro",86560,5]
[null,null,null,null,null,null,"Aliquippa City",820,null,null,null,null,null,null,null,null,"Aliquippa City",820,7]
[null,null,null,null,null,null,"Ambridge Boro",2288,null,null,null,null,null,null,null,null,"Ambridge Boro",2288,7]
[null,null,null,null,null,null,"Baden Boro",3736,null,null,null,null,null,null,null,null,"Baden Boro",3736,7]
[null,null,null,null,null,null,"Beaver Boro",4688,null,null,null,null,null,null,null,null,"Beaver Boro",4688,7]
[null,null,null,null,null,null,"Beaver Falls City",4792,null,null,null,null,null,null,null,null,"Beaver Falls City",4792,7]
[null,null,null,null,null,null,"Big Beaver Boro",6240,null,null,null,null,null,null,null,null,"Big Beaver Boro",6240,7]
[null,null,null,null,null,null,"Bridgewater Boro",8632,null,null,null,null,null,null,null,null,"Bridgewater Boro",8632,7]
[null,null,null,null,null,null,"Brighton Twp",8680,null,null,null,null,null,null,null,null,"Brighton Twp",8680,7]
[null,null,null,null,null,null,"Center Twp",12016,null,null,null,null,null,null,null,null,"Center Twp",12016,7]
[null,null,null,null,null,null,"Chippewa Twp",13488,null,null,null,null,null,null,null,null,"Chippewa Twp",13488,7]
[null,null,null,null,null,null,"Conway Boro",15872,null,null,null,null,null,null,null,null,"Conway Boro",15872,7]
[null,null,null,null,null,null,"Darlington Boro",18192,null,null,null,null,null,null,null,null,"Darlington Boro",18192,7]
[null,null,null,null,null,null,"Darlington Twp",18200,null,null,null,null,null,null,null,null,"Darlington Twp",18200,7]
[null,null,null,null,null,null,"Daugherty Twp",18264,null,null,null,null,null,null,null,null,"Daugherty Twp",18264,7]
[null,null,null,null,null,null,"East Rochester Boro",21752,null,null,null,null,null,null,null,null,"East Rochester Boro",21752,7]
[null,null,null,null,null,null,"Eastvale Boro",21968,null,null,null,null,null,null,null,null,"Eastvale Boro",21968,7]
[null,null,null,null,null,null,"Economy Boro",22264,null,null,null,null,null,null,null,null,"Economy Boro",22264,7]
[null,null,null,null,null,null,"Ellwood City Boro",23304,null,null,null,null,null,null,null,null,"Ellwood City Boro",23304,7]
[null,null,null,null,null,null,"Fallston Boro",25152,null,null,null,null,null,null,null,null,"Fallston Boro",25152,7]
[null,null,null,null,null,null,"Frankfort Springs Boro",27312,null,null,null,null,null,null,null,null,"Frankfort Springs Boro",27312,7]
[null,null,null,null,null,null,"Franklin Twp",27336,null,null,null,null,null,null,null,null,"Franklin Twp",27336,7]
[null,null,null,null,null,null,"Freedom Boro",27712,null,null,null,null,null,null,null,null,"Freedom Boro",27712,7]
[null,null,null,null,null,null,"Georgetown Boro",28824,null,null,null,null,null,null,null,null,"Georgetown Boro",28824,7]
[null,null,null,null,null,null,"Glasgow Boro",29392,null,null,null,null,null,null,null,null,"Glasgow Boro",29392,7]
[null,null,null,null,null,null,"Greene Twp",30920,null,null,null,null,null,null,null,null,"Greene Twp",30920,7]
[null,null,null,null,null,null,"Hanover Twp",32392,null,null,null,null,null,null,null,null,"Hanover Twp",32392,7]
[null,null,null,null,null,null,"Harmony Twp",32680,null,null,null,null,null,null,null,null,"Harmony Twp",32680,7]
[null,null,null,null,null,null,"Homewood Boro",35488,null,null,null,null,null,null,null,null,"Homewood Boro",35488,7]
[null,null,null,null,null,null,"Hookstown Boro",35576,null,null,null,null,null,null,null,null,"Hookstown Boro",35576,7]
[null,null,null,null,null,null,"Hopewell Twp",35640,null,null,null,null,null,null,null,null,"Hopewell Twp",35640,7]
[null,null,null,null,null,null,"Independence Twp",36776,null,null,null,null,null,null,null,null,"Independence Twp",36776,7]
[null,null,null,null,null,null,"Industry Boro",36944,null,null,null,null,null,null,null,null,"Industry Boro",36944,7]
[null,null,null,null,null,null,"Koppel Boro",40400,null,null,null,null,null,null,null,null,"Koppel Boro",40400,7]
[null,null,null,null,null,null,"Marion Twp",47432,null,null,null,null,null,null,null,null,"Marion Twp",47432,7]
[null,null,null,null,null,null,"Midland Boro",49184,null,null,null,null,null,null,null,null,"Midland Boro",49184,7]
[null,null,null,null,null,null,"Monaca Boro",50320,null,null,null,null,null,null,null,null,"Monaca Boro",50320,7]
[null,null,null,null,null,null,"New Brighton Boro",53288,null,null,null,null,null,null,null,null,"New Brighton Boro",53288,7]
[null,null,null,null,null,null,"New Galilee Boro",53592,null,null,null,null,null,null,null,null,"New Galilee Boro",53592,7]
[null,null,null,null,null,null,"New Sewickley Twp",54072,null,null,null,null,null,null,null,null,"New Sewickley Twp",54072,7]
[null,null,null,null,null,null,"North Sewickley Twp",55400,null,null,null,null,null,null,null,null,"North Sewickley Twp",55400,7]
[null,null,null,null,null,null,"Ohioville Boro",56432,null,null,null,null,null,null,null,null,"Ohioville Boro",56432,7]
[null,null,null,null,null,null,"Patterson Twp",58375,null,null,null,null,null,null,null,null,"Patterson Twp",58375,7]
[null,null,null,null,null,null,"Patterson Heights Boro",58384,null,null,null,null,null,null,null,null,"Patterson Heights Boro",58384,7]
[null,null,null,null,null,null,"Potter Twp",62352,null,null,null,null,null,null,null,null,"Potter Twp",62352,7]
[null,null,null,null,null,null,"Pulaski Twp",62888,null,null,null,null,null,null,null,null,"Pulaski Twp",62888,7]
[null,null,null,null,null,null,"Raccoon Twp",63224,null,null,null,null,null,null,null,null,"Raccoon Twp",63224,7]
[null,null,null,null,null,null,"Rochester Boro",65392,null,null,null,null,null,null,null,null,"Rochester Boro",65392,7]
[null,null,null,null,null,null,"Rochester Twp",65400,null,null,null,null,null,null,null,null,"Rochester Twp",65400,7]
[null,null,null,null,null,null,"Shippingport Boro",70376,null,null,null,null,null,null,null,null,"Shippingport Boro",70376,7]
[null,null,null,null,null,null,"South Beaver Twp",71952,null,null,null,null,null,null,null,null,"South Beaver Twp",71952,7]
[null,null,null,null,null,null,"South Heights Boro",72216,null,null,null,null,null,null,null,null,"South Heights Boro",72216,7]
[null,null,null,null,null,null,"Vanport Twp",79856,null,null,null,null,null,null,null,null,"Vanport Twp",79856,7]
[null,null,null,null,null,null,"West Mayfield Boro",83472,null,null,null,null,null,null,null,null,"West Mayfield Boro",83472,7]
[null,null,null,null,null,null,"White Twp",84444,null,null,null,null,null,null,null,null,"White Twp",84444,7]
[null,null,null,null,null,null,"Bedford Boro",4944,null,null,null,null,null,null,null,null,"Bedford Boro",4944,9]
[null,null,null,null,null,null,"Bedford Twp",4952,null,null,null,null,null,null,null,null,"Bedford Twp",4952,9]
[null,null,null,null,null,null,"Bloomfield Twp",7024,null,null,null,null,null,null,null,null,"Bloomfield Twp",7024,9]
[null,null,null,null,null,null,"Broadtop Twp",8880,null,null,null,null,null,null,null,null,"Broadtop Twp",8880,9]
[null,null,null,null,null,null,"Coaldale Boro",14584,null,null,null,null,null,null,null,null,"Coaldale Boro",14584,9]
[null,null,null,null,null,null,"Colerain Twp",15032,null,null,null,null,null,null,null,null,"Colerain Twp",15032,9]
[null,null,null,null,null,null,"Cumberland Valley Twp",17664,null,null,null,null,null,null,null,null,"Cumberland Valley Twp",17664,9]
[null,null,null,null,null,null,"East Providence Twp",21736,null,null,null,null,null,null,null,null,"East Providence Twp",21736,9]
[null,null,null,null,null,null,"East St Clair Twp",21788,null,null,null,null,null,null,null,null,"East St Clair Twp",21788,9]
[null,null,null,null,null,null,"Everett Boro",24304,null,null,null,null,null,null,null,null,"Everett Boro",24304,9]
[null,null,null,null,null,null,"Harrison Twp",32840,null,null,null,null,null,null,null,null,"Harrison Twp",32840,9]
[null,null,null,null,null,null,"Hopewell Boro",35648,null,null,null,null,null,null,null,null,"Hopewell Boro",35648,9]
[null,null,null,null,null,null,"Hopewell Twp",35656,null,null,null,null,null,null,null,null,"Hopewell Twp",35656,9]
[null,null,null,null,null,null,"Hyndman Boro",36640,null,null,null,null,null,null,null,null,"Hyndman Boro",36640,9]
[null,null,null,null,null,null,"Juniata Twp",38576,null,null,null,null,null,null,null,null,"Juniata Twp",38576,9]
[null,null,null,null,null,null,"Kimmel Twp",39658,null,null,null,null,null,null,null,null,"Kimmel Twp",39658,9]
[null,null,null,null,null,null,"King Twp",39720,null,null,null,null,null,null,null,null,"King Twp",39720,9]
[null,null,null,null,null,null,"Liberty Twp",43072,null,null,null,null,null,null,null,null,"Liberty Twp",43072,9]
[null,null,null,null,null,null,"Lincoln Twp",43416,null,null,null,null,null,null,null,null,"Lincoln Twp",43416,9]
[null,null,null,null,null,null,"Londonderry Twp",44448,null,null,null,null,null,null,null,null,"Londonderry Twp",44448,9]
[null,null,null,null,null,null,"Mann Twp",46928,null,null,null,null,null,null,null,null,"Mann Twp",46928,9]
[null,null,null,null,null,null,"Manns Choice Boro",46944,null,null,null,null,null,null,null,null,"Manns Choice Boro",46944,9]
[null,null,null,null,null,null,"Monroe Twp",50424,null,null,null,null,null,null,null,null,"Monroe Twp",50424,9]
[null,null,null,null,null,null,"Napier Twp",52648,null,null,null,null,null,null,null,null,"Napier Twp",52648,9]
[null,null,null,null,null,null,"New Paris Boro",53928,null,null,null,null,null,null,null,null,"New Paris Boro",53928,9]
[null,null,null,null,null,null,"Pavia Twp",58492,null,null,null,null,null,null,null,null,"Pavia Twp",58492,9]
[null,null,null,null,null,null,"Pleasantville Boro",61496,null,null,null,null,null,null,null,null,"Pleasantville Boro",61496,9]
[null,null,null,null,null,null,"Rainsburg Boro",63312,null,null,null,null,null,null,null,null,"Rainsburg Boro",63312,9]
[null,null,null,null,null,null,"St Clairsville Boro",67256,null,null,null,null,null,null,null,null,"St Clairsville Boro",67256,9]
[null,null,null,null,null,null,"Saxton Boro",68072,null,null,null,null,null,null,null,null,"Saxton Boro",68072,9]
[null,null,null,null,null,null,"Schellsburg Boro",68152,null,null,null,null,null,null,null,null,"Schellsburg Boro",68152,9]
[null,null,null,null,null,null,"Snake Spring Twp",71544,null,null,null,null,null,null,null,null,"Snake Spring Twp",71544,9]
[null,null,null,null,null,null,"Southampton Twp",71888,null,null,null,null,null,null,null,null,"Southampton Twp",71888,9]
[null,null,null,null,null,null,"South Woodbury Twp",72656,null,null,null,null,null,null,null,null,"South Woodbury Twp",72656,9]
[null,null,null,null,null,null,"West Providence Twp",83920,null,null,null,null,null,null,null,null,"West Providence Twp",83920,9]
[null,null,null,null,null,null,"West St Clair Twp",83972,null,null,null,null,null,null,null,null,"West St Clair Twp",83972,9]
[null,null,null,null,null,null,"Woodbury Boro",86128,null,null,null,null,null,null,null,null,"Woodbury Boro",86128,9]
[null,null,null,null,null,null,"Woodbury Twp",86136,null,null,null,null,null,null,null,null,"Woodbury Twp",86136,9]
[null,null,null,null,null,null,"Adamstown Boro",364,null,null,null,null,null,null,null,null,"Adamstown Boro",364,11]
[null,null,null,null,null,null,"Albany Twp",588,null,null,null,null,null,null,null,null,"Albany Twp",588,11]
[null,null,null,null,null,null,"Alsace Twp",2120,null,null,null,null,null,null,null,null,"Alsace Twp",2120,11]
[null,null,null,null,null,null,"Amity Twp",2328,null,null,null,null,null,null,null,null,"Amity Twp",2328,11]
[null,null,null,null,null,null,"Bally Boro",3984,null,null,null,null,null,null,null,null,"Bally Boro",3984,11]
[null,null,null,null,null,null,"Bechtelsville Boro",4896,null,null,null,null,null,null,null,null,"Bechtelsville Boro",4896,11]
[null,null,null,null,null,null,"Bern Twp",5816,null,null,null,null,null,null,null,null,"Bern Twp",5816,11]
[null,null,null,null,null,null,"Bernville Boro",5848,null,null,null,null,null,null,null,null,"Bernville Boro",5848,11]
[null,null,null,null,null,null,"Bethel Twp",6008,null,null,null,null,null,null,null,null,"Bethel Twp",6008,11]
[null,null,null,null,null,null,"Birdsboro Boro",6504,null,null,null,null,null,null,null,null,"Birdsboro Boro",6504,11]
[null,null,null,null,null,null,"Boyertown Boro",7960,null,null,null,null,null,null,null,null,"Boyertown Boro",7960,11]
[null,null,null,null,null,null,"Brecknock Twp",8344,null,null,null,null,null,null,null,null,"Brecknock Twp",8344,11]
[null,null,null,null,null,null,"Caernarvon Twp",10696,null,null,null,null,null,null,null,null,"Caernarvon Twp",10696,11]
[null,null,null,null,null,null,"Centerport Boro",12104,null,null,null,null,null,null,null,null,"Centerport Boro",12104,11]
[null,null,null,null,null,null,"Centre Twp",12344,null,null,null,null,null,null,null,null,"Centre Twp",12344,11]
[null,null,null,null,null,null,"Colebrookdale Twp",14984,null,null,null,null,null,null,null,null,"Colebrookdale Twp",14984,11]
[null,null,null,null,null,null,"Cumru Twp",17720,null,null,null,null,null,null,null,null,"Cumru Twp",17720,11]
[null,null,null,null,null,null,"District Twp",19312,null,null,null,null,null,null,null,null,"District Twp",19312,11]
[null,null,null,null,null,null,"Douglass Twp",19664,null,null,null,null,null,null,null,null,"Douglass Twp",19664,11]
[null,null,null,null,null,null,"Earl Twp",20680,null,null,null,null,null,null,null,null,"Earl Twp",20680,11]
[null,null,null,null,null,null,"Exeter Twp",24384,null,null,null,null,null,null,null,null,"Exeter Twp",24384,11]
[null,null,null,null,null,null,"Fleetwood Boro",26280,null,null,null,null,null,null,null,null,"Fleetwood Boro",26280,11]
[null,null,null,null,null,null,"Greenwich Twp",31352,null,null,null,null,null,null,null,null,"Greenwich Twp",31352,11]
[null,null,null,null,null,null,"Hamburg Boro",32120,null,null,null,null,null,null,null,null,"Hamburg Boro",32120,11]
[null,null,null,null,null,null,"Heidelberg Twp",33600,null,null,null,null,null,null,null,null,"Heidelberg Twp",33600,11]
[null,null,null,null,null,null,"Hereford Twp",34016,null,null,null,null,null,null,null,null,"Hereford Twp",34016,11]
[null,null,null,null,null,null,"Jefferson Twp",37824,null,null,null,null,null,null,null,null,"Jefferson Twp",37824,11]
[null,null,null,null,null,null,"Kenhorst Boro",39256,null,null,null,null,null,null,null,null,"Kenhorst Boro",39256,11]
[null,null,null,null,null,null,"Kutztown Boro",40656,null,null,null,null,null,null,null,null,"Kutztown Boro",40656,11]
[null,null,null,null,null,null,"Laureldale Boro",41768,null,null,null,null,null,null,null,null,"Laureldale Boro",41768,11]
[null,null,null,null,null,null,"Leesport Boro",42352,null,null,null,null,null,null,null,null,"Leesport Boro",42352,11]
[null,null,null,null,null,null,"Lenhartsville Boro",42688,null,null,null,null,null,null,null,null,"Lenhartsville Boro",42688,11]
[null,null,null,null,null,null,"Longswamp Twp",44584,null,null,null,null,null,null,null,null,"Longswamp Twp",44584,11]
[null,null,null,null,null,null,"Lower Alsace Twp",44840,null,null,null,null,null,null,null,null,"Lower Alsace Twp",44840,11]
[null,null,null,null,null,null,"Lower Heidelberg Twp",44928,null,null,null,null,null,null,null,null,"Lower Heidelberg Twp",44928,11]
[null,null,null,null,null,null,"Lyons Boro",45752,null,null,null,null,null,null,null,null,"Lyons Boro",45752,11]
[null,null,null,null,null,null,"Maidencreek Twp",46680,null,null,null,null,null,null,null,null,"Maidencreek Twp",46680,11]
[null,null,null,null,null,null,"Marion Twp",47440,null,null,null,null,null,null,null,null,"Marion Twp",47440,11]
[null,null,null,null,null,null,"Maxatawny Twp",48128,null,null,null,null,null,null,null,null,"Maxatawny Twp",48128,11]
[null,null,null,null,null,null,"Mohnton Boro",50272,null,null,null,null,null,null,null,null,"Mohnton Boro",50272,11]
[null,null,null,null,null,null,"Mt Penn Boro",51760,null,null,null,null,null,null,null,null,"Mt Penn Boro",51760,11]
[null,null,null,null,null,null,"Muhlenberg Twp",52200,null,null,null,null,null,null,null,null,"Muhlenberg Twp",52200,11]
[null,null,null,null,null,null,"New Morgan Boro",53916,null,null,null,null,null,null,null,null,"New Morgan Boro",53916,11]
[null,null,null,null,null,null,"North Heidelberg Twp",55088,null,null,null,null,null,null,null,null,"North Heidelberg Twp",55088,11]
[null,null,null,null,null,null,"Oley Twp",56672,null,null,null,null,null,null,null,null,"Oley Twp",56672,11]
[null,null,null,null,null,null,"Ontelaunee Twp",56856,null,null,null,null,null,null,null,null,"Ontelaunee Twp",56856,11]
[null,null,null,null,null,null,"Penn Twp",58784,null,null,null,null,null,null,null,null,"Penn Twp",58784,11]
[null,null,null,null,null,null,"Perry Twp",59448,null,null,null,null,null,null,null,null,"Perry Twp",59448,11]
[null,null,null,null,null,null,"Pike Twp",60176,null,null,null,null,null,null,null,null,"Pike Twp",60176,11]
[null,null,null,null,null,null,"Reading City",63624,null,null,null,null,null,null,null,null,"Reading City",63624,11]
[null,null,null,null,null,null,"Richmond Twp",64592,null,null,null,null,null,null,null,null,"Richmond Twp",64592,11]
[null,null,null,null,null,null,"Robeson Twp",65320,null,null,null,null,null,null,null,null,"Robeson Twp",65320,11]
[null,null,null,null,null,null,"Robesonia Boro",65336,null,null,null,null,null,null,null,null,"Robesonia Boro",65336,11]
[null,null,null,null,null,null,"Rockland Twp",65544,null,null,null,null,null,null,null,null,"Rockland Twp",65544,11]
[null,null,null,null,null,null,"Ruscombmanor Twp",66728,null,null,null,null,null,null,null,null,"Ruscombmanor Twp",66728,11]
[null,null,null,null,null,null,"St Lawrence Boro",67304,null,null,null,null,null,null,null,null,"St Lawrence Boro",67304,11]
[null,null,null,null,null,null,"Shillington Boro",70248,null,null,null,null,null,null,null,null,"Shillington Boro",70248,11]
[null,null,null,null,null,null,"Shoemakersville Boro",70464,null,null,null,null,null,null,null,null,"Shoemakersville Boro",70464,11]
[null,null,null,null,null,null,"Sinking Spring Boro",70880,null,null,null,null,null,null,null,null,"Sinking Spring Boro",70880,11]
[null,null,null,null,null,null,"South Heidelberg Twp",72208,null,null,null,null,null,null,null,null,"South Heidelberg Twp",72208,11]
[null,null,null,null,null,null,"Spring Twp",72824,null,null,null,null,null,null,null,null,"Spring Twp",72824,11]
[null,null,null,null,null,null,"Strausstown Boro",74744,null,null,null,null,null,null,null,null,"Strausstown Boro",74744,11]
[null,null,null,null,null,null,"Tilden Twp",76712,null,null,null,null,null,null,null,null,"Tilden Twp",76712,11]
[null,null,null,null,null,null,"Topton Boro",77104,null,null,null,null,null,null,null,null,"Topton Boro",77104,11]
[null,null,null,null,null,null,"Tulpehocken Twp",77752,null,null,null,null,null,null,null,null,"Tulpehocken Twp",77752,11]
[null,null,null,null,null,null,"Union Twp",78280,null,null,null,null,null,null,null,null,"Union Twp",78280,11]
[null,null,null,null,null,null,"Upper Bern Twp",78752,null,null,null,null,null,null,null,null,"Upper Bern Twp",78752,11]
[null,null,null,null,null,null,"Upper Tulpehocken Twp",79328,null,null,null,null,null,null,null,null,"Upper Tulpehocken Twp",79328,11]
[null,null,null,null,null,null,"Washington Twp",81184,null,null,null,null,null,null,null,null,"Washington Twp",81184,11]
[null,null,null,null,null,null,"Wernersville Boro",82296,null,null,null,null,null,null,null,null,"Wernersville Boro",82296,11]
[null,null,null,null,null,null,"West Reading Boro",83928,null,null,null,null,null,null,null,null,"West Reading Boro",83928,11]
[null,null,null,null,null,null,"Windsor Twp",85720,null,null,null,null,null,null,null,null,"Windsor Twp",85720,11]
[null,null,null,null,null,null,"Womelsdorf Boro",86056,null,null,null,null,null,null,null,null,"Womelsdorf Boro",86056,11]
[null,null,null,null,null,null,"Wyomissing Boro",86880,null,null,null,null,null,null,null,null,"Wyomissing Boro",86880,11]
[null,null,null,null,null,null,"Allegheny Twp",852,null,null,null,null,null,null,null,null,"Allegheny Twp",852,13]
[null,null,null,null,null,null,"Altoona City",2184,null,null,null,null,null,null,null,null,"Altoona City",2184,13]
[null,null,null,null,null,null,"Antis Twp",2680,null,null,null,null,null,null,null,null,"Antis Twp",2680,13]
[null,null,null,null,null,null,"Bellwood Boro",5384,null,null,null,null,null,null,null,null,"Bellwood Boro",5384,13]
[null,null,null,null,null,null,"Blair Twp",6872,null,null,null,null,null,null,null,null,"Blair Twp",6872,13]
[null,null,null,null,null,null,"Catharine Twp",11760,null,null,null,null,null,null,null,null,"Catharine Twp",11760,13]
[null,null,null,null,null,null,"Duncansville Boro",20248,null,null,null,null,null,null,null,null,"Duncansville Boro",20248,13]
[null,null,null,null,null,null,"Frankstown Twp",27600,null,null,null,null,null,null,null,null,"Frankstown Twp",27600,13]
[null,null,null,null,null,null,"Freedom Twp",27720,null,null,null,null,null,null,null,null,"Freedom Twp",27720,13]
[null,null,null,null,null,null,"Greenfield Twp",31000,null,null,null,null,null,null,null,null,"Greenfield Twp",31000,13]
[null,null,null,null,null,null,"Hollidaysburg Boro",35224,null,null,null,null,null,null,null,null,"Hollidaysburg Boro",35224,13]
[null,null,null,null,null,null,"Huston Twp",36496,null,null,null,null,null,null,null,null,"Huston Twp",36496,13]
[null,null,null,null,null,null,"Juniata Twp",38592,null,null,null,null,null,null,null,null,"Juniata Twp",38592,13]
[null,null,null,null,null,null,"Logan Twp",44328,null,null,null,null,null,null,null,null,"Logan Twp",44328,13]
[null,null,null,null,null,null,"Martinsburg Boro",47872,null,null,null,null,null,null,null,null,"Martinsburg Boro",47872,13]
[null,null,null,null,null,null,"Newry Boro",54024,null,null,null,null,null,null,null,null,"Newry Boro",54024,13]
[null,null,null,null,null,null,"North Woodbury Twp",55592,null,null,null,null,null,null,null,null,"North Woodbury Twp",55592,13]
[null,null,null,null,null,null,"Roaring Spring Boro",65256,null,null,null,null,null,null,null,null,"Roaring Spring Boro",65256,13]
[null,null,null,null,null,null,"Snyder Twp",71624,null,null,null,null,null,null,null,null,"Snyder Twp",71624,13]
[null,null,null,null,null,null,"Taylor Twp",76160,null,null,null,null,null,null,null,null,"Taylor Twp",76160,13]
[null,null,null,null,null,null,"Tyrone Boro",78168,null,null,null,null,null,null,null,null,"Tyrone Boro",78168,13]
[null,null,null,null,null,null,"Tyrone Twp",78176,null,null,null,null,null,null,null,null,"Tyrone Twp",78176,13]
[null,null,null,null,null,null,"Williamsburg Boro",85272,null,null,null,null,null,null,null,null,"Williamsburg Boro",85272,13]
[null,null,null,null,null,null,"Woodbury Twp",86144,null,null,null,null,null,null,null,null,"Woodbury Twp",86144,13]
[null,null,null,null,null,null,"Alba Boro",572,null,null,null,null,null,null,null,null,"Alba Boro",572,15]
[null,null,null,null,null,null,"Albany Twp",596,null,null,null,null,null,null,null,null,"Albany Twp",596,15]
[null,null,null,null,null,null,"Armenia Twp",3056,null,null,null,null,null,null,null,null,"Armenia Twp",3056,15]
[null,null,null,null,null,null,"Asylum Twp",3360,null,null,null,null,null,null,null,null,"Asylum Twp",3360,15]
[null,null,null,null,null,null,"Athens Boro",3392,null,null,null,null,null,null,null,null,"Athens Boro",3392,15]
[null,null,null,null,null,null,"Athens Twp",3400,null,null,null,null,null,null,null,null,"Athens Twp",3400,15]
[null,null,null,null,null,null,"Burlington Boro",10240,null,null,null,null,null,null,null,null,"Burlington Boro",10240,15]
[null,null,null,null,null,null,"Burlington Twp",10248,null,null,null,null,null,null,null,null,"Burlington Twp",10248,15]
[null,null,null,null,null,null,"Canton Boro",11160,null,null,null,null,null,null,null,null,"Canton Boro",11160,15]
[null,null,null,null,null,null,"Canton Twp",11168,null,null,null,null,null,null,null,null,"Canton Twp",11168,15]
[null,null,null,null,null,null,"Columbia Twp",15376,null,null,null,null,null,null,null,null,"Columbia Twp",15376,15]
[null,null,null,null,null,null,"Franklin Twp",27344,null,null,null,null,null,null,null,null,"Franklin Twp",27344,15]
[null,null,null,null,null,null,"Granville Twp",30464,null,null,null,null,null,null,null,null,"Granville Twp",30464,15]
[null,null,null,null,null,null,"Herrick Twp",34088,null,null,null,null,null,null,null,null,"Herrick Twp",34088,15]
[null,null,null,null,null,null,"Leraysville Boro",42824,null,null,null,null,null,null,null,null,"Leraysville Boro",42824,15]
[null,null,null,null,null,null,"Leroy Twp",42856,null,null,null,null,null,null,null,null,"Leroy Twp",42856,15]
[null,null,null,null,null,null,"Litchfield Twp",43792,null,null,null,null,null,null,null,null,"Litchfield Twp",43792,15]
[null,null,null,null,null,null,"Monroe Twp",50432,null,null,null,null,null,null,null,null,"Monroe Twp",50432,15]
[null,null,null,null,null,null,"Monroe Boro",50440,null,null,null,null,null,null,null,null,"Monroe Boro",50440,15]
[null,null,null,null,null,null,"New Albany Boro",53152,null,null,null,null,null,null,null,null,"New Albany Boro",53152,15]
[null,null,null,null,null,null,"North Towanda Twp",55448,null,null,null,null,null,null,null,null,"North Towanda Twp",55448,15]
[null,null,null,null,null,null,"Orwell Twp",57176,null,null,null,null,null,null,null,null,"Orwell Twp",57176,15]
[null,null,null,null,null,null,"Overton Twp",57448,null,null,null,null,null,null,null,null,"Overton Twp",57448,15]
[null,null,null,null,null,null,"Pike Twp",60184,null,null,null,null,null,null,null,null,"Pike Twp",60184,15]
[null,null,null,null,null,null,"Ridgebury Twp",64696,null,null,null,null,null,null,null,null,"Ridgebury Twp",64696,15]
[null,null,null,null,null,null,"Rome Boro",65944,null,null,null,null,null,null,null,null,"Rome Boro",65944,15]
[null,null,null,null,null,null,"Rome Twp",65952,null,null,null,null,null,null,null,null,"Rome Twp",65952,15]
[null,null,null,null,null,null,"Sayre Boro",68096,null,null,null,null,null,null,null,null,"Sayre Boro",68096,15]
[null,null,null,null,null,null,"Sheshequin Twp",70208,null,null,null,null,null,null,null,null,"Sheshequin Twp",70208,15]
[null,null,null,null,null,null,"Smithfield Twp",71312,null,null,null,null,null,null,null,null,"Smithfield Twp",71312,15]
[null,null,null,null,null,null,"South Creek Twp",72096,null,null,null,null,null,null,null,null,"South Creek Twp",72096,15]
[null,null,null,null,null,null,"South Waverly Boro",72592,null,null,null,null,null,null,null,null,"South Waverly Boro",72592,15]
[null,null,null,null,null,null,"Springfield Twp",73008,null,null,null,null,null,null,null,null,"Springfield Twp",73008,15]
[null,null,null,null,null,null,"Standing Stone Twp",73632,null,null,null,null,null,null,null,null,"Standing Stone Twp",73632,15]
[null,null,null,null,null,null,"Stevens Twp",74032,null,null,null,null,null,null,null,null,"Stevens Twp",74032,15]
[null,null,null,null,null,null,"Sylvania Boro",75944,null,null,null,null,null,null,null,null,"Sylvania Boro",75944,15]
[null,null,null,null,null,null,"Terry Twp",76408,null,null,null,null,null,null,null,null,"Terry Twp",76408,15]
[null,null,null,null,null,null,"Towanda Boro",77168,null,null,null,null,null,null,null,null,"Towanda Boro",77168,15]
[null,null,null,null,null,null,"Towanda Twp",77176,null,null,null,null,null,null,null,null,"Towanda Twp",77176,15]
[null,null,null,null,null,null,"Troy Boro",77584,null,null,null,null,null,null,null,null,"Troy Boro",77584,15]
[null,null,null,null,null,null,"Troy Twp",77592,null,null,null,null,null,null,null,null,"Troy Twp",77592,15]
[null,null,null,null,null,null,"Tuscarora Twp",77936,null,null,null,null,null,null,null,null,"Tuscarora Twp",77936,15]
[null,null,null,null,null,null,"Ulster Twp",78232,null,null,null,null,null,null,null,null,"Ulster Twp",78232,15]
[null,null,null,null,null,null,"Warren Twp",80984,null,null,null,null,null,null,null,null,"Warren Twp",80984,15]
[null,null,null,null,null,null,"Wells Twp",82144,null,null,null,null,null,null,null,null,"Wells Twp",82144,15]
[null,null,null,null,null,null,"W Burlington Twp",82656,null,null,null,null,null,null,null,null,"W Burlington Twp",82656,15]
[null,null,null,null,null,null,"Wilmot Twp",85544,null,null,null,null,null,null,null,null,"Wilmot Twp",85544,15]
[null,null,null,null,null,null,"Windham Twp",85672,null,null,null,null,null,null,null,null,"Windham Twp",85672,15]
[null,null,null,null,null,null,"Wyalusing Boro",86656,null,null,null,null,null,null,null,null,"Wyalusing Boro",86656,15]
[null,null,null,null,null,null,"Wyalusing Twp",86664,null,null,null,null,null,null,null,null,"Wyalusing Twp",86664,15]
[null,null,null,null,null,null,"Wysox Twp",86912,null,null,null,null,null,null,null,null,"Wysox Twp",86912,15]
[null,null,null,null,null,null,"Bedminster Twp",4976,null,null,null,null,null,null,null,null,"Bedminster Twp",4976,17]
[null,null,null,null,null,null,"Bensalem Twp",5616,null,null,null,null,null,null,null,null,"Bensalem Twp",5616,17]
[null,null,null,null,null,null,"Bridgeton Twp",8592,null,null,null,null,null,null,null,null,"Bridgeton Twp",8592,17]
[null,null,null,null,null,null,"Bristol Boro",8760,null,null,null,null,null,null,null,null,"Bristol Boro",8760,17]
[null,null,null,null,null,null,"Bristol Twp",8768,null,null,null,null,null,null,null,null,"Bristol Twp",8768,17]
[null,null,null,null,null,null,"Buckingham Twp",9816,null,null,null,null,null,null,null,null,"Buckingham Twp",9816,17]
[null,null,null,null,null,null,"Chalfont Boro",12504,null,null,null,null,null,null,null,null,"Chalfont Boro",12504,17]
[null,null,null,null,null,null,"Doylestown Boro",19784,null,null,null,null,null,null,null,null,"Doylestown Boro",19784,17]
[null,null,null,null,null,null,"Doylestown Twp",19792,null,null,null,null,null,null,null,null,"Doylestown Twp",19792,17]
[null,null,null,null,null,null,"Dublin Boro",20104,null,null,null,null,null,null,null,null,"Dublin Boro",20104,17]
[null,null,null,null,null,null,"Durham Twp",20480,null,null,null,null,null,null,null,null,"Durham Twp",20480,17]
[null,null,null,null,null,null,"East Rockhill Twp",21760,null,null,null,null,null,null,null,null,"East Rockhill Twp",21760,17]
[null,null,null,null,null,null,"Falls Twp",25112,null,null,null,null,null,null,null,null,"Falls Twp",25112,17]
[null,null,null,null,null,null,"Haycock Twp",33224,null,null,null,null,null,null,null,null,"Haycock Twp",33224,17]
[null,null,null,null,null,null,"Hilltown Twp",34952,null,null,null,null,null,null,null,null,"Hilltown Twp",34952,17]
[null,null,null,null,null,null,"Hulmeville Boro",36192,null,null,null,null,null,null,null,null,"Hulmeville Boro",36192,17]
[null,null,null,null,null,null,"Ivyland Boro",37304,null,null,null,null,null,null,null,null,"Ivyland Boro",37304,17]
[null,null,null,null,null,null,"Langhorne Boro",41392,null,null,null,null,null,null,null,null,"Langhorne Boro",41392,17]
[null,null,null,null,null,null,"Langhorne Manor Boro",41416,null,null,null,null,null,null,null,null,"Langhorne Manor Boro",41416,17]
[null,null,null,null,null,null,"Lower Makefield Twp",44968,null,null,null,null,null,null,null,null,"Lower Makefield Twp",44968,17]
[null,null,null,null,null,null,"Lower Southampton Twp",45112,null,null,null,null,null,null,null,null,"Lower Southampton Twp",45112,17]
[null,null,null,null,null,null,"Middletown Twp",49120,null,null,null,null,null,null,null,null,"Middletown Twp",49120,17]
[null,null,null,null,null,null,"Milford Twp",49384,null,null,null,null,null,null,null,null,"Milford Twp",49384,17]
[null,null,null,null,null,null,"Morrisville Boro",51144,null,null,null,null,null,null,null,null,"Morrisville Boro",51144,17]
[null,null,null,null,null,null,"New Britain Boro",53296,null,null,null,null,null,null,null,null,"New Britain Boro",53296,17]
[null,null,null,null,null,null,"New Britain Twp",53304,null,null,null,null,null,null,null,null,"New Britain Twp",53304,17]
[null,null,null,null,null,null,"New Hope Boro",53712,null,null,null,null,null,null,null,null,"New Hope Boro",53712,17]
[null,null,null,null,null,null,"Newtown Boro",54184,null,null,null,null,null,null,null,null,"Newtown Boro",54184,17]
[null,null,null,null,null,null,"Newtown Twp",54192,null,null,null,null,null,null,null,null,"Newtown Twp",54192,17]
[null,null,null,null,null,null,"Nockamixon Twp",54576,null,null,null,null,null,null,null,null,"Nockamixon Twp",54576,17]
[null,null,null,null,null,null,"Northampton Twp",54688,null,null,null,null,null,null,null,null,"Northampton Twp",54688,17]
[null,null,null,null,null,null,"Penndel Boro",58936,null,null,null,null,null,null,null,null,"Penndel Boro",58936,17]
[null,null,null,null,null,null,"Perkasie Boro",59384,null,null,null,null,null,null,null,null,"Perkasie Boro",59384,17]
[null,null,null,null,null,null,"Plumstead Twp",61616,null,null,null,null,null,null,null,null,"Plumstead Twp",61616,17]
[null,null,null,null,null,null,"Quakertown Boro",63048,null,null,null,null,null,null,null,null,"Quakertown Boro",63048,17]
[null,null,null,null,null,null,"Richland Twp",64536,null,null,null,null,null,null,null,null,"Richland Twp",64536,17]
[null,null,null,null,null,null,"Richlandtown Boro",64584,null,null,null,null,null,null,null,null,"Richlandtown Boro",64584,17]
[null,null,null,null,null,null,"Riegelsville Boro",64856,null,null,null,null,null,null,null,null,"Riegelsville Boro",64856,17]
[null,null,null,null,null,null,"Sellersville Boro",69248,null,null,null,null,null,null,null,null,"Sellersville Boro",69248,17]
[null,null,null,null,null,null,"Silverdale Boro",70744,null,null,null,null,null,null,null,null,"Silverdale Boro",70744,17]
[null,null,null,null,null,null,"Solebury Twp",71752,null,null,null,null,null,null,null,null,"Solebury Twp",71752,17]
[null,null,null,null,null,null,"Springfield Twp",73016,null,null,null,null,null,null,null,null,"Springfield Twp",73016,17]
[null,null,null,null,null,null,"Telford Boro",76304,null,null,null,null,null,null,null,null,"Telford Boro",76304,17]
[null,null,null,null,null,null,"Tinicum Twp",76784,null,null,null,null,null,null,null,null,"Tinicum Twp",76784,17]
[null,null,null,null,null,null,"Trumbauersville Boro",77704,null,null,null,null,null,null,null,null,"Trumbauersville Boro",77704,17]
[null,null,null,null,null,null,"Tullytown Boro",77744,null,null,null,null,null,null,null,null,"Tullytown Boro",77744,17]
[null,null,null,null,null,null,"Upper Makefield Twp",79128,null,null,null,null,null,null,null,null,"Upper Makefield Twp",79128,17]
[null,null,null,null,null,null,"Upper Southampton Twp",79296,null,null,null,null,null,null,null,null,"Upper Southampton Twp",79296,17]
[null,null,null,null,null,null,"Warminster Twp",80952,null,null,null,null,null,null,null,null,"Warminster Twp",80952,17]
[null,null,null,null,null,null,"Warrington Twp",81048,null,null,null,null,null,null,null,null,"Warrington Twp",81048,17]
[null,null,null,null,null,null,"Warwick Twp",81144,null,null,null,null,null,null,null,null,"Warwick Twp",81144,17]
[null,null,null,null,null,null,"West Rockhill Twp",83960,null,null,null,null,null,null,null,null,"West Rockhill Twp",83960,17]
[null,null,null,null,null,null,"Wrightstown Twp",86624,null,null,null,null,null,null,null,null,"Wrightstown Twp",86624,17]
[null,null,null,null,null,null,"Yardley Boro",86920,null,null,null,null,null,null,null,null,"Yardley Boro",86920,17]
[null,null,null,null,null,null,"Adams Twp",300,null,null,null,null,null,null,null,null,"Adams Twp",300,19]
[null,null,null,null,null,null,"Allegheny Twp",860,null,null,null,null,null,null,null,null,"Allegheny Twp",860,19]
[null,null,null,null,null,null,"Brady Twp",8096,null,null,null,null,null,null,null,null,"Brady Twp",8096,19]
[null,null,null,null,null,null,"Bruin Boro",9528,null,null,null,null,null,null,null,null,"Bruin Boro",9528,19]
[null,null,null,null,null,null,"Buffalo Twp",10000,null,null,null,null,null,null,null,null,"Buffalo Twp",10000,19]
[null,null,null,null,null,null,"Butler City",10464,null,null,null,null,null,null,null,null,"Butler City",10464,19]
[null,null,null,null,null,null,"Butler Twp",10472,null,null,null,null,null,null,null,null,"Butler Twp",10472,19]
[null,null,null,null,null,null,"Callery Boro",10800,null,null,null,null,null,null,null,null,"Callery Boro",10800,19]
[null,null,null,null,null,null,"Center Twp",12024,null,null,null,null,null,null,null,null,"Center Twp",12024,19]
[null,null,null,null,null,null,"Cherry Twp",12992,null,null,null,null,null,null,null,null,"Cherry Twp",12992,19]
[null,null,null,null,null,null,"Cherry Valley Boro",13152,null,null,null,null,null,null,null,null,"Cherry Valley Boro",13152,19]
[null,null,null,null,null,null,"Chicora Boro",13440,null,null,null,null,null,null,null,null,"Chicora Boro",13440,19]
[null,null,null,null,null,null,"Clay Twp",13936,null,null,null,null,null,null,null,null,"Clay Twp",13936,19]
[null,null,null,null,null,null,"Clearfield Twp",14048,null,null,null,null,null,null,null,null,"Clearfield Twp",14048,19]
[null,null,null,null,null,null,"Clinton Twp",14320,null,null,null,null,null,null,null,null,"Clinton Twp",14320,19]
[null,null,null,null,null,null,"Concord Twp",15480,null,null,null,null,null,null,null,null,"Concord Twp",15480,19]
[null,null,null,null,null,null,"Connoquenessing Boro",15808,null,null,null,null,null,null,null,null,"Connoquenessing Boro",15808,19]
[null,null,null,null,null,null,"Connoquenessing Twp",15816,null,null,null,null,null,null,null,null,"Connoquenessing Twp",15816,19]
[null,null,null,null,null,null,"Cranberry Twp",16920,null,null,null,null,null,null,null,null,"Cranberry Twp",16920,19]
[null,null,null,null,null,null,"Donegal Twp",19456,null,null,null,null,null,null,null,null,"Donegal Twp",19456,19]
[null,null,null,null,null,null,"East Butler Boro",20904,null,null,null,null,null,null,null,null,"East Butler Boro",20904,19]
[null,null,null,null,null,null,"Eau Claire Boro",22128,null,null,null,null,null,null,null,null,"Eau Claire Boro",22128,19]
[null,null,null,null,null,null,"Evans City Boro",24248,null,null,null,null,null,null,null,null,"Evans City Boro",24248,19]
[null,null,null,null,null,null,"Fairview Boro",24832,null,null,null,null,null,null,null,null,"Fairview Boro",24832,19]
[null,null,null,null,null,null,"Fairview Twp",24840,null,null,null,null,null,null,null,null,"Fairview Twp",24840,19]
[null,null,null,null,null,null,"Forward Twp",26904,null,null,null,null,null,null,null,null,"Forward Twp",26904,19]
[null,null,null,null,null,null,"Franklin Twp",27352,null,null,null,null,null,null,null,null,"Franklin Twp",27352,19]
[null,null,null,null,null,null,"Harmony Boro",32688,null,null,null,null,null,null,null,null,"Harmony Boro",32688,19]
[null,null,null,null,null,null,"Harrisville Boro",32896,null,null,null,null,null,null,null,null,"Harrisville Boro",32896,19]
[null,null,null,null,null,null,"Jackson Twp",37344,null,null,null,null,null,null,null,null,"Jackson Twp",37344,19]
[null,null,null,null,null,null,"Jefferson Twp",37848,null,null,null,null,null,null,null,null,"Jefferson Twp",37848,19]
[null,null,null,null,null,null,"Karns City Boro",38768,null,null,null,null,null,null,null,null,"Karns City Boro",38768,19]
[null,null,null,null,null,null,"Lancaster Twp",41208,null,null,null,null,null,null,null,null,"Lancaster Twp",41208,19]
[null,null,null,null,null,null,"Marion Twp",47448,null,null,null,null,null,null,null,null,"Marion Twp",47448,19]
[null,null,null,null,null,null,"Mars Boro",47672,null,null,null,null,null,null,null,null,"Mars Boro",47672,19]
[null,null,null,null,null,null,"Mercer Twp",48688,null,null,null,null,null,null,null,null,"Mercer Twp",48688,19]
[null,null,null,null,null,null,"Middlesex Twp",49056,null,null,null,null,null,null,null,null,"Middlesex Twp",49056,19]
[null,null,null,null,null,null,"Muddy Creek Twp",52176,null,null,null,null,null,null,null,null,"Muddy Creek Twp",52176,19]
[null,null,null,null,null,null,"Oakland Twp",55992,null,null,null,null,null,null,null,null,"Oakland Twp",55992,19]
[null,null,null,null,null,null,"Parker Twp",57984,null,null,null,null,null,null,null,null,"Parker Twp",57984,19]
[null,null,null,null,null,null,"Penn Twp",58792,null,null,null,null,null,null,null,null,"Penn Twp",58792,19]
[null,null,null,null,null,null,"Petrolia Boro",59672,null,null,null,null,null,null,null,null,"Petrolia Boro",59672,19]
[null,null,null,null,null,null,"Portersville Boro",62224,null,null,null,null,null,null,null,null,"Portersville Boro",62224,19]
[null,null,null,null,null,null,"Prospect Boro",62752,null,null,null,null,null,null,null,null,"Prospect Boro",62752,19]
[null,null,null,null,null,null,"Saxonburg Boro",68056,null,null,null,null,null,null,null,null,"Saxonburg Boro",68056,19]
[null,null,null,null,null,null,"Seven Fields Boro",69309,null,null,null,null,null,null,null,null,"Seven Fields Boro",69309,19]
[null,null,null,null,null,null,"Slippery Rock Boro",71184,null,null,null,null,null,null,null,null,"Slippery Rock Boro",71184,19]
[null,null,null,null,null,null,"Slippery Rock Twp",71192,null,null,null,null,null,null,null,null,"Slippery Rock Twp",71192,19]
[null,null,null,null,null,null,"Summit Twp",75184,null,null,null,null,null,null,null,null,"Summit Twp",75184,19]
[null,null,null,null,null,null,"Valencia Boro",79504,null,null,null,null,null,null,null,null,"Valencia Boro",79504,19]
[null,null,null,null,null,null,"Venango Twp",79904,null,null,null,null,null,null,null,null,"Venango Twp",79904,19]
[null,null,null,null,null,null,"Washington Twp",81192,null,null,null,null,null,null,null,null,"Washington Twp",81192,19]
[null,null,null,null,null,null,"West Liberty Boro",83376,null,null,null,null,null,null,null,null,"West Liberty Boro",83376,19]
[null,null,null,null,null,null,"West Sunbury Boro",84064,null,null,null,null,null,null,null,null,"West Sunbury Boro",84064,19]
[null,null,null,null,null,null,"Winfield Twp",85784,null,null,null,null,null,null,null,null,"Winfield Twp",85784,19]
[null,null,null,null,null,null,"Worth Twp",86536,null,null,null,null,null,null,null,null,"Worth Twp",86536,19]
[null,null,null,null,null,null,"Zelienople Boro",87272,null,null,null,null,null,null,null,null,"Zelienople Boro",87272,19]
[null,null,null,null,null,null,"Adams Twp",308,null,null,null,null,null,null,null,null,"Adams Twp",308,21]
[null,null,null,null,null,null,"Allegheny Twp",868,null,null,null,null,null,null,null,null,"Allegheny Twp",868,21]
[null,null,null,null,null,null,"Ashville Boro",3296,null,null,null,null,null,null,null,null,"Ashville Boro",3296,21]
[null,null,null,null,null,null,"Barr Twp",4272,null,null,null,null,null,null,null,null,"Barr Twp",4272,21]
[null,null,null,null,null,null,"Blacklick Twp",6736,null,null,null,null,null,null,null,null,"Blacklick Twp",6736,21]
[null,null,null,null,null,null,"Brownstown Boro",9400,null,null,null,null,null,null,null,null,"Brownstown Boro",9400,21]
[null,null,null,null,null,null,"Cambria Twp",10880,null,null,null,null,null,null,null,null,"Cambria Twp",10880,21]
[null,null,null,null,null,null,"Carrolltown Boro",11456,null,null,null,null,null,null,null,null,"Carrolltown Boro",11456,21]
[null,null,null,null,null,null,"Cassandra Boro",11616,null,null,null,null,null,null,null,null,"Cassandra Boro",11616,21]
[null,null,null,null,null,null,"Chest Twp",13192,null,null,null,null,null,null,null,null,"Chest Twp",13192,21]
[null,null,null,null,null,null,"Chest Springs Boro",13384,null,null,null,null,null,null,null,null,"Chest Springs Boro",13384,21]
[null,null,null,null,null,null,"Clearfield Twp",14056,null,null,null,null,null,null,null,null,"Clearfield Twp",14056,21]
[null,null,null,null,null,null,"Conemaugh Twp",15552,null,null,null,null,null,null,null,null,"Conemaugh Twp",15552,21]
[null,null,null,null,null,null,"Cresson Boro",17136,null,null,null,null,null,null,null,null,"Cresson Boro",17136,21]
[null,null,null,null,null,null,"Cresson Twp",17144,null,null,null,null,null,null,null,null,"Cresson Twp",17144,21]
[null,null,null,null,null,null,"Croyle Twp",17496,null,null,null,null,null,null,null,null,"Croyle Twp",17496,21]
[null,null,null,null,null,null,"Daisytown Boro",17976,null,null,null,null,null,null,null,null,"Daisytown Boro",17976,21]
[null,null,null,null,null,null,"Dale Boro",18000,null,null,null,null,null,null,null,null,"Dale Boro",18000,21]
[null,null,null,null,null,null,"Dean Twp",18432,null,null,null,null,null,null,null,null,"Dean Twp",18432,21]
[null,null,null,null,null,null,"East Carroll Twp",20952,null,null,null,null,null,null,null,null,"East Carroll Twp",20952,21]
[null,null,null,null,null,null,"East Conemaugh Boro",20992,null,null,null,null,null,null,null,null,"East Conemaugh Boro",20992,21]
[null,null,null,null,null,null,"East Taylor Twp",21896,null,null,null,null,null,null,null,null,"East Taylor Twp",21896,21]
[null,null,null,null,null,null,"Ebensburg Boro",22144,null,null,null,null,null,null,null,null,"Ebensburg Boro",22144,21]
[null,null,null,null,null,null,"Ehrenfeld Boro",22712,null,null,null,null,null,null,null,null,"Ehrenfeld Boro",22712,21]
[null,null,null,null,null,null,"Elder Twp",22808,null,null,null,null,null,null,null,null,"Elder Twp",22808,21]
[null,null,null,null,null,null,"Ferndale Boro",25680,null,null,null,null,null,null,null,null,"Ferndale Boro",25680,21]
[null,null,null,null,null,null,"Franklin Boro",27360,null,null,null,null,null,null,null,null,"Franklin Boro",27360,21]
[null,null,null,null,null,null,"Gallitzin Boro",28328,null,null,null,null,null,null,null,null,"Gallitzin Boro",28328,21]
[null,null,null,null,null,null,"Gallitzin Twp",28336,null,null,null,null,null,null,null,null,"Gallitzin Twp",28336,21]
[null,null,null,null,null,null,"Geistown Boro",28720,null,null,null,null,null,null,null,null,"Geistown Boro",28720,21]
[null,null,null,null,null,null,"Hastings Boro",33080,null,null,null,null,null,null,null,null,"Hastings Boro",33080,21]
[null,null,null,null,null,null,"Jackson Twp",37352,null,null,null,null,null,null,null,null,"Jackson Twp",37352,21]
[null,null,null,null,null,null,"Johnstown City",38288,null,null,null,null,null,null,null,null,"Johnstown City",38288,21]
[null,null,null,null,null,null,"Lilly Boro",43248,null,null,null,null,null,null,null,null,"Lilly Boro",43248,21]
[null,null,null,null,null,null,"Lorain Boro",44664,null,null,null,null,null,null,null,null,"Lorain Boro",44664,21]
[null,null,null,null,null,null,"Loretto Boro",44704,null,null,null,null,null,null,null,null,"Loretto Boro",44704,21]
[null,null,null,null,null,null,"Lower Yoder Twp",45160,null,null,null,null,null,null,null,null,"Lower Yoder Twp",45160,21]
[null,null,null,null,null,null,"Middle Taylor Twp",49104,null,null,null,null,null,null,null,null,"Middle Taylor Twp",49104,21]
[null,null,null,null,null,null,"Munster Twp",52360,null,null,null,null,null,null,null,null,"Munster Twp",52360,21]
[null,null,null,null,null,null,"Nanty Glo Boro",52616,null,null,null,null,null,null,null,null,"Nanty Glo Boro",52616,21]
[null,null,null,null,null,null,"Northern Cambria Boro",55000,null,null,null,null,null,null,null,null,"Northern Cambria Boro",55000,21]
[null,null,null,null,null,null,"Patton Boro",58432,null,null,null,null,null,null,null,null,"Patton Boro",58432,21]
[null,null,null,null,null,null,"Portage Boro",62048,null,null,null,null,null,null,null,null,"Portage Boro",62048,21]
[null,null,null,null,null,null,"Portage Twp",62056,null,null,null,null,null,null,null,null,"Portage Twp",62056,21]
[null,null,null,null,null,null,"Reade Twp",63608,null,null,null,null,null,null,null,null,"Reade Twp",63608,21]
[null,null,null,null,null,null,"Richland Twp",64544,null,null,null,null,null,null,null,null,"Richland Twp",64544,21]
[null,null,null,null,null,null,"Sankertown Boro",67920,null,null,null,null,null,null,null,null,"Sankertown Boro",67920,21]
[null,null,null,null,null,null,"Scalp Level Boro",68104,null,null,null,null,null,null,null,null,"Scalp Level Boro",68104,21]
[null,null,null,null,null,null,"South Fork Boro",72168,null,null,null,null,null,null,null,null,"South Fork Boro",72168,21]
[null,null,null,null,null,null,"Southmont Boro",72344,null,null,null,null,null,null,null,null,"Southmont Boro",72344,21]
[null,null,null,null,null,null,"Stonycreek Twp",74432,null,null,null,null,null,null,null,null,"Stonycreek Twp",74432,21]
[null,null,null,null,null,null,"Summerhill Boro",75136,null,null,null,null,null,null,null,null,"Summerhill Boro",75136,21]
[null,null,null,null,null,null,"Summerhill Twp",75144,null,null,null,null,null,null,null,null,"Summerhill Twp",75144,21]
[null,null,null,null,null,null,"Susquehanna Twp",75520,null,null,null,null,null,null,null,null,"Susquehanna Twp",75520,21]
[null,null,null,null,null,null,"Tunnelhill Boro",77808,null,null,null,null,null,null,null,null,"Tunnelhill Boro",77808,21]
[null,null,null,null,null,null,"Upper Yoder Twp",79360,null,null,null,null,null,null,null,null,"Upper Yoder Twp",79360,21]
[null,null,null,null,null,null,"Vintondale Boro",80288,null,null,null,null,null,null,null,null,"Vintondale Boro",80288,21]
[null,null,null,null,null,null,"Washington Twp",81200,null,null,null,null,null,null,null,null,"Washington Twp",81200,21]
[null,null,null,null,null,null,"West Carroll Twp",82688,null,null,null,null,null,null,null,null,"West Carroll Twp",82688,21]
[null,null,null,null,null,null,"Westmont Boro",83584,null,null,null,null,null,null,null,null,"Westmont Boro",83584,21]
[null,null,null,null,null,null,"West Taylor Twp",84080,null,null,null,null,null,null,null,null,"West Taylor Twp",84080,21]
[null,null,null,null,null,null,"White Twp",84448,null,null,null,null,null,null,null,null,"White Twp",84448,21]
[null,null,null,null,null,null,"Wilmore Boro",85528,null,null,null,null,null,null,null,null,"Wilmore Boro",85528,21]
[null,null,null,null,null,null,"Driftwood Boro",19976,null,null,null,null,null,null,null,null,"Driftwood Boro",19976,23]
[null,null,null,null,null,null,"Emporium Boro",23600,null,null,null,null,null,null,null,null,"Emporium Boro",23600,23]
[null,null,null,null,null,null,"Gibson Twp",29008,null,null,null,null,null,null,null,null,"Gibson Twp",29008,23]
[null,null,null,null,null,null,"Grove Twp",31632,null,null,null,null,null,null,null,null,"Grove Twp",31632,23]
[null,null,null,null,null,null,"Lumber Twp",45432,null,null,null,null,null,null,null,null,"Lumber Twp",45432,23]
[null,null,null,null,null,null,"Portage Twp",62064,null,null,null,null,null,null,null,null,"Portage Twp",62064,23]
[null,null,null,null,null,null,"Shippen Twp",70336,null,null,null,null,null,null,null,null,"Shippen Twp",70336,23]
[null,null,null,null,null,null,"Banks Twp",4048,null,null,null,null,null,null,null,null,"Banks Twp",4048,25]
[null,null,null,null,null,null,"Beaver Meadows Boro",4816,null,null,null,null,null,null,null,null,"Beaver Meadows Boro",4816,25]
[null,null,null,null,null,null,"Bowmanstown Boro",7880,null,null,null,null,null,null,null,null,"Bowmanstown Boro",7880,25]
[null,null,null,null,null,null,"East Penn Twp",21664,null,null,null,null,null,null,null,null,"East Penn Twp",21664,25]
[null,null,null,null,null,null,"East Side Boro",21816,null,null,null,null,null,null,null,null,"East Side Boro",21816,25]
[null,null,null,null,null,null,"Franklin Twp",27368,null,null,null,null,null,null,null,null,"Franklin Twp",27368,25]
[null,null,null,null,null,null,"Jim Thorpe Boro",38200,null,null,null,null,null,null,null,null,"Jim Thorpe Boro",38200,25]
[null,null,null,null,null,null,"Kidder Twp",39608,null,null,null,null,null,null,null,null,"Kidder Twp",39608,25]
[null,null,null,null,null,null,"Lansford Boro",41464,null,null,null,null,null,null,null,null,"Lansford Boro",41464,25]
[null,null,null,null,null,null,"Lausanne Twp",41888,null,null,null,null,null,null,null,null,"Lausanne Twp",41888,25]
[null,null,null,null,null,null,"Lehigh Twp",42400,null,null,null,null,null,null,null,null,"Lehigh Twp",42400,25]
[null,null,null,null,null,null,"Lehighton Boro",42472,null,null,null,null,null,null,null,null,"Lehighton Boro",42472,25]
[null,null,null,null,null,null,"Lower Towamensing Twp",45128,null,null,null,null,null,null,null,null,"Lower Towamensing Twp",45128,25]
[null,null,null,null,null,null,"Mahoning Twp",46640,null,null,null,null,null,null,null,null,"Mahoning Twp",46640,25]
[null,null,null,null,null,null,"Nesquehoning Boro",53088,null,null,null,null,null,null,null,null,"Nesquehoning Boro",53088,25]
[null,null,null,null,null,null,"Packer Twp",57504,null,null,null,null,null,null,null,null,"Packer Twp",57504,25]
[null,null,null,null,null,null,"Palmerton Boro",57696,null,null,null,null,null,null,null,null,"Palmerton Boro",57696,25]
[null,null,null,null,null,null,"Parryville Boro",58304,null,null,null,null,null,null,null,null,"Parryville Boro",58304,25]
[null,null,null,null,null,null,"Penn Forest Twp",58968,null,null,null,null,null,null,null,null,"Penn Forest Twp",58968,25]
[null,null,null,null,null,null,"Summit Hill Boro",75248,null,null,null,null,null,null,null,null,"Summit Hill Boro",75248,25]
[null,null,null,null,null,null,"Towamensing Twp",77160,null,null,null,null,null,null,null,null,"Towamensing Twp",77160,25]
[null,null,null,null,null,null,"Weatherly Boro",81856,null,null,null,null,null,null,null,null,"Weatherly Boro",81856,25]
[null,null,null,null,null,null,"Weissport Boro",82080,null,null,null,null,null,null,null,null,"Weissport Boro",82080,25]
[null,null,null,null,null,null,"Bellefonte Boro",5256,null,null,null,null,null,null,null,null,"Bellefonte Boro",5256,27]
[null,null,null,null,null,null,"Benner Twp",5608,null,null,null,null,null,null,null,null,"Benner Twp",5608,27]
[null,null,null,null,null,null,"Boggs Twp",7424,null,null,null,null,null,null,null,null,"Boggs Twp",7424,27]
[null,null,null,null,null,null,"Burnside Twp",10272,null,null,null,null,null,null,null,null,"Burnside Twp",10272,27]
[null,null,null,null,null,null,"Centre Hall Boro",12376,null,null,null,null,null,null,null,null,"Centre Hall Boro",12376,27]
[null,null,null,null,null,null,"College Twp",15136,null,null,null,null,null,null,null,null,"College Twp",15136,27]
[null,null,null,null,null,null,"Curtin Twp",17800,null,null,null,null,null,null,null,null,"Curtin Twp",17800,27]
[null,null,null,null,null,null,"Ferguson Twp",25624,null,null,null,null,null,null,null,null,"Ferguson Twp",25624,27]
[null,null,null,null,null,null,"Gregg Twp",31472,null,null,null,null,null,null,null,null,"Gregg Twp",31472,27]
[null,null,null,null,null,null,"Haines Twp",31960,null,null,null,null,null,null,null,null,"Haines Twp",31960,27]
[null,null,null,null,null,null,"Half Moon Twp",31992,null,null,null,null,null,null,null,null,"Half Moon Twp",31992,27]
[null,null,null,null,null,null,"Harris Twp",32792,null,null,null,null,null,null,null,null,"Harris Twp",32792,27]
[null,null,null,null,null,null,"Howard Boro",35960,null,null,null,null,null,null,null,null,"Howard Boro",35960,27]
[null,null,null,null,null,null,"Howard Twp",35968,null,null,null,null,null,null,null,null,"Howard Twp",35968,27]
[null,null,null,null,null,null,"Huston Twp",36504,null,null,null,null,null,null,null,null,"Huston Twp",36504,27]
[null,null,null,null,null,null,"Liberty Twp",43080,null,null,null,null,null,null,null,null,"Liberty Twp",43080,27]
[null,null,null,null,null,null,"Marion Twp",47456,null,null,null,null,null,null,null,null,"Marion Twp",47456,27]
[null,null,null,null,null,null,"Miles Twp",49360,null,null,null,null,null,null,null,null,"Miles Twp",49360,27]
[null,null,null,null,null,null,"Milesburg Boro",49368,null,null,null,null,null,null,null,null,"Milesburg Boro",49368,27]
[null,null,null,null,null,null,"Millheim Boro",49768,null,null,null,null,null,null,null,null,"Millheim Boro",49768,27]
[null,null,null,null,null,null,"Patton Twp",58440,null,null,null,null,null,null,null,null,"Patton Twp",58440,27]
[null,null,null,null,null,null,"Penn Twp",58800,null,null,null,null,null,null,null,null,"Penn Twp",58800,27]
[null,null,null,null,null,null,"Philipsburg Boro",60008,null,null,null,null,null,null,null,null,"Philipsburg Boro",60008,27]
[null,null,null,null,null,null,"Port Matilda Boro",62280,null,null,null,null,null,null,null,null,"Port Matilda Boro",62280,27]
[null,null,null,null,null,null,"Potter Twp",62360,null,null,null,null,null,null,null,null,"Potter Twp",62360,27]
[null,null,null,null,null,null,"Rush Twp",66736,null,null,null,null,null,null,null,null,"Rush Twp",66736,27]
[null,null,null,null,null,null,"Snow Shoe Boro",71600,null,null,null,null,null,null,null,null,"Snow Shoe Boro",71600,27]
[null,null,null,null,null,null,"Snow Shoe Twp",71608,null,null,null,null,null,null,null,null,"Snow Shoe Twp",71608,27]
[null,null,null,null,null,null,"South Philipsburg Boro",72416,null,null,null,null,null,null,null,null,"South Philipsburg Boro",72416,27]
[null,null,null,null,null,null,"Spring Twp",72832,null,null,null,null,null,null,null,null,"Spring Twp",72832,27]
[null,null,null,null,null,null,"State College Boro",73808,null,null,null,null,null,null,null,null,"State College Boro",73808,27]
[null,null,null,null,null,null,"Taylor Twp",76168,null,null,null,null,null,null,null,null,"Taylor Twp",76168,27]
[null,null,null,null,null,null,"Union Twp",78288,null,null,null,null,null,null,null,null,"Union Twp",78288,27]
[null,null,null,null,null,null,"Unionville Boro",78616,null,null,null,null,null,null,null,null,"Unionville Boro",78616,27]
[null,null,null,null,null,null,"Walker Twp",80552,null,null,null,null,null,null,null,null,"Walker Twp",80552,27]
[null,null,null,null,null,null,"Worth Twp",86544,null,null,null,null,null,null,null,null,"Worth Twp",86544,27]
[null,null,null,null,null,null,"Atglen Boro",3384,null,null,null,null,null,null,null,null,"Atglen Boro",3384,29]
[null,null,null,null,null,null,"Avondale Boro",3656,null,null,null,null,null,null,null,null,"Avondale Boro",3656,29]
[null,null,null,null,null,null,"Birmingham Twp",6544,null,null,null,null,null,null,null,null,"Birmingham Twp",6544,29]
[null,null,null,null,null,null,"Caln Twp",10824,null,null,null,null,null,null,null,null,"Caln Twp",10824,29]
[null,null,null,null,null,null,"Charlestown Twp",12744,null,null,null,null,null,null,null,null,"Charlestown Twp",12744,29]
[null,null,null,null,null,null,"Coatesville City",14712,null,null,null,null,null,null,null,null,"Coatesville City",14712,29]
[null,null,null,null,null,null,"Downingtown Boro",19752,null,null,null,null,null,null,null,null,"Downingtown Boro",19752,29]
[null,null,null,null,null,null,"East Bradford Twp",20824,null,null,null,null,null,null,null,null,"East Bradford Twp",20824,29]
[null,null,null,null,null,null,"East Brandywine Twp",20864,null,null,null,null,null,null,null,null,"East Brandywine Twp",20864,29]
[null,null,null,null,null,null,"East Caln Twp",20920,null,null,null,null,null,null,null,null,"East Caln Twp",20920,29]
[null,null,null,null,null,null,"East Coventry Twp",21008,null,null,null,null,null,null,null,null,"East Coventry Twp",21008,29]
[null,null,null,null,null,null,"East Fallowfield Twp",21104,null,null,null,null,null,null,null,null,"East Fallowfield Twp",21104,29]
[null,null,null,null,null,null,"East Goshen Twp",21192,null,null,null,null,null,null,null,null,"East Goshen Twp",21192,29]
[null,null,null,null,null,null,"East Marlborough Twp",21480,null,null,null,null,null,null,null,null,"East Marlborough Twp",21480,29]
[null,null,null,null,null,null,"East Nantmeal Twp",21576,null,null,null,null,null,null,null,null,"East Nantmeal Twp",21576,29]
[null,null,null,null,null,null,"East Nottingham Twp",21624,null,null,null,null,null,null,null,null,"East Nottingham Twp",21624,29]
[null,null,null,null,null,null,"East Pikeland Twp",21696,null,null,null,null,null,null,null,null,"East Pikeland Twp",21696,29]
[null,null,null,null,null,null,"Easttown Twp",21928,null,null,null,null,null,null,null,null,"Easttown Twp",21928,29]
[null,null,null,null,null,null,"East Vincent Twp",22000,null,null,null,null,null,null,null,null,"East Vincent Twp",22000,29]
[null,null,null,null,null,null,"East Whiteland Twp",22056,null,null,null,null,null,null,null,null,"East Whiteland Twp",22056,29]
[null,null,null,null,null,null,"Elk Twp",23032,null,null,null,null,null,null,null,null,"Elk Twp",23032,29]
[null,null,null,null,null,null,"Elverson Boro",23440,null,null,null,null,null,null,null,null,"Elverson Boro",23440,29]
[null,null,null,null,null,null,"Franklin Twp",27376,null,null,null,null,null,null,null,null,"Franklin Twp",27376,29]
[null,null,null,null,null,null,"Highland Twp",34448,null,null,null,null,null,null,null,null,"Highland Twp",34448,29]
[null,null,null,null,null,null,"Honey Brook Boro",35528,null,null,null,null,null,null,null,null,"Honey Brook Boro",35528,29]
[null,null,null,null,null,null,"Honey Brook Twp",35536,null,null,null,null,null,null,null,null,"Honey Brook Twp",35536,29]
[null,null,null,null,null,null,"Kennett Twp",39344,null,null,null,null,null,null,null,null,"Kennett Twp",39344,29]
[null,null,null,null,null,null,"Kennett Square Boro",39352,null,null,null,null,null,null,null,null,"Kennett Square Boro",39352,29]
[null,null,null,null,null,null,"London Britain Twp",44440,null,null,null,null,null,null,null,null,"London Britain Twp",44440,29]
[null,null,null,null,null,null,"Londonderry Twp",44456,null,null,null,null,null,null,null,null,"Londonderry Twp",44456,29]
[null,null,null,null,null,null,"London Grove Twp",44480,null,null,null,null,null,null,null,null,"London Grove Twp",44480,29]
[null,null,null,null,null,null,"Lower Oxford Twp",45040,null,null,null,null,null,null,null,null,"Lower Oxford Twp",45040,29]
[null,null,null,null,null,null,"Malvern Boro",46792,null,null,null,null,null,null,null,null,"Malvern Boro",46792,29]
[null,null,null,null,null,null,"Modena Boro",50232,null,null,null,null,null,null,null,null,"Modena Boro",50232,29]
[null,null,null,null,null,null,"New Garden Twp",53608,null,null,null,null,null,null,null,null,"New Garden Twp",53608,29]
[null,null,null,null,null,null,"Newlin Twp",53784,null,null,null,null,null,null,null,null,"Newlin Twp",53784,29]
[null,null,null,null,null,null,"New London Twp",53816,null,null,null,null,null,null,null,null,"New London Twp",53816,29]
[null,null,null,null,null,null,"North Coventry Twp",54936,null,null,null,null,null,null,null,null,"North Coventry Twp",54936,29]
[null,null,null,null,null,null,"Oxford Boro",57480,null,null,null,null,null,null,null,null,"Oxford Boro",57480,29]
[null,null,null,null,null,null,"Parkesburg Boro",58032,null,null,null,null,null,null,null,null,"Parkesburg Boro",58032,29]
[null,null,null,null,null,null,"Penn Twp",58808,null,null,null,null,null,null,null,null,"Penn Twp",58808,29]
[null,null,null,null,null,null,"Pennsbury Twp",59136,null,null,null,null,null,null,null,null,"Pennsbury Twp",59136,29]
[null,null,null,null,null,null,"Phoenixville Boro",60120,null,null,null,null,null,null,null,null,"Phoenixville Boro",60120,29]
[null,null,null,null,null,null,"Pocopson Twp",61800,null,null,null,null,null,null,null,null,"Pocopson Twp",61800,29]
[null,null,null,null,null,null,"Sadsbury Twp",67080,null,null,null,null,null,null,null,null,"Sadsbury Twp",67080,29]
[null,null,null,null,null,null,"Schuylkill Twp",68288,null,null,null,null,null,null,null,null,"Schuylkill Twp",68288,29]
[null,null,null,null,null,null,"South Coatesville Boro",72072,null,null,null,null,null,null,null,null,"South Coatesville Boro",72072,29]
[null,null,null,null,null,null,"South Coventry Twp",72088,null,null,null,null,null,null,null,null,"South Coventry Twp",72088,29]
[null,null,null,null,null,null,"Spring City Boro",72920,null,null,null,null,null,null,null,null,"Spring City Boro",72920,29]
[null,null,null,null,null,null,"Thornbury Twp",76568,null,null,null,null,null,null,null,null,"Thornbury Twp",76568,29]
[null,null,null,null,null,null,"Tredyffrin Twp",77344,null,null,null,null,null,null,null,null,"Tredyffrin Twp",77344,29]
[null,null,null,null,null,null,"Upper Oxford Twp",79208,null,null,null,null,null,null,null,null,"Upper Oxford Twp",79208,29]
[null,null,null,null,null,null,"Upper Uwchlan Twp",79352,null,null,null,null,null,null,null,null,"Upper Uwchlan Twp",79352,29]
[null,null,null,null,null,null,"Uwchlan Twp",79480,null,null,null,null,null,null,null,null,"Uwchlan Twp",79480,29]
[null,null,null,null,null,null,"Valley Twp",79544,null,null,null,null,null,null,null,null,"Valley Twp",79544,29]
[null,null,null,null,null,null,"Wallace Twp",80616,null,null,null,null,null,null,null,null,"Wallace Twp",80616,29]
[null,null,null,null,null,null,"Warwick Twp",81160,null,null,null,null,null,null,null,null,"Warwick Twp",81160,29]
[null,null,null,null,null,null,"West Bradford Twp",82544,null,null,null,null,null,null,null,null,"West Bradford Twp",82544,29]
[null,null,null,null,null,null,"West Brandywine Twp",82576,null,null,null,null,null,null,null,null,"West Brandywine Twp",82576,29]
[null,null,null,null,null,null,"West Caln Twp",82664,null,null,null,null,null,null,null,null,"West Caln Twp",82664,29]
[null,null,null,null,null,null,"West Chester Boro",82704,null,null,null,null,null,null,null,null,"West Chester Boro",82704,29]
[null,null,null,null,null,null,"West Fallowfield Twp",82936,null,null,null,null,null,null,null,null,"West Fallowfield Twp",82936,29]
[null,null,null,null,null,null,"West Goshen Twp",83080,null,null,null,null,null,null,null,null,"West Goshen Twp",83080,29]
[null,null,null,null,null,null,"West Grove Boro",83104,null,null,null,null,null,null,null,null,"West Grove Boro",83104,29]
[null,null,null,null,null,null,"West Marlborough Twp",83464,null,null,null,null,null,null,null,null,"West Marlborough Twp",83464,29]
[null,null,null,null,null,null,"West Nantmeal Twp",83664,null,null,null,null,null,null,null,null,"West Nantmeal Twp",83664,29]
[null,null,null,null,null,null,"West Nottingham Twp",83712,null,null,null,null,null,null,null,null,"West Nottingham Twp",83712,29]
[null,null,null,null,null,null,"West Pikeland Twp",83832,null,null,null,null,null,null,null,null,"West Pikeland Twp",83832,29]
[null,null,null,null,null,null,"West Sadsbury Twp",83968,null,null,null,null,null,null,null,null,"West Sadsbury Twp",83968,29]
[null,null,null,null,null,null,"Westtown Twp",84104,null,null,null,null,null,null,null,null,"Westtown Twp",84104,29]
[null,null,null,null,null,null,"West Vincent Twp",84160,null,null,null,null,null,null,null,null,"West Vincent Twp",84160,29]
[null,null,null,null,null,null,"West Whiteland Twp",84192,null,null,null,null,null,null,null,null,"West Whiteland Twp",84192,29]
[null,null,null,null,null,null,"Willistown Twp",85352,null,null,null,null,null,null,null,null,"Willistown Twp",85352,29]
[null,null,null,null,null,null,"Ashland Twp",3248,null,null,null,null,null,null,null,null,"Ashland Twp",3248,31]
[null,null,null,null,null,null,"Beaver Twp",4696,null,null,null,null,null,null,null,null,"Beaver Twp",4696,31]
[null,null,null,null,null,null,"Brady Twp",8112,null,null,null,null,null,null,null,null,"Brady Twp",8112,31]
[null,null,null,null,null,null,"Callensburg Boro",10792,null,null,null,null,null,null,null,null,"Callensburg Boro",10792,31]
[null,null,null,null,null,null,"Clarion Boro",13800,null,null,null,null,null,null,null,null,"Clarion Boro",13800,31]
[null,null,null,null,null,null,"Clarion Twp",13808,null,null,null,null,null,null,null,null,"Clarion Twp",13808,31]
[null,null,null,null,null,null,"East Brady Boro",20840,null,null,null,null,null,null,null,null,"East Brady Boro",20840,31]
[null,null,null,null,null,null,"Elk Twp",23040,null,null,null,null,null,null,null,null,"Elk Twp",23040,31]
[null,null,null,null,null,null,"Farmington Twp",25272,null,null,null,null,null,null,null,null,"Farmington Twp",25272,31]
[null,null,null,null,null,null,"Foxburg Boro",27112,null,null,null,null,null,null,null,null,"Foxburg Boro",27112,31]
[null,null,null,null,null,null,"Hawthorn Boro",33216,null,null,null,null,null,null,null,null,"Hawthorn Boro",33216,31]
[null,null,null,null,null,null,"Highland Twp",34456,null,null,null,null,null,null,null,null,"Highland Twp",34456,31]
[null,null,null,null,null,null,"Knox Boro",40272,null,null,null,null,null,null,null,null,"Knox Boro",40272,31]
[null,null,null,null,null,null,"Knox Twp",40288,null,null,null,null,null,null,null,null,"Knox Twp",40288,31]
[null,null,null,null,null,null,"Licking Twp",43192,null,null,null,null,null,null,null,null,"Licking Twp",43192,31]
[null,null,null,null,null,null,"Limestone Twp",43344,null,null,null,null,null,null,null,null,"Limestone Twp",43344,31]
[null,null,null,null,null,null,"Madison Twp",46464,null,null,null,null,null,null,null,null,"Madison Twp",46464,31]
[null,null,null,null,null,null,"Millcreek Twp",49536,null,null,null,null,null,null,null,null,"Millcreek Twp",49536,31]
[null,null,null,null,null,null,"Monroe Twp",50464,null,null,null,null,null,null,null,null,"Monroe Twp",50464,31]
[null,null,null,null,null,null,"New Bethlehem Boro",53248,null,null,null,null,null,null,null,null,"New Bethlehem Boro",53248,31]
[null,null,null,null,null,null,"Paint Twp",57536,null,null,null,null,null,null,null,null,"Paint Twp",57536,31]
[null,null,null,null,null,null,"Perry Twp",59456,null,null,null,null,null,null,null,null,"Perry Twp",59456,31]
[null,null,null,null,null,null,"Piney Twp",60648,null,null,null,null,null,null,null,null,"Piney Twp",60648,31]
[null,null,null,null,null,null,"Porter Twp",62144,null,null,null,null,null,null,null,null,"Porter Twp",62144,31]
[null,null,null,null,null,null,"Redbank Twp",63728,null,null,null,null,null,null,null,null,"Redbank Twp",63728,31]
[null,null,null,null,null,null,"Richland Twp",64552,null,null,null,null,null,null,null,null,"Richland Twp",64552,31]
[null,null,null,null,null,null,"Rimersburg Boro",64904,null,null,null,null,null,null,null,null,"Rimersburg Boro",64904,31]
[null,null,null,null,null,null,"St Petersburg Boro",67384,null,null,null,null,null,null,null,null,"St Petersburg Boro",67384,31]
[null,null,null,null,null,null,"Salem Twp",67432,null,null,null,null,null,null,null,null,"Salem Twp",67432,31]
[null,null,null,null,null,null,"Shippenville Boro",70368,null,null,null,null,null,null,null,null,"Shippenville Boro",70368,31]
[null,null,null,null,null,null,"Sligo Boro",71176,null,null,null,null,null,null,null,null,"Sligo Boro",71176,31]
[null,null,null,null,null,null,"Strattanville Boro",74728,null,null,null,null,null,null,null,null,"Strattanville Boro",74728,31]
[null,null,null,null,null,null,"Toby Twp",76928,null,null,null,null,null,null,null,null,"Toby Twp",76928,31]
[null,null,null,null,null,null,"Washington Twp",81208,null,null,null,null,null,null,null,null,"Washington Twp",81208,31]
[null,null,null,null,null,null,"Beccaria Twp",4888,null,null,null,null,null,null,null,null,"Beccaria Twp",4888,33]
[null,null,null,null,null,null,"Bell Twp",5192,null,null,null,null,null,null,null,null,"Bell Twp",5192,33]
[null,null,null,null,null,null,"Bigler Twp",6288,null,null,null,null,null,null,null,null,"Bigler Twp",6288,33]
[null,null,null,null,null,null,"Bloom Twp",7008,null,null,null,null,null,null,null,null,"Bloom Twp",7008,33]
[null,null,null,null,null,null,"Boggs Twp",7432,null,null,null,null,null,null,null,null,"Boggs Twp",7432,33]
[null,null,null,null,null,null,"Bradford Twp",8032,null,null,null,null,null,null,null,null,"Bradford Twp",8032,33]
[null,null,null,null,null,null,"Brady Twp",8120,null,null,null,null,null,null,null,null,"Brady Twp",8120,33]
[null,null,null,null,null,null,"Brisbin Boro",8744,null,null,null,null,null,null,null,null,"Brisbin Boro",8744,33]
[null,null,null,null,null,null,"Burnside Boro",10280,null,null,null,null,null,null,null,null,"Burnside Boro",10280,33]
[null,null,null,null,null,null,"Burnside Twp",10288,null,null,null,null,null,null,null,null,"Burnside Twp",10288,33]
[null,null,null,null,null,null,"Chest Twp",13200,null,null,null,null,null,null,null,null,"Chest Twp",13200,33]
[null,null,null,null,null,null,"Chester Hill Boro",13240,null,null,null,null,null,null,null,null,"Chester Hill Boro",13240,33]
[null,null,null,null,null,null,"Clearfield Boro",14064,null,null,null,null,null,null,null,null,"Clearfield Boro",14064,33]
[null,null,null,null,null,null,"Coalport Boro",14656,null,null,null,null,null,null,null,null,"Coalport Boro",14656,33]
[null,null,null,null,null,null,"Cooper Twp",16040,null,null,null,null,null,null,null,null,"Cooper Twp",16040,33]
[null,null,null,null,null,null,"Covington Twp",16656,null,null,null,null,null,null,null,null,"Covington Twp",16656,33]
[null,null,null,null,null,null,"Curwensville Boro",17840,null,null,null,null,null,null,null,null,"Curwensville Boro",17840,33]
[null,null,null,null,null,null,"Decatur Twp",18456,null,null,null,null,null,null,null,null,"Decatur Twp",18456,33]
[null,null,null,null,null,null,"Dubois City",20136,null,null,null,null,null,null,null,null,"Dubois City",20136,33]
[null,null,null,null,null,null,"Falls Creek Boro",25136,null,null,null,null,null,null,null,null,"Falls Creek Boro",25136,33]
[null,null,null,null,null,null,"Ferguson Twp",25632,null,null,null,null,null,null,null,null,"Ferguson Twp",25632,33]
[null,null,null,null,null,null,"Girard Twp",29224,null,null,null,null,null,null,null,null,"Girard Twp",29224,33]
[null,null,null,null,null,null,"Glen Hope Boro",29632,null,null,null,null,null,null,null,null,"Glen Hope Boro",29632,33]
[null,null,null,null,null,null,"Goshen Twp",30152,null,null,null,null,null,null,null,null,"Goshen Twp",30152,33]
[null,null,null,null,null,null,"Graham Twp",30272,null,null,null,null,null,null,null,null,"Graham Twp",30272,33]
[null,null,null,null,null,null,"Grampian Boro",30280,null,null,null,null,null,null,null,null,"Grampian Boro",30280,33]
[null,null,null,null,null,null,"Greenwood Twp",31376,null,null,null,null,null,null,null,null,"Greenwood Twp",31376,33]
[null,null,null,null,null,null,"Gulich Twp",31752,null,null,null,null,null,null,null,null,"Gulich Twp",31752,33]
[null,null,null,null,null,null,"Houtzdale Boro",35928,null,null,null,null,null,null,null,null,"Houtzdale Boro",35928,33]
[null,null,null,null,null,null,"Huston Twp",36512,null,null,null,null,null,null,null,null,"Huston Twp",36512,33]
[null,null,null,null,null,null,"Irvona Boro",37192,null,null,null,null,null,null,null,null,"Irvona Boro",37192,33]
[null,null,null,null,null,null,"Jordan Twp",38432,null,null,null,null,null,null,null,null,"Jordan Twp",38432,33]
[null,null,null,null,null,null,"Karthaus Twp",38784,null,null,null,null,null,null,null,null,"Karthaus Twp",38784,33]
[null,null,null,null,null,null,"Knox Twp",40296,null,null,null,null,null,null,null,null,"Knox Twp",40296,33]
[null,null,null,null,null,null,"Lawrence Twp",41952,null,null,null,null,null,null,null,null,"Lawrence Twp",41952,33]
[null,null,null,null,null,null,"Lumber City Boro",45448,null,null,null,null,null,null,null,null,"Lumber City Boro",45448,33]
[null,null,null,null,null,null,"Mahaffey Boro",46568,null,null,null,null,null,null,null,null,"Mahaffey Boro",46568,33]
[null,null,null,null,null,null,"Morris Twp",51056,null,null,null,null,null,null,null,null,"Morris Twp",51056,33]
[null,null,null,null,null,null,"Newburg Boro",53336,null,null,null,null,null,null,null,null,"Newburg Boro",53336,33]
[null,null,null,null,null,null,"New Washington Boro",54344,null,null,null,null,null,null,null,null,"New Washington Boro",54344,33]
[null,null,null,null,null,null,"Osceola Mills Boro",57232,null,null,null,null,null,null,null,null,"Osceola Mills Boro",57232,33]
[null,null,null,null,null,null,"Penn Twp",58816,null,null,null,null,null,null,null,null,"Penn Twp",58816,33]
[null,null,null,null,null,null,"Pike Twp",60192,null,null,null,null,null,null,null,null,"Pike Twp",60192,33]
[null,null,null,null,null,null,"Pine Twp",60288,null,null,null,null,null,null,null,null,"Pine Twp",60288,33]
[null,null,null,null,null,null,"Ramey Boro",63360,null,null,null,null,null,null,null,null,"Ramey Boro",63360,33]
[null,null,null,null,null,null,"Sandy Twp",67792,null,null,null,null,null,null,null,null,"Sandy Twp",67792,33]
[null,null,null,null,null,null,"Troutville Boro",77568,null,null,null,null,null,null,null,null,"Troutville Boro",77568,33]
[null,null,null,null,null,null,"Union Twp",78296,null,null,null,null,null,null,null,null,"Union Twp",78296,33]
[null,null,null,null,null,null,"Wallaceton Boro",80640,null,null,null,null,null,null,null,null,"Wallaceton Boro",80640,33]
[null,null,null,null,null,null,"Westover Boro",83736,null,null,null,null,null,null,null,null,"Westover Boro",83736,33]
[null,null,null,null,null,null,"Woodward Twp",86440,null,null,null,null,null,null,null,null,"Woodward Twp",86440,33]
[null,null,null,null,null,null,"Allison Twp",2032,null,null,null,null,null,null,null,null,"Allison Twp",2032,35]
[null,null,null,null,null,null,"Avis Boro",3632,null,null,null,null,null,null,null,null,"Avis Boro",3632,35]
[null,null,null,null,null,null,"Bald Eagle Twp",3912,null,null,null,null,null,null,null,null,"Bald Eagle Twp",3912,35]
[null,null,null,null,null,null,"Beech Creek Boro",4984,null,null,null,null,null,null,null,null,"Beech Creek Boro",4984,35]
[null,null,null,null,null,null,"Beech Creek Twp",4992,null,null,null,null,null,null,null,null,"Beech Creek Twp",4992,35]
[null,null,null,null,null,null,"Castanea Twp",11640,null,null,null,null,null,null,null,null,"Castanea Twp",11640,35]
[null,null,null,null,null,null,"Chapman Twp",12640,null,null,null,null,null,null,null,null,"Chapman Twp",12640,35]
[null,null,null,null,null,null,"Colebrook Twp",14960,null,null,null,null,null,null,null,null,"Colebrook Twp",14960,35]
[null,null,null,null,null,null,"Crawford Twp",16976,null,null,null,null,null,null,null,null,"Crawford Twp",16976,35]
[null,null,null,null,null,null,"Dunnstable Twp",20408,null,null,null,null,null,null,null,null,"Dunnstable Twp",20408,35]
[null,null,null,null,null,null,"East Keating Twp",21328,null,null,null,null,null,null,null,null,"East Keating Twp",21328,35]
[null,null,null,null,null,null,"Flemington Boro",26296,null,null,null,null,null,null,null,null,"Flemington Boro",26296,35]
[null,null,null,null,null,null,"Gallagher Twp",28296,null,null,null,null,null,null,null,null,"Gallagher Twp",28296,35]
[null,null,null,null,null,null,"Greene Twp",30928,null,null,null,null,null,null,null,null,"Greene Twp",30928,35]
[null,null,null,null,null,null,"Grugan Twp",31680,null,null,null,null,null,null,null,null,"Grugan Twp",31680,35]
[null,null,null,null,null,null,"Lamar Twp",41112,null,null,null,null,null,null,null,null,"Lamar Twp",41112,35]
[null,null,null,null,null,null,"Leidy Twp",42544,null,null,null,null,null,null,null,null,"Leidy Twp",42544,35]
[null,null,null,null,null,null,"Lock Haven City",44128,null,null,null,null,null,null,null,null,"Lock Haven City",44128,35]
[null,null,null,null,null,null,"Logan Twp",44336,null,null,null,null,null,null,null,null,"Logan Twp",44336,35]
[null,null,null,null,null,null,"Loganton Boro",44400,null,null,null,null,null,null,null,null,"Loganton Boro",44400,35]
[null,null,null,null,null,null,"Mill Hall Boro",49760,null,null,null,null,null,null,null,null,"Mill Hall Boro",49760,35]
[null,null,null,null,null,null,"Noyes Twp",55744,null,null,null,null,null,null,null,null,"Noyes Twp",55744,35]
[null,null,null,null,null,null,"Pine Creek Twp",60360,null,null,null,null,null,null,null,null,"Pine Creek Twp",60360,35]
[null,null,null,null,null,null,"Porter Twp",62152,null,null,null,null,null,null,null,null,"Porter Twp",62152,35]
[null,null,null,null,null,null,"Renovo Boro",64200,null,null,null,null,null,null,null,null,"Renovo Boro",64200,35]
[null,null,null,null,null,null,"South Renovo Boro",72448,null,null,null,null,null,null,null,null,"South Renovo Boro",72448,35]
[null,null,null,null,null,null,"Wayne Twp",81728,null,null,null,null,null,null,null,null,"Wayne Twp",81728,35]
[null,null,null,null,null,null,"West Keating Twp",83240,null,null,null,null,null,null,null,null,"West Keating Twp",83240,35]
[null,null,null,null,null,null,"Woodward Twp",86448,null,null,null,null,null,null,null,null,"Woodward Twp",86448,35]
[null,null,null,null,null,null,"Beaver Twp",4704,null,null,null,null,null,null,null,null,"Beaver Twp",4704,37]
[null,null,null,null,null,null,"Benton Boro",5680,null,null,null,null,null,null,null,null,"Benton Boro",5680,37]
[null,null,null,null,null,null,"Benton Twp",5688,null,null,null,null,null,null,null,null,"Benton Twp",5688,37]
[null,null,null,null,null,null,"Berwick Boro",5888,null,null,null,null,null,null,null,null,"Berwick Boro",5888,37]
[null,null,null,null,null,null,"Bloomsburg Town",7128,null,null,null,null,null,null,null,null,"Bloomsburg Town",7128,37]
[null,null,null,null,null,null,"Briar Creek Boro",8472,null,null,null,null,null,null,null,null,"Briar Creek Boro",8472,37]
[null,null,null,null,null,null,"Briar Creek Twp",8480,null,null,null,null,null,null,null,null,"Briar Creek Twp",8480,37]
[null,null,null,null,null,null,"Catawissa Boro",11736,null,null,null,null,null,null,null,null,"Catawissa Boro",11736,37]
[null,null,null,null,null,null,"Catawissa Twp",11744,null,null,null,null,null,null,null,null,"Catawissa Twp",11744,37]
[null,null,null,null,null,null,"Centralia Boro",12312,null,null,null,null,null,null,null,null,"Centralia Boro",12312,37]
[null,null,null,null,null,null,"Cleveland Twp",14184,null,null,null,null,null,null,null,null,"Cleveland Twp",14184,37]
[null,null,null,null,null,null,"Conyngham Twp",15880,null,null,null,null,null,null,null,null,"Conyngham Twp",15880,37]
[null,null,null,null,null,null,"Fishing Creek Twp",26056,null,null,null,null,null,null,null,null,"Fishing Creek Twp",26056,37]
[null,null,null,null,null,null,"Franklin Twp",27384,null,null,null,null,null,null,null,null,"Franklin Twp",27384,37]
[null,null,null,null,null,null,"Greenwood Twp",31392,null,null,null,null,null,null,null,null,"Greenwood Twp",31392,37]
[null,null,null,null,null,null,"Hemlock Twp",33760,null,null,null,null,null,null,null,null,"Hemlock Twp",33760,37]
[null,null,null,null,null,null,"Jackson Twp",37360,null,null,null,null,null,null,null,null,"Jackson Twp",37360,37]
[null,null,null,null,null,null,"Locust Twp",44208,null,null,null,null,null,null,null,null,"Locust Twp",44208,37]
[null,null,null,null,null,null,"Madison Twp",46472,null,null,null,null,null,null,null,null,"Madison Twp",46472,37]
[null,null,null,null,null,null,"Main Twp",46688,null,null,null,null,null,null,null,null,"Main Twp",46688,37]
[null,null,null,null,null,null,"Mifflin Twp",49256,null,null,null,null,null,null,null,null,"Mifflin Twp",49256,37]
[null,null,null,null,null,null,"Millville Boro",49944,null,null,null,null,null,null,null,null,"Millville Boro",49944,37]
[null,null,null,null,null,null,"Montour Twp",50704,null,null,null,null,null,null,null,null,"Montour Twp",50704,37]
[null,null,null,null,null,null,"Mt Pleasant Twp",51792,null,null,null,null,null,null,null,null,"Mt Pleasant Twp",51792,37]
[null,null,null,null,null,null,"North Centre Twp",54880,null,null,null,null,null,null,null,null,"North Centre Twp",54880,37]
[null,null,null,null,null,null,"Orange Twp",56896,null,null,null,null,null,null,null,null,"Orange Twp",56896,37]
[null,null,null,null,null,null,"Orangeville Boro",56912,null,null,null,null,null,null,null,null,"Orangeville Boro",56912,37]
[null,null,null,null,null,null,"Pine Twp",60304,null,null,null,null,null,null,null,null,"Pine Twp",60304,37]
[null,null,null,null,null,null,"Roaring Creek Twp",65240,null,null,null,null,null,null,null,null,"Roaring Creek Twp",65240,37]
[null,null,null,null,null,null,"Scott Twp",68392,null,null,null,null,null,null,null,null,"Scott Twp",68392,37]
[null,null,null,null,null,null,"South Centre Twp",72040,null,null,null,null,null,null,null,null,"South Centre Twp",72040,37]
[null,null,null,null,null,null,"Stillwater Boro",74184,null,null,null,null,null,null,null,null,"Stillwater Boro",74184,37]
[null,null,null,null,null,null,"Sugarloaf Twp",75048,null,null,null,null,null,null,null,null,"Sugarloaf Twp",75048,37]
[null,null,null,null,null,null,"Athens Twp",3408,null,null,null,null,null,null,null,null,"Athens Twp",3408,39]
[null,null,null,null,null,null,"Beaver Twp",4720,null,null,null,null,null,null,null,null,"Beaver Twp",4720,39]
[null,null,null,null,null,null,"Bloomfield Twp",7032,null,null,null,null,null,null,null,null,"Bloomfield Twp",7032,39]
[null,null,null,null,null,null,"Blooming Valley Boro",7120,null,null,null,null,null,null,null,null,"Blooming Valley Boro",7120,39]
[null,null,null,null,null,null,"Cambridge Twp",10904,null,null,null,null,null,null,null,null,"Cambridge Twp",10904,39]
[null,null,null,null,null,null,"Cambridge Springs Boro",10912,null,null,null,null,null,null,null,null,"Cambridge Springs Boro",10912,39]
[null,null,null,null,null,null,"Centerville Boro",12184,null,null,null,null,null,null,null,null,"Centerville Boro",12184,39]
[null,null,null,null,null,null,"Cochranton Boro",14800,null,null,null,null,null,null,null,null,"Cochranton Boro",14800,39]
[null,null,null,null,null,null,"Conneaut Twp",15728,null,null,null,null,null,null,null,null,"Conneaut Twp",15728,39]
[null,null,null,null,null,null,"Conneaut Lake Boro",15744,null,null,null,null,null,null,null,null,"Conneaut Lake Boro",15744,39]
[null,null,null,null,null,null,"Conneautville Boro",15760,null,null,null,null,null,null,null,null,"Conneautville Boro",15760,39]
[null,null,null,null,null,null,"Cussewago Twp",17848,null,null,null,null,null,null,null,null,"Cussewago Twp",17848,39]
[null,null,null,null,null,null,"East Fairfield Twp",21096,null,null,null,null,null,null,null,null,"East Fairfield Twp",21096,39]
[null,null,null,null,null,null,"East Fallowfield Twp",21112,null,null,null,null,null,null,null,null,"East Fallowfield Twp",21112,39]
[null,null,null,null,null,null,"East Mead Twp",21504,null,null,null,null,null,null,null,null,"East Mead Twp",21504,39]
[null,null,null,null,null,null,"Fairfield Twp",24568,null,null,null,null,null,null,null,null,"Fairfield Twp",24568,39]
[null,null,null,null,null,null,"Greenwood Twp",31400,null,null,null,null,null,null,null,null,"Greenwood Twp",31400,39]
[null,null,null,null,null,null,"Hayfield Twp",33256,null,null,null,null,null,null,null,null,"Hayfield Twp",33256,39]
[null,null,null,null,null,null,"Hydetown Boro",36616,null,null,null,null,null,null,null,null,"Hydetown Boro",36616,39]
[null,null,null,null,null,null,"Linesville Boro",43656,null,null,null,null,null,null,null,null,"Linesville Boro",43656,39]
[null,null,null,null,null,null,"Meadville City",48360,null,null,null,null,null,null,null,null,"Meadville City",48360,39]
[null,null,null,null,null,null,"North Shenango Twp",55408,null,null,null,null,null,null,null,null,"North Shenango Twp",55408,39]
[null,null,null,null,null,null,"Oil Creek Twp",56464,null,null,null,null,null,null,null,null,"Oil Creek Twp",56464,39]
[null,null,null,null,null,null,"Pine Twp",60312,null,null,null,null,null,null,null,null,"Pine Twp",60312,39]
[null,null,null,null,null,null,"Randolph Twp",63400,null,null,null,null,null,null,null,null,"Randolph Twp",63400,39]
[null,null,null,null,null,null,"Richmond Twp",64600,null,null,null,null,null,null,null,null,"Richmond Twp",64600,39]
[null,null,null,null,null,null,"Rockdale Twp",65440,null,null,null,null,null,null,null,null,"Rockdale Twp",65440,39]
[null,null,null,null,null,null,"Rome Twp",65960,null,null,null,null,null,null,null,null,"Rome Twp",65960,39]
[null,null,null,null,null,null,"Sadsbury Twp",67088,null,null,null,null,null,null,null,null,"Sadsbury Twp",67088,39]
[null,null,null,null,null,null,"Saegertown Boro",67120,null,null,null,null,null,null,null,null,"Saegertown Boro",67120,39]
[null,null,null,null,null,null,"South Shenango Twp",72472,null,null,null,null,null,null,null,null,"South Shenango Twp",72472,39]
[null,null,null,null,null,null,"Sparta Twp",72688,null,null,null,null,null,null,null,null,"Sparta Twp",72688,39]
[null,null,null,null,null,null,"Spartansburg Boro",72704,null,null,null,null,null,null,null,null,"Spartansburg Boro",72704,39]
[null,null,null,null,null,null,"Spring Twp",72840,null,null,null,null,null,null,null,null,"Spring Twp",72840,39]
[null,null,null,null,null,null,"Springboro Boro",72872,null,null,null,null,null,null,null,null,"Springboro Boro",72872,39]
[null,null,null,null,null,null,"Steuben Twp",74016,null,null,null,null,null,null,null,null,"Steuben Twp",74016,39]
[null,null,null,null,null,null,"Summerhill Twp",75160,null,null,null,null,null,null,null,null,"Summerhill Twp",75160,39]
[null,null,null,null,null,null,"Summit Twp",75200,null,null,null,null,null,null,null,null,"Summit Twp",75200,39]
[null,null,null,null,null,null,"Titusville City",76904,null,null,null,null,null,null,null,null,"Titusville City",76904,39]
[null,null,null,null,null,null,"Townville Boro",77232,null,null,null,null,null,null,null,null,"Townville Boro",77232,39]
[null,null,null,null,null,null,"Troy Twp",77616,null,null,null,null,null,null,null,null,"Troy Twp",77616,39]
[null,null,null,null,null,null,"Union Twp",78304,null,null,null,null,null,null,null,null,"Union Twp",78304,39]
[null,null,null,null,null,null,"Venango Boro",79912,null,null,null,null,null,null,null,null,"Venango Boro",79912,39]
[null,null,null,null,null,null,"Venango Twp",79920,null,null,null,null,null,null,null,null,"Venango Twp",79920,39]
[null,null,null,null,null,null,"Vernon Twp",80000,null,null,null,null,null,null,null,null,"Vernon Twp",80000,39]
[null,null,null,null,null,null,"Wayne Twp",81736,null,null,null,null,null,null,null,null,"Wayne Twp",81736,39]
[null,null,null,null,null,null,"West Fallowfield Twp",82944,null,null,null,null,null,null,null,null,"West Fallowfield Twp",82944,39]
[null,null,null,null,null,null,"West Mead Twp",83480,null,null,null,null,null,null,null,null,"West Mead Twp",83480,39]
[null,null,null,null,null,null,"West Shenango Twp",84008,null,null,null,null,null,null,null,null,"West Shenango Twp",84008,39]
[null,null,null,null,null,null,"Woodcock Boro",86160,null,null,null,null,null,null,null,null,"Woodcock Boro",86160,39]
[null,null,null,null,null,null,"Woodcock Twp",86168,null,null,null,null,null,null,null,null,"Woodcock Twp",86168,39]
[null,null,null,null,null,null,"Camp Hill Boro",11000,null,null,null,null,null,null,null,null,"Camp Hill Boro",11000,41]
[null,null,null,null,null,null,"Carlisle Boro",11272,null,null,null,null,null,null,null,null,"Carlisle Boro",11272,41]
[null,null,null,null,null,null,"Cooke Twp",15920,null,null,null,null,null,null,null,null,"Cooke Twp",15920,41]
[null,null,null,null,null,null,"Dickinson Twp",19144,null,null,null,null,null,null,null,null,"Dickinson Twp",19144,41]
[null,null,null,null,null,null,"East Pennsboro Twp",21680,null,null,null,null,null,null,null,null,"East Pennsboro Twp",21680,41]
[null,null,null,null,null,null,"Hampden Twp",32296,null,null,null,null,null,null,null,null,"Hampden Twp",32296,41]
[null,null,null,null,null,null,"Hopewell Twp",35672,null,null,null,null,null,null,null,null,"Hopewell Twp",35672,41]
[null,null,null,null,null,null,"Lemoyne Boro",42648,null,null,null,null,null,null,null,null,"Lemoyne Boro",42648,41]
[null,null,null,null,null,null,"Lower Allen Twp",44832,null,null,null,null,null,null,null,null,"Lower Allen Twp",44832,41]
[null,null,null,null,null,null,"Lower Frankford Twp",44904,null,null,null,null,null,null,null,null,"Lower Frankford Twp",44904,41]
[null,null,null,null,null,null,"Lower Mifflin Twp",44984,null,null,null,null,null,null,null,null,"Lower Mifflin Twp",44984,41]
[null,null,null,null,null,null,"Mechanicsburg Boro",48376,null,null,null,null,null,null,null,null,"Mechanicsburg Boro",48376,41]
[null,null,null,null,null,null,"Middlesex Twp",49072,null,null,null,null,null,null,null,null,"Middlesex Twp",49072,41]
[null,null,null,null,null,null,"Monroe Twp",50472,null,null,null,null,null,null,null,null,"Monroe Twp",50472,41]
[null,null,null,null,null,null,"Mount Holly Springs Boro",51592,null,null,null,null,null,null,null,null,"Mount Holly Springs Boro",51592,41]
[null,null,null,null,null,null,"Newburg Boro",53344,null,null,null,null,null,null,null,null,"Newburg Boro",53344,41]
[null,null,null,null,null,null,"New Cumberland Boro",53464,null,null,null,null,null,null,null,null,"New Cumberland Boro",53464,41]
[null,null,null,null,null,null,"Newville Boro",54320,null,null,null,null,null,null,null,null,"Newville Boro",54320,41]
[null,null,null,null,null,null,"North Middleton Twp",55216,null,null,null,null,null,null,null,null,"North Middleton Twp",55216,41]
[null,null,null,null,null,null,"North Newton Twp",55248,null,null,null,null,null,null,null,null,"North Newton Twp",55248,41]
[null,null,null,null,null,null,"Penn Twp",58824,null,null,null,null,null,null,null,null,"Penn Twp",58824,41]
[null,null,null,null,null,null,"Shippensburg Boro",70352,null,null,null,null,null,null,null,null,"Shippensburg Boro",70352,41]
[null,null,null,null,null,null,"Shippensburg Twp",70360,null,null,null,null,null,null,null,null,"Shippensburg Twp",70360,41]
[null,null,null,null,null,null,"Shiremanstown Boro",70384,null,null,null,null,null,null,null,null,"Shiremanstown Boro",70384,41]
[null,null,null,null,null,null,"Silver Spring Twp",70792,null,null,null,null,null,null,null,null,"Silver Spring Twp",70792,41]
[null,null,null,null,null,null,"Southampton Twp",71904,null,null,null,null,null,null,null,null,"Southampton Twp",71904,41]
[null,null,null,null,null,null,"South Middleton Twp",72336,null,null,null,null,null,null,null,null,"South Middleton Twp",72336,41]
[null,null,null,null,null,null,"South Newton Twp",72384,null,null,null,null,null,null,null,null,"South Newton Twp",72384,41]
[null,null,null,null,null,null,"Upper Allen Twp",78736,null,null,null,null,null,null,null,null,"Upper Allen Twp",78736,41]
[null,null,null,null,null,null,"Upper Frankford Twp",79032,null,null,null,null,null,null,null,null,"Upper Frankford Twp",79032,41]
[null,null,null,null,null,null,"Upper Mifflin Twp",79152,null,null,null,null,null,null,null,null,"Upper Mifflin Twp",79152,41]
[null,null,null,null,null,null,"West Pennsboro Twp",83800,null,null,null,null,null,null,null,null,"West Pennsboro Twp",83800,41]
[null,null,null,null,null,null,"Wormleysburg Boro",86528,null,null,null,null,null,null,null,null,"Wormleysburg Boro",86528,41]
[null,null,null,null,null,null,"Berrysburg Boro",5856,null,null,null,null,null,null,null,null,"Berrysburg Boro",5856,43]
[null,null,null,null,null,null,"Conewago Twp",15640,null,null,null,null,null,null,null,null,"Conewago Twp",15640,43]
[null,null,null,null,null,null,"Dauphin Boro",18272,null,null,null,null,null,null,null,null,"Dauphin Boro",18272,43]
[null,null,null,null,null,null,"Derry Twp",18936,null,null,null,null,null,null,null,null,"Derry Twp",18936,43]
[null,null,null,null,null,null,"East Hanover Twp",21208,null,null,null,null,null,null,null,null,"East Hanover Twp",21208,43]
[null,null,null,null,null,null,"Elizabethville Boro",23024,null,null,null,null,null,null,null,null,"Elizabethville Boro",23024,43]
[null,null,null,null,null,null,"Gratz Boro",30600,null,null,null,null,null,null,null,null,"Gratz Boro",30600,43]
[null,null,null,null,null,null,"Halifax Boro",32032,null,null,null,null,null,null,null,null,"Halifax Boro",32032,43]
[null,null,null,null,null,null,"Halifax Twp",32040,null,null,null,null,null,null,null,null,"Halifax Twp",32040,43]
[null,null,null,null,null,null,"Harrisburg City",32800,null,null,null,null,null,null,null,null,"Harrisburg City",32800,43]
[null,null,null,null,null,null,"Highspire Boro",34664,null,null,null,null,null,null,null,null,"Highspire Boro",34664,43]
[null,null,null,null,null,null,"Hummelstown Boro",36232,null,null,null,null,null,null,null,null,"Hummelstown Boro",36232,43]
[null,null,null,null,null,null,"Jackson Twp",37368,null,null,null,null,null,null,null,null,"Jackson Twp",37368,43]
[null,null,null,null,null,null,"Jefferson Twp",37864,null,null,null,null,null,null,null,null,"Jefferson Twp",37864,43]
[null,null,null,null,null,null,"Londonderry Twp",44464,null,null,null,null,null,null,null,null,"Londonderry Twp",44464,43]
[null,null,null,null,null,null,"Lower Paxton Twp",45056,null,null,null,null,null,null,null,null,"Lower Paxton Twp",45056,43]
[null,null,null,null,null,null,"Lower Swatara Twp",45120,null,null,null,null,null,null,null,null,"Lower Swatara Twp",45120,43]
[null,null,null,null,null,null,"Lykens Boro",45592,null,null,null,null,null,null,null,null,"Lykens Boro",45592,43]
[null,null,null,null,null,null,"Lykens Twp",45600,null,null,null,null,null,null,null,null,"Lykens Twp",45600,43]
[null,null,null,null,null,null,"Middle Paxton Twp",49040,null,null,null,null,null,null,null,null,"Middle Paxton Twp",49040,43]
[null,null,null,null,null,null,"Middletown Boro",49128,null,null,null,null,null,null,null,null,"Middletown Boro",49128,43]
[null,null,null,null,null,null,"Mifflin Twp",49264,null,null,null,null,null,null,null,null,"Mifflin Twp",49264,43]
[null,null,null,null,null,null,"Millersburg Boro",49680,null,null,null,null,null,null,null,null,"Millersburg Boro",49680,43]
[null,null,null,null,null,null,"Paxtang Boro",58504,null,null,null,null,null,null,null,null,"Paxtang Boro",58504,43]
[null,null,null,null,null,null,"Penbrook Boro",58712,null,null,null,null,null,null,null,null,"Penbrook Boro",58712,43]
[null,null,null,null,null,null,"Pillow Boro",60264,null,null,null,null,null,null,null,null,"Pillow Boro",60264,43]
[null,null,null,null,null,null,"Reed Twp",63928,null,null,null,null,null,null,null,null,"Reed Twp",63928,43]
[null,null,null,null,null,null,"Royalton Boro",66560,null,null,null,null,null,null,null,null,"Royalton Boro",66560,43]
[null,null,null,null,null,null,"Rush Twp",66744,null,null,null,null,null,null,null,null,"Rush Twp",66744,43]
[null,null,null,null,null,null,"South Hanover Twp",72200,null,null,null,null,null,null,null,null,"South Hanover Twp",72200,43]
[null,null,null,null,null,null,"Steelton Boro",73888,null,null,null,null,null,null,null,null,"Steelton Boro",73888,43]
[null,null,null,null,null,null,"Susquehanna Twp",75528,null,null,null,null,null,null,null,null,"Susquehanna Twp",75528,43]
[null,null,null,null,null,null,"Swatara Twp",75672,null,null,null,null,null,null,null,null,"Swatara Twp",75672,43]
[null,null,null,null,null,null,"Upper Paxton Twp",79216,null,null,null,null,null,null,null,null,"Upper Paxton Twp",79216,43]
[null,null,null,null,null,null,"Washington Twp",81216,null,null,null,null,null,null,null,null,"Washington Twp",81216,43]
[null,null,null,null,null,null,"Wayne Twp",81744,null,null,null,null,null,null,null,null,"Wayne Twp",81744,43]
[null,null,null,null,null,null,"West Hanover Twp",83128,null,null,null,null,null,null,null,null,"West Hanover Twp",83128,43]
[null,null,null,null,null,null,"Wiconisco Twp",84976,null,null,null,null,null,null,null,null,"Wiconisco Twp",84976,43]
[null,null,null,null,null,null,"Williams Twp",85232,null,null,null,null,null,null,null,null,"Williams Twp",85232,43]
[null,null,null,null,null,null,"Williamstown Boro",85320,null,null,null,null,null,null,null,null,"Williamstown Boro",85320,43]
[null,null,null,null,null,null,"Aldan Boro",676,null,null,null,null,null,null,null,null,"Aldan Boro",676,45]
[null,null,null,null,null,null,"Aston Twp",3336,null,null,null,null,null,null,null,null,"Aston Twp",3336,45]
[null,null,null,null,null,null,"Bethel Twp",6024,null,null,null,null,null,null,null,null,"Bethel Twp",6024,45]
[null,null,null,null,null,null,"Brookhaven Boro",9080,null,null,null,null,null,null,null,null,"Brookhaven Boro",9080,45]
[null,null,null,null,null,null,"Chadds Ford Twp",12442,null,null,null,null,null,null,null,null,"Chadds Ford Twp",12442,45]
[null,null,null,null,null,null,"Chester City",13208,null,null,null,null,null,null,null,null,"Chester City",13208,45]
[null,null,null,null,null,null,"Chester Twp",13212,null,null,null,null,null,null,null,null,"Chester Twp",13212,45]
[null,null,null,null,null,null,"Chester Heights Boro",13232,null,null,null,null,null,null,null,null,"Chester Heights Boro",13232,45]
[null,null,null,null,null,null,"Clifton Heights Boro",14264,null,null,null,null,null,null,null,null,"Clifton Heights Boro",14264,45]
[null,null,null,null,null,null,"Collingdale Boro",15232,null,null,null,null,null,null,null,null,"Collingdale Boro",15232,45]
[null,null,null,null,null,null,"Colwyn Boro",15432,null,null,null,null,null,null,null,null,"Colwyn Boro",15432,45]
[null,null,null,null,null,null,"Concord Twp",15488,null,null,null,null,null,null,null,null,"Concord Twp",15488,45]
[null,null,null,null,null,null,"Darby Boro",18152,null,null,null,null,null,null,null,null,"Darby Boro",18152,45]
[null,null,null,null,null,null,"Darby Twp",18160,null,null,null,null,null,null,null,null,"Darby Twp",18160,45]
[null,null,null,null,null,null,"East Lansdowne Boro",21384,null,null,null,null,null,null,null,null,"East Lansdowne Boro",21384,45]
[null,null,null,null,null,null,"Eddystone Boro",22296,null,null,null,null,null,null,null,null,"Eddystone Boro",22296,45]
[null,null,null,null,null,null,"Edgmont Twp",22584,null,null,null,null,null,null,null,null,"Edgmont Twp",22584,45]
[null,null,null,null,null,null,"Folcroft Boro",26408,null,null,null,null,null,null,null,null,"Folcroft Boro",26408,45]
[null,null,null,null,null,null,"Glenolden Boro",29720,null,null,null,null,null,null,null,null,"Glenolden Boro",29720,45]
[null,null,null,null,null,null,"Haverford Twp",33144,null,null,null,null,null,null,null,null,"Haverford Twp",33144,45]
[null,null,null,null,null,null,"Lansdowne Boro",41440,null,null,null,null,null,null,null,null,"Lansdowne Boro",41440,45]
[null,null,null,null,null,null,"Lower Chichester Twp",44888,null,null,null,null,null,null,null,null,"Lower Chichester Twp",44888,45]
[null,null,null,null,null,null,"Marcus Hook Boro",47344,null,null,null,null,null,null,null,null,"Marcus Hook Boro",47344,45]
[null,null,null,null,null,null,"Marple Twp",47616,null,null,null,null,null,null,null,null,"Marple Twp",47616,45]
[null,null,null,null,null,null,"Media Boro",48480,null,null,null,null,null,null,null,null,"Media Boro",48480,45]
[null,null,null,null,null,null,"Middletown Twp",49136,null,null,null,null,null,null,null,null,"Middletown Twp",49136,45]
[null,null,null,null,null,null,"Millbourne Boro",49504,null,null,null,null,null,null,null,null,"Millbourne Boro",49504,45]
[null,null,null,null,null,null,"Morton Boro",51176,null,null,null,null,null,null,null,null,"Morton Boro",51176,45]
[null,null,null,null,null,null,"Nether Providence Twp",53104,null,null,null,null,null,null,null,null,"Nether Providence Twp",53104,45]
[null,null,null,null,null,null,"Newtown Twp",54224,null,null,null,null,null,null,null,null,"Newtown Twp",54224,45]
[null,null,null,null,null,null,"Norwood Boro",55664,null,null,null,null,null,null,null,null,"Norwood Boro",55664,45]
[null,null,null,null,null,null,"Parkside Boro",58176,null,null,null,null,null,null,null,null,"Parkside Boro",58176,45]
[null,null,null,null,null,null,"Prospect Park Boro",62792,null,null,null,null,null,null,null,null,"Prospect Park Boro",62792,45]
[null,null,null,null,null,null,"Radnor Twp",63264,null,null,null,null,null,null,null,null,"Radnor Twp",63264,45]
[null,null,null,null,null,null,"Ridley Twp",64800,null,null,null,null,null,null,null,null,"Ridley Twp",64800,45]
[null,null,null,null,null,null,"Ridley Park Boro",64832,null,null,null,null,null,null,null,null,"Ridley Park Boro",64832,45]
[null,null,null,null,null,null,"Rose Valley Boro",66192,null,null,null,null,null,null,null,null,"Rose Valley Boro",66192,45]
[null,null,null,null,null,null,"Rutledge Boro",66928,null,null,null,null,null,null,null,null,"Rutledge Boro",66928,45]
[null,null,null,null,null,null,"Sharon Hill Boro",69752,null,null,null,null,null,null,null,null,"Sharon Hill Boro",69752,45]
[null,null,null,null,null,null,"Springfield Twp",73032,null,null,null,null,null,null,null,null,"Springfield Twp",73032,45]
[null,null,null,null,null,null,"Swarthmore Boro",75648,null,null,null,null,null,null,null,null,"Swarthmore Boro",75648,45]
[null,null,null,null,null,null,"Thornbury Twp",76576,null,null,null,null,null,null,null,null,"Thornbury Twp",76576,45]
[null,null,null,null,null,null,"Tinicum Twp",76792,null,null,null,null,null,null,null,null,"Tinicum Twp",76792,45]
[null,null,null,null,null,null,"Trainer Boro",77288,null,null,null,null,null,null,null,null,"Trainer Boro",77288,45]
[null,null,null,null,null,null,"Upland Boro",78712,null,null,null,null,null,null,null,null,"Upland Boro",78712,45]
[null,null,null,null,null,null,"Upper Chichester Twp",78776,null,null,null,null,null,null,null,null,"Upper Chichester Twp",78776,45]
[null,null,null,null,null,null,"Upper Darby Twp",79000,null,null,null,null,null,null,null,null,"Upper Darby Twp",79000,45]
[null,null,null,null,null,null,"Upper Providence Twp",79248,null,null,null,null,null,null,null,null,"Upper Providence Twp",79248,45]
[null,null,null,null,null,null,"Yeadon Boro",86968,null,null,null,null,null,null,null,null,"Yeadon Boro",86968,45]
[null,null,null,null,null,null,"Benezette Twp",5576,null,null,null,null,null,null,null,null,"Benezette Twp",5576,47]
[null,null,null,null,null,null,"Fox Twp",27088,null,null,null,null,null,null,null,null,"Fox Twp",27088,47]
[null,null,null,null,null,null,"Highland Twp",34464,null,null,null,null,null,null,null,null,"Highland Twp",34464,47]
[null,null,null,null,null,null,"Horton Twp",35816,null,null,null,null,null,null,null,null,"Horton Twp",35816,47]
[null,null,null,null,null,null,"Jay Twp",37760,null,null,null,null,null,null,null,null,"Jay Twp",37760,47]
[null,null,null,null,null,null,"Johnsonburg Boro",38248,null,null,null,null,null,null,null,null,"Johnsonburg Boro",38248,47]
[null,null,null,null,null,null,"Jones Twp",38368,null,null,null,null,null,null,null,null,"Jones Twp",38368,47]
[null,null,null,null,null,null,"Millstone Twp",49888,null,null,null,null,null,null,null,null,"Millstone Twp",49888,47]
[null,null,null,null,null,null,"Ridgway Boro",64784,null,null,null,null,null,null,null,null,"Ridgway Boro",64784,47]
[null,null,null,null,null,null,"Ridgway Twp",64792,null,null,null,null,null,null,null,null,"Ridgway Twp",64792,47]
[null,null,null,null,null,null,"St Marys City",67344,null,null,null,null,null,null,null,null,"St Marys City",67344,47]
[null,null,null,null,null,null,"Spring Creek Twp",72928,null,null,null,null,null,null,null,null,"Spring Creek Twp",72928,47]
[null,null,null,null,null,null,"Albion Boro",628,null,null,null,null,null,null,null,null,"Albion Boro",628,49]
[null,null,null,null,null,null,"Amity Twp",2336,null,null,null,null,null,null,null,null,"Amity Twp",2336,49]
[null,null,null,null,null,null,"Concord Twp",15504,null,null,null,null,null,null,null,null,"Concord Twp",15504,49]
[null,null,null,null,null,null,"Conneaut Twp",15736,null,null,null,null,null,null,null,null,"Conneaut Twp",15736,49]
[null,null,null,null,null,null,"Corry City",16296,null,null,null,null,null,null,null,null,"Corry City",16296,49]
[null,null,null,null,null,null,"Cranesville Boro",16960,null,null,null,null,null,null,null,null,"Cranesville Boro",16960,49]
[null,null,null,null,null,null,"Edinboro Boro",22608,null,null,null,null,null,null,null,null,"Edinboro Boro",22608,49]
[null,null,null,null,null,null,"Elgin Boro",22960,null,null,null,null,null,null,null,null,"Elgin Boro",22960,49]
[null,null,null,null,null,null,"Elk Creek Twp",23088,null,null,null,null,null,null,null,null,"Elk Creek Twp",23088,49]
[null,null,null,null,null,null,"Erie City",24000,null,null,null,null,null,null,null,null,"Erie City",24000,49]
[null,null,null,null,null,null,"Fairview Twp",24864,null,null,null,null,null,null,null,null,"Fairview Twp",24864,49]
[null,null,null,null,null,null,"Franklin Twp",27392,null,null,null,null,null,null,null,null,"Franklin Twp",27392,49]
[null,null,null,null,null,null,"Girard Boro",29232,null,null,null,null,null,null,null,null,"Girard Boro",29232,49]
[null,null,null,null,null,null,"Girard Twp",29240,null,null,null,null,null,null,null,null,"Girard Twp",29240,49]
[null,null,null,null,null,null,"Greene Twp",30936,null,null,null,null,null,null,null,null,"Greene Twp",30936,49]
[null,null,null,null,null,null,"Greenfield Twp",31008,null,null,null,null,null,null,null,null,"Greenfield Twp",31008,49]
[null,null,null,null,null,null,"Harborcreek Twp",32520,null,null,null,null,null,null,null,null,"Harborcreek Twp",32520,49]
[null,null,null,null,null,null,"Lake City Boro",40960,null,null,null,null,null,null,null,null,"Lake City Boro",40960,49]
[null,null,null,null,null,null,"Lawrence Park Twp",41984,null,null,null,null,null,null,null,null,"Lawrence Park Twp",41984,49]
[null,null,null,null,null,null,"Le Boeuf Twp",42208,null,null,null,null,null,null,null,null,"Le Boeuf Twp",42208,49]
[null,null,null,null,null,null,"Mckean Boro",46216,null,null,null,null,null,null,null,null,"Mckean Boro",46216,49]
[null,null,null,null,null,null,"Mckean Twp",46224,null,null,null,null,null,null,null,null,"Mckean Twp",46224,49]
[null,null,null,null,null,null,"Millcreek Twp",49548,null,null,null,null,null,null,null,null,"Millcreek Twp",49548,49]
[null,null,null,null,null,null,"Mill Village Boro",49936,null,null,null,null,null,null,null,null,"Mill Village Boro",49936,49]
[null,null,null,null,null,null,"North East Boro",54952,null,null,null,null,null,null,null,null,"North East Boro",54952,49]
[null,null,null,null,null,null,"North East Twp",54960,null,null,null,null,null,null,null,null,"North East Twp",54960,49]
[null,null,null,null,null,null,"Platea Boro",61168,null,null,null,null,null,null,null,null,"Platea Boro",61168,49]
[null,null,null,null,null,null,"Springfield Twp",73048,null,null,null,null,null,null,null,null,"Springfield Twp",73048,49]
[null,null,null,null,null,null,"Summit Twp",75208,null,null,null,null,null,null,null,null,"Summit Twp",75208,49]
[null,null,null,null,null,null,"Union Twp",78312,null,null,null,null,null,null,null,null,"Union Twp",78312,49]
[null,null,null,null,null,null,"Union City Boro",78448,null,null,null,null,null,null,null,null,"Union City Boro",78448,49]
[null,null,null,null,null,null,"Venango Twp",79928,null,null,null,null,null,null,null,null,"Venango Twp",79928,49]
[null,null,null,null,null,null,"Washington Twp",81224,null,null,null,null,null,null,null,null,"Washington Twp",81224,49]
[null,null,null,null,null,null,"Waterford Boro",81456,null,null,null,null,null,null,null,null,"Waterford Boro",81456,49]
[null,null,null,null,null,null,"Waterford Twp",81472,null,null,null,null,null,null,null,null,"Waterford Twp",81472,49]
[null,null,null,null,null,null,"Wattsburg Boro",81648,null,null,null,null,null,null,null,null,"Wattsburg Boro",81648,49]
[null,null,null,null,null,null,"Wayne Twp",81760,null,null,null,null,null,null,null,null,"Wayne Twp",81760,49]
[null,null,null,null,null,null,"Wesleyville Boro",82344,null,null,null,null,null,null,null,null,"Wesleyville Boro",82344,49]
[null,null,null,null,null,null,"Belle Vernon Boro",5288,null,null,null,null,null,null,null,null,"Belle Vernon Boro",5288,51]
[null,null,null,null,null,null,"Brownsville Boro",9432,null,null,null,null,null,null,null,null,"Brownsville Boro",9432,51]
[null,null,null,null,null,null,"Brownsville Twp",9434,null,null,null,null,null,null,null,null,"Brownsville Twp",9434,51]
[null,null,null,null,null,null,"Bullskin Twp",10152,null,null,null,null,null,null,null,null,"Bullskin Twp",10152,51]
[null,null,null,null,null,null,"Connellsville City",15776,null,null,null,null,null,null,null,null,"Connellsville City",15776,51]
[null,null,null,null,null,null,"Connellsville Twp",15784,null,null,null,null,null,null,null,null,"Connellsville Twp",15784,51]
[null,null,null,null,null,null,"Dawson Boro",18360,null,null,null,null,null,null,null,null,"Dawson Boro",18360,51]
[null,null,null,null,null,null,"Dunbar Boro",20216,null,null,null,null,null,null,null,null,"Dunbar Boro",20216,51]
[null,null,null,null,null,null,"Dunbar Twp",20224,null,null,null,null,null,null,null,null,"Dunbar Twp",20224,51]
[null,null,null,null,null,null,"Everson Boro",24336,null,null,null,null,null,null,null,null,"Everson Boro",24336,51]
[null,null,null,null,null,null,"Fairchance Boro",24536,null,null,null,null,null,null,null,null,"Fairchance Boro",24536,51]
[null,null,null,null,null,null,"Fayette City Boro",25456,null,null,null,null,null,null,null,null,"Fayette City Boro",25456,51]
[null,null,null,null,null,null,"Franklin Twp",27400,null,null,null,null,null,null,null,null,"Franklin Twp",27400,51]
[null,null,null,null,null,null,"Georges Twp",28792,null,null,null,null,null,null,null,null,"Georges Twp",28792,51]
[null,null,null,null,null,null,"German Twp",28856,null,null,null,null,null,null,null,null,"German Twp",28856,51]
[null,null,null,null,null,null,"Henry Clay Twp",33896,null,null,null,null,null,null,null,null,"Henry Clay Twp",33896,51]
[null,null,null,null,null,null,"Jefferson Twp",37872,null,null,null,null,null,null,null,null,"Jefferson Twp",37872,51]
[null,null,null,null,null,null,"Lower Tyrone Twp",45144,null,null,null,null,null,null,null,null,"Lower Tyrone Twp",45144,51]
[null,null,null,null,null,null,"Luzerne Twp",45560,null,null,null,null,null,null,null,null,"Luzerne Twp",45560,51]
[null,null,null,null,null,null,"Markleysburg Boro",47560,null,null,null,null,null,null,null,null,"Markleysburg Boro",47560,51]
[null,null,null,null,null,null,"Masontown Boro",48000,null,null,null,null,null,null,null,null,"Masontown Boro",48000,51]
[null,null,null,null,null,null,"Menallen Twp",48616,null,null,null,null,null,null,null,null,"Menallen Twp",48616,51]
[null,null,null,null,null,null,"Newell Boro",53504,null,null,null,null,null,null,null,null,"Newell Boro",53504,51]
[null,null,null,null,null,null,"Nicholson Twp",54392,null,null,null,null,null,null,null,null,"Nicholson Twp",54392,51]
[null,null,null,null,null,null,"North Union Twp",55464,null,null,null,null,null,null,null,null,"North Union Twp",55464,51]
[null,null,null,null,null,null,"Ohiopyle Boro",56408,null,null,null,null,null,null,null,null,"Ohiopyle Boro",56408,51]
[null,null,null,null,null,null,"Perry Twp",59464,null,null,null,null,null,null,null,null,"Perry Twp",59464,51]
[null,null,null,null,null,null,"Perryopolis Boro",59520,null,null,null,null,null,null,null,null,"Perryopolis Boro",59520,51]
[null,null,null,null,null,null,"Point Marion Boro",61864,null,null,null,null,null,null,null,null,"Point Marion Boro",61864,51]
[null,null,null,null,null,null,"Redstone Twp",63904,null,null,null,null,null,null,null,null,"Redstone Twp",63904,51]
[null,null,null,null,null,null,"Saltlick Twp",67640,null,null,null,null,null,null,null,null,"Saltlick Twp",67640,51]
[null,null,null,null,null,null,"Seven Springs Boro",69336,null,null,null,null,null,null,null,null,"Seven Springs Boro",69336,51]
[null,null,null,null,null,null,"Smithfield Boro",71320,null,null,null,null,null,null,null,null,"Smithfield Boro",71320,51]
[null,null,null,null,null,null,"South Connellsville Boro",72080,null,null,null,null,null,null,null,null,"South Connellsville Boro",72080,51]
[null,null,null,null,null,null,"South Union Twp",72544,null,null,null,null,null,null,null,null,"South Union Twp",72544,51]
[null,null,null,null,null,null,"Springfield Twp",73064,null,null,null,null,null,null,null,null,"Springfield Twp",73064,51]
[null,null,null,null,null,null,"Springhill Twp",73240,null,null,null,null,null,null,null,null,"Springhill Twp",73240,51]
[null,null,null,null,null,null,"Stewart Twp",74080,null,null,null,null,null,null,null,null,"Stewart Twp",74080,51]
[null,null,null,null,null,null,"Uniontown City",78528,null,null,null,null,null,null,null,null,"Uniontown City",78528,51]
[null,null,null,null,null,null,"Upper Tyrone Twp",79344,null,null,null,null,null,null,null,null,"Upper Tyrone Twp",79344,51]
[null,null,null,null,null,null,"Vanderbilt Boro",79768,null,null,null,null,null,null,null,null,"Vanderbilt Boro",79768,51]
[null,null,null,null,null,null,"Washington Twp",81232,null,null,null,null,null,null,null,null,"Washington Twp",81232,51]
[null,null,null,null,null,null,"Wharton Twp",84344,null,null,null,null,null,null,null,null,"Wharton Twp",84344,51]
[null,null,null,null,null,null,"Barnett Twp",4224,null,null,null,null,null,null,null,null,"Barnett Twp",4224,53]
[null,null,null,null,null,null,"Green Twp",30808,null,null,null,null,null,null,null,null,"Green Twp",30808,53]
[null,null,null,null,null,null,"Harmony Twp",32704,null,null,null,null,null,null,null,null,"Harmony Twp",32704,53]
[null,null,null,null,null,null,"Hickory Twp",34240,null,null,null,null,null,null,null,null,"Hickory Twp",34240,53]
[null,null,null,null,null,null,"Howe Twp",35992,null,null,null,null,null,null,null,null,"Howe Twp",35992,53]
[null,null,null,null,null,null,"Jenks Twp",38016,null,null,null,null,null,null,null,null,"Jenks Twp",38016,53]
[null,null,null,null,null,null,"Kingsley Twp",39760,null,null,null,null,null,null,null,null,"Kingsley Twp",39760,53]
[null,null,null,null,null,null,"Tionesta Boro",76848,null,null,null,null,null,null,null,null,"Tionesta Boro",76848,53]
[null,null,null,null,null,null,"Tionesta Twp",76864,null,null,null,null,null,null,null,null,"Tionesta Twp",76864,53]
[null,null,null,null,null,null,"Antrim Twp",2696,null,null,null,null,null,null,null,null,"Antrim Twp",2696,55]
[null,null,null,null,null,null,"Chambersburg Boro",12536,null,null,null,null,null,null,null,null,"Chambersburg Boro",12536,55]
[null,null,null,null,null,null,"Fannett Twp",25176,null,null,null,null,null,null,null,null,"Fannett Twp",25176,55]
[null,null,null,null,null,null,"Green Castle Boro",30896,null,null,null,null,null,null,null,null,"Green Castle Boro",30896,55]
[null,null,null,null,null,null,"Greene Twp",30944,null,null,null,null,null,null,null,null,"Greene Twp",30944,55]
[null,null,null,null,null,null,"Guilford Twp",31720,null,null,null,null,null,null,null,null,"Guilford Twp",31720,55]
[null,null,null,null,null,null,"Hamilton Twp",32152,null,null,null,null,null,null,null,null,"Hamilton Twp",32152,55]
[null,null,null,null,null,null,"Letterkenny Twp",42888,null,null,null,null,null,null,null,null,"Letterkenny Twp",42888,55]
[null,null,null,null,null,null,"Lurgan Twp",45496,null,null,null,null,null,null,null,null,"Lurgan Twp",45496,55]
[null,null,null,null,null,null,"Mercersburg Boro",48704,null,null,null,null,null,null,null,null,"Mercersburg Boro",48704,55]
[null,null,null,null,null,null,"Metal Twp",48888,null,null,null,null,null,null,null,null,"Metal Twp",48888,55]
[null,null,null,null,null,null,"Mont Alto Boro",50544,null,null,null,null,null,null,null,null,"Mont Alto Boro",50544,55]
[null,null,null,null,null,null,"Montgomery Twp",50616,null,null,null,null,null,null,null,null,"Montgomery Twp",50616,55]
[null,null,null,null,null,null,"Orrstown Boro",57112,null,null,null,null,null,null,null,null,"Orrstown Boro",57112,55]
[null,null,null,null,null,null,"Peters Twp",59600,null,null,null,null,null,null,null,null,"Peters Twp",59600,55]
[null,null,null,null,null,null,"Quincy Twp",63200,null,null,null,null,null,null,null,null,"Quincy Twp",63200,55]
[null,null,null,null,null,null,"St Thomas Twp",67400,null,null,null,null,null,null,null,null,"St Thomas Twp",67400,55]
[null,null,null,null,null,null,"Shippensburg Boro",70352,null,null,null,null,null,null,null,null,"Shippensburg Boro",70352,55]
[null,null,null,null,null,null,"Southampton Twp",71912,null,null,null,null,null,null,null,null,"Southampton Twp",71912,55]
[null,null,null,null,null,null,"Warren Twp",80992,null,null,null,null,null,null,null,null,"Warren Twp",80992,55]
[null,null,null,null,null,null,"Washington Twp",81240,null,null,null,null,null,null,null,null,"Washington Twp",81240,55]
[null,null,null,null,null,null,"Waynesboro Boro",81824,null,null,null,null,null,null,null,null,"Waynesboro Boro",81824,55]
[null,null,null,null,null,null,"Ayr Twp",3704,null,null,null,null,null,null,null,null,"Ayr Twp",3704,57]
[null,null,null,null,null,null,"Belfast Twp",5144,null,null,null,null,null,null,null,null,"Belfast Twp",5144,57]
[null,null,null,null,null,null,"Bethel Twp",6032,null,null,null,null,null,null,null,null,"Bethel Twp",6032,57]
[null,null,null,null,null,null,"Brush Creek Twp",9568,null,null,null,null,null,null,null,null,"Brush Creek Twp",9568,57]
[null,null,null,null,null,null,"Dublin Twp",20112,null,null,null,null,null,null,null,null,"Dublin Twp",20112,57]
[null,null,null,null,null,null,"Licking Creek Twp",43200,null,null,null,null,null,null,null,null,"Licking Creek Twp",43200,57]
[null,null,null,null,null,null,"Mcconnellsburg Boro",46000,null,null,null,null,null,null,null,null,"Mcconnellsburg Boro",46000,57]
[null,null,null,null,null,null,"Taylor Twp",76176,null,null,null,null,null,null,null,null,"Taylor Twp",76176,57]
[null,null,null,null,null,null,"Thompson Twp",76488,null,null,null,null,null,null,null,null,"Thompson Twp",76488,57]
[null,null,null,null,null,null,"Todd Twp",76992,null,null,null,null,null,null,null,null,"Todd Twp",76992,57]
[null,null,null,null,null,null,"Union Twp",78320,null,null,null,null,null,null,null,null,"Union Twp",78320,57]
[null,null,null,null,null,null,"Valley Hi Boro",79644,null,null,null,null,null,null,null,null,"Valley Hi Boro",79644,57]
[null,null,null,null,null,null,"Wells Twp",82152,null,null,null,null,null,null,null,null,"Wells Twp",82152,57]
[null,null,null,null,null,null,"Aleppo Twp",740,null,null,null,null,null,null,null,null,"Aleppo Twp",740,59]
[null,null,null,null,null,null,"Carmichaels Boro",11328,null,null,null,null,null,null,null,null,"Carmichaels Boro",11328,59]
[null,null,null,null,null,null,"Center Twp",12032,null,null,null,null,null,null,null,null,"Center Twp",12032,59]
[null,null,null,null,null,null,"Clarksville Boro",13896,null,null,null,null,null,null,null,null,"Clarksville Boro",13896,59]
[null,null,null,null,null,null,"Cumberland Twp",17648,null,null,null,null,null,null,null,null,"Cumberland Twp",17648,59]
[null,null,null,null,null,null,"Dunkard Twp",20296,null,null,null,null,null,null,null,null,"Dunkard Twp",20296,59]
[null,null,null,null,null,null,"Franklin Twp",27408,null,null,null,null,null,null,null,null,"Franklin Twp",27408,59]
[null,null,null,null,null,null,"Freeport Twp",27800,null,null,null,null,null,null,null,null,"Freeport Twp",27800,59]
[null,null,null,null,null,null,"Gilmore Twp",29152,null,null,null,null,null,null,null,null,"Gilmore Twp",29152,59]
[null,null,null,null,null,null,"Gray Twp",30640,null,null,null,null,null,null,null,null,"Gray Twp",30640,59]
[null,null,null,null,null,null,"Greene Twp",30952,null,null,null,null,null,null,null,null,"Greene Twp",30952,59]
[null,null,null,null,null,null,"Greensboro Boro",31192,null,null,null,null,null,null,null,null,"Greensboro Boro",31192,59]
[null,null,null,null,null,null,"Jackson Twp",37376,null,null,null,null,null,null,null,null,"Jackson Twp",37376,59]
[null,null,null,null,null,null,"Jefferson Boro",37880,null,null,null,null,null,null,null,null,"Jefferson Boro",37880,59]
[null,null,null,null,null,null,"Jefferson Twp",37888,null,null,null,null,null,null,null,null,"Jefferson Twp",37888,59]
[null,null,null,null,null,null,"Monongahela Twp",50400,null,null,null,null,null,null,null,null,"Monongahela Twp",50400,59]
[null,null,null,null,null,null,"Morgan Twp",50992,null,null,null,null,null,null,null,null,"Morgan Twp",50992,59]
[null,null,null,null,null,null,"Morris Twp",51064,null,null,null,null,null,null,null,null,"Morris Twp",51064,59]
[null,null,null,null,null,null,"Perry Twp",59472,null,null,null,null,null,null,null,null,"Perry Twp",59472,59]
[null,null,null,null,null,null,"Rices Landing Boro",64432,null,null,null,null,null,null,null,null,"Rices Landing Boro",64432,59]
[null,null,null,null,null,null,"Richhill Twp",64512,null,null,null,null,null,null,null,null,"Richhill Twp",64512,59]
[null,null,null,null,null,null,"Springhill Twp",73248,null,null,null,null,null,null,null,null,"Springhill Twp",73248,59]
[null,null,null,null,null,null,"Washington Twp",81248,null,null,null,null,null,null,null,null,"Washington Twp",81248,59]
[null,null,null,null,null,null,"Wayne Twp",81768,null,null,null,null,null,null,null,null,"Wayne Twp",81768,59]
[null,null,null,null,null,null,"Waynesburg Boro",81832,null,null,null,null,null,null,null,null,"Waynesburg Boro",81832,59]
[null,null,null,null,null,null,"Whiteley Twp",84608,null,null,null,null,null,null,null,null,"Whiteley Twp",84608,59]
[null,null,null,null,null,null,"Alexandria Boro",756,null,null,null,null,null,null,null,null,"Alexandria Boro",756,61]
[null,null,null,null,null,null,"Barree Twp",4288,null,null,null,null,null,null,null,null,"Barree Twp",4288,61]
[null,null,null,null,null,null,"Birmingham Boro",6560,null,null,null,null,null,null,null,null,"Birmingham Boro",6560,61]
[null,null,null,null,null,null,"Brady Twp",8128,null,null,null,null,null,null,null,null,"Brady Twp",8128,61]
[null,null,null,null,null,null,"Broad Top City Boro",8896,null,null,null,null,null,null,null,null,"Broad Top City Boro",8896,61]
[null,null,null,null,null,null,"Carbon Twp",11208,null,null,null,null,null,null,null,null,"Carbon Twp",11208,61]
[null,null,null,null,null,null,"Cass Twp",11600,null,null,null,null,null,null,null,null,"Cass Twp",11600,61]
[null,null,null,null,null,null,"Cassville Boro",11632,null,null,null,null,null,null,null,null,"Cassville Boro",11632,61]
[null,null,null,null,null,null,"Clay Twp",13944,null,null,null,null,null,null,null,null,"Clay Twp",13944,61]
[null,null,null,null,null,null,"Coalmont Boro",14640,null,null,null,null,null,null,null,null,"Coalmont Boro",14640,61]
[null,null,null,null,null,null,"Cromwell Twp",17280,null,null,null,null,null,null,null,null,"Cromwell Twp",17280,61]
[null,null,null,null,null,null,"Dublin Twp",20120,null,null,null,null,null,null,null,null,"Dublin Twp",20120,61]
[null,null,null,null,null,null,"Dudley Boro",20152,null,null,null,null,null,null,null,null,"Dudley Boro",20152,61]
[null,null,null,null,null,null,"Franklin Twp",27416,null,null,null,null,null,null,null,null,"Franklin Twp",27416,61]
[null,null,null,null,null,null,"Henderson Twp",33808,null,null,null,null,null,null,null,null,"Henderson Twp",33808,61]
[null,null,null,null,null,null,"Hopewell Twp",35688,null,null,null,null,null,null,null,null,"Hopewell Twp",35688,61]
[null,null,null,null,null,null,"Huntingdon Boro",36368,null,null,null,null,null,null,null,null,"Huntingdon Boro",36368,61]
[null,null,null,null,null,null,"Jackson Twp",37384,null,null,null,null,null,null,null,null,"Jackson Twp",37384,61]
[null,null,null,null,null,null,"Juniata Twp",38608,null,null,null,null,null,null,null,null,"Juniata Twp",38608,61]
[null,null,null,null,null,null,"Lincoln Twp",43424,null,null,null,null,null,null,null,null,"Lincoln Twp",43424,61]
[null,null,null,null,null,null,"Logan Twp",44344,null,null,null,null,null,null,null,null,"Logan Twp",44344,61]
[null,null,null,null,null,null,"Mapleton Boro",47248,null,null,null,null,null,null,null,null,"Mapleton Boro",47248,61]
[null,null,null,null,null,null,"Marklesburg Boro",47544,null,null,null,null,null,null,null,null,"Marklesburg Boro",47544,61]
[null,null,null,null,null,null,"Mill Creek Boro",49552,null,null,null,null,null,null,null,null,"Mill Creek Boro",49552,61]
[null,null,null,null,null,null,"Miller Twp",49624,null,null,null,null,null,null,null,null,"Miller Twp",49624,61]
[null,null,null,null,null,null,"Morris Twp",51080,null,null,null,null,null,null,null,null,"Morris Twp",51080,61]
[null,null,null,null,null,null,"Mount Union Boro",51984,null,null,null,null,null,null,null,null,"Mount Union Boro",51984,61]
[null,null,null,null,null,null,"Oneida Twp",56808,null,null,null,null,null,null,null,null,"Oneida Twp",56808,61]
[null,null,null,null,null,null,"Orbisonia Boro",56928,null,null,null,null,null,null,null,null,"Orbisonia Boro",56928,61]
[null,null,null,null,null,null,"Penn Twp",58832,null,null,null,null,null,null,null,null,"Penn Twp",58832,61]
[null,null,null,null,null,null,"Petersburg Boro",59616,null,null,null,null,null,null,null,null,"Petersburg Boro",59616,61]
[null,null,null,null,null,null,"Porter Twp",62160,null,null,null,null,null,null,null,null,"Porter Twp",62160,61]
[null,null,null,null,null,null,"Rockhill Boro",65512,null,null,null,null,null,null,null,null,"Rockhill Boro",65512,61]
[null,null,null,null,null,null,"Saltillo Boro",67632,null,null,null,null,null,null,null,null,"Saltillo Boro",67632,61]
[null,null,null,null,null,null,"Shade Gap Boro",69456,null,null,null,null,null,null,null,null,"Shade Gap Boro",69456,61]
[null,null,null,null,null,null,"Shirley Twp",70400,null,null,null,null,null,null,null,null,"Shirley Twp",70400,61]
[null,null,null,null,null,null,"Shirleysburg Boro",70408,null,null,null,null,null,null,null,null,"Shirleysburg Boro",70408,61]
[null,null,null,null,null,null,"Smithfield Twp",71328,null,null,null,null,null,null,null,null,"Smithfield Twp",71328,61]
[null,null,null,null,null,null,"Springfield Twp",73072,null,null,null,null,null,null,null,null,"Springfield Twp",73072,61]
[null,null,null,null,null,null,"Spruce Creek Twp",73488,null,null,null,null,null,null,null,null,"Spruce Creek Twp",73488,61]
[null,null,null,null,null,null,"Tell Twp",76312,null,null,null,null,null,null,null,null,"Tell Twp",76312,61]
[null,null,null,null,null,null,"Three Springs Boro",76632,null,null,null,null,null,null,null,null,"Three Springs Boro",76632,61]
[null,null,null,null,null,null,"Todd Twp",76984,null,null,null,null,null,null,null,null,"Todd Twp",76984,61]
[null,null,null,null,null,null,"Union Twp",78328,null,null,null,null,null,null,null,null,"Union Twp",78328,61]
[null,null,null,null,null,null,"Walker Twp",80560,null,null,null,null,null,null,null,null,"Walker Twp",80560,61]
[null,null,null,null,null,null,"Warriors Mark Twp",81104,null,null,null,null,null,null,null,null,"Warriors Mark Twp",81104,61]
[null,null,null,null,null,null,"West Twp",82352,null,null,null,null,null,null,null,null,"West Twp",82352,61]
[null,null,null,null,null,null,"Wood Twp",86080,null,null,null,null,null,null,null,null,"Wood Twp",86080,61]
[null,null,null,null,null,null,"Armagh Boro",3032,null,null,null,null,null,null,null,null,"Armagh Boro",3032,63]
[null,null,null,null,null,null,"Armstrong Twp",3064,null,null,null,null,null,null,null,null,"Armstrong Twp",3064,63]
[null,null,null,null,null,null,"Banks Twp",4056,null,null,null,null,null,null,null,null,"Banks Twp",4056,63]
[null,null,null,null,null,null,"Blacklick Twp",6752,null,null,null,null,null,null,null,null,"Blacklick Twp",6752,63]
[null,null,null,null,null,null,"Blairsville Boro",6904,null,null,null,null,null,null,null,null,"Blairsville Boro",6904,63]
[null,null,null,null,null,null,"Brush Valley Twp",9624,null,null,null,null,null,null,null,null,"Brush Valley Twp",9624,63]
[null,null,null,null,null,null,"Buffington Twp",10104,null,null,null,null,null,null,null,null,"Buffington Twp",10104,63]
[null,null,null,null,null,null,"Burrell Twp",10352,null,null,null,null,null,null,null,null,"Burrell Twp",10352,63]
[null,null,null,null,null,null,"Canoe Twp",11120,null,null,null,null,null,null,null,null,"Canoe Twp",11120,63]
[null,null,null,null,null,null,"Center Twp",12040,null,null,null,null,null,null,null,null,"Center Twp",12040,63]
[null,null,null,null,null,null,"Cherryhill Twp",13072,null,null,null,null,null,null,null,null,"Cherryhill Twp",13072,63]
[null,null,null,null,null,null,"Cherry Tree Boro",13120,null,null,null,null,null,null,null,null,"Cherry Tree Boro",13120,63]
[null,null,null,null,null,null,"Clymer Boro",14520,null,null,null,null,null,null,null,null,"Clymer Boro",14520,63]
[null,null,null,null,null,null,"Conemaugh Twp",15560,null,null,null,null,null,null,null,null,"Conemaugh Twp",15560,63]
[null,null,null,null,null,null,"Creekside Boro",17024,null,null,null,null,null,null,null,null,"Creekside Boro",17024,63]
[null,null,null,null,null,null,"East Mahoning Twp",21456,null,null,null,null,null,null,null,null,"East Mahoning Twp",21456,63]
[null,null,null,null,null,null,"East Wheatfield Twp",22048,null,null,null,null,null,null,null,null,"East Wheatfield Twp",22048,63]
[null,null,null,null,null,null,"Ernest Boro",24040,null,null,null,null,null,null,null,null,"Ernest Boro",24040,63]
[null,null,null,null,null,null,"Glen Campbell Boro",29512,null,null,null,null,null,null,null,null,"Glen Campbell Boro",29512,63]
[null,null,null,null,null,null,"Grant Twp",30416,null,null,null,null,null,null,null,null,"Grant Twp",30416,63]
[null,null,null,null,null,null,"Green Twp",30816,null,null,null,null,null,null,null,null,"Green Twp",30816,63]
[null,null,null,null,null,null,"Homer City Boro",35408,null,null,null,null,null,null,null,null,"Homer City Boro",35408,63]
[null,null,null,null,null,null,"Indiana Boro",36816,null,null,null,null,null,null,null,null,"Indiana Boro",36816,63]
[null,null,null,null,null,null,"Marion Center Boro",47472,null,null,null,null,null,null,null,null,"Marion Center Boro",47472,63]
[null,null,null,null,null,null,"Montgomery Twp",50624,null,null,null,null,null,null,null,null,"Montgomery Twp",50624,63]
[null,null,null,null,null,null,"North Mahoning Twp",55184,null,null,null,null,null,null,null,null,"North Mahoning Twp",55184,63]
[null,null,null,null,null,null,"Pine Twp",60320,null,null,null,null,null,null,null,null,"Pine Twp",60320,63]
[null,null,null,null,null,null,"Plumville Boro",61632,null,null,null,null,null,null,null,null,"Plumville Boro",61632,63]
[null,null,null,null,null,null,"Rayne Twp",63584,null,null,null,null,null,null,null,null,"Rayne Twp",63584,63]
[null,null,null,null,null,null,"Saltsburg Boro",67648,null,null,null,null,null,null,null,null,"Saltsburg Boro",67648,63]
[null,null,null,null,null,null,"Shelocta Boro",70040,null,null,null,null,null,null,null,null,"Shelocta Boro",70040,63]
[null,null,null,null,null,null,"Smicksburg Boro",71256,null,null,null,null,null,null,null,null,"Smicksburg Boro",71256,63]
[null,null,null,null,null,null,"South Mahoning Twp",72304,null,null,null,null,null,null,null,null,"South Mahoning Twp",72304,63]
[null,null,null,null,null,null,"Washington Twp",81256,null,null,null,null,null,null,null,null,"Washington Twp",81256,63]
[null,null,null,null,null,null,"West Mahoning Twp",83416,null,null,null,null,null,null,null,null,"West Mahoning Twp",83416,63]
[null,null,null,null,null,null,"West Wheatfield Twp",84184,null,null,null,null,null,null,null,null,"West Wheatfield Twp",84184,63]
[null,null,null,null,null,null,"White Twp",84472,null,null,null,null,null,null,null,null,"White Twp",84472,63]
[null,null,null,null,null,null,"Young Twp",87160,null,null,null,null,null,null,null,null,"Young Twp",87160,63]
[null,null,null,null,null,null,"Barnett Twp",4240,null,null,null,null,null,null,null,null,"Barnett Twp",4240,65]
[null,null,null,null,null,null,"Beaver Twp",4728,null,null,null,null,null,null,null,null,"Beaver Twp",4728,65]
[null,null,null,null,null,null,"Bell Twp",5200,null,null,null,null,null,null,null,null,"Bell Twp",5200,65]
[null,null,null,null,null,null,"Big Run Boro",6344,null,null,null,null,null,null,null,null,"Big Run Boro",6344,65]
[null,null,null,null,null,null,"Brockway Boro",8960,null,null,null,null,null,null,null,null,"Brockway Boro",8960,65]
[null,null,null,null,null,null,"Brookville Boro",9224,null,null,null,null,null,null,null,null,"Brookville Boro",9224,65]
[null,null,null,null,null,null,"Clover Twp",14408,null,null,null,null,null,null,null,null,"Clover Twp",14408,65]
[null,null,null,null,null,null,"Corsica Boro",16304,null,null,null,null,null,null,null,null,"Corsica Boro",16304,65]
[null,null,null,null,null,null,"Eldred Twp",22872,null,null,null,null,null,null,null,null,"Eldred Twp",22872,65]
[null,null,null,null,null,null,"Falls Creek Boro",25136,null,null,null,null,null,null,null,null,"Falls Creek Boro",25136,65]
[null,null,null,null,null,null,"Gaskill Twp",28592,null,null,null,null,null,null,null,null,"Gaskill Twp",28592,65]
[null,null,null,null,null,null,"Heath Twp",33448,null,null,null,null,null,null,null,null,"Heath Twp",33448,65]
[null,null,null,null,null,null,"Henderson Twp",33816,null,null,null,null,null,null,null,null,"Henderson Twp",33816,65]
[null,null,null,null,null,null,"Knox Twp",40304,null,null,null,null,null,null,null,null,"Knox Twp",40304,65]
[null,null,null,null,null,null,"Mccalmont Twp",45888,null,null,null,null,null,null,null,null,"Mccalmont Twp",45888,65]
[null,null,null,null,null,null,"Oliver Twp",56712,null,null,null,null,null,null,null,null,"Oliver Twp",56712,65]
[null,null,null,null,null,null,"Perry Twp",59480,null,null,null,null,null,null,null,null,"Perry Twp",59480,65]
[null,null,null,null,null,null,"Pine Creek Twp",60368,null,null,null,null,null,null,null,null,"Pine Creek Twp",60368,65]
[null,null,null,null,null,null,"Polk Twp",61920,null,null,null,null,null,null,null,null,"Polk Twp",61920,65]
[null,null,null,null,null,null,"Porter Twp",62176,null,null,null,null,null,null,null,null,"Porter Twp",62176,65]
[null,null,null,null,null,null,"Punxsutawney Boro",62920,null,null,null,null,null,null,null,null,"Punxsutawney Boro",62920,65]
[null,null,null,null,null,null,"Reynoldsville Boro",64376,null,null,null,null,null,null,null,null,"Reynoldsville Boro",64376,65]
[null,null,null,null,null,null,"Ringgold Twp",64960,null,null,null,null,null,null,null,null,"Ringgold Twp",64960,65]
[null,null,null,null,null,null,"Rose Twp",66032,null,null,null,null,null,null,null,null,"Rose Twp",66032,65]
[null,null,null,null,null,null,"Snyder Twp",71632,null,null,null,null,null,null,null,null,"Snyder Twp",71632,65]
[null,null,null,null,null,null,"Summerville Boro",75168,null,null,null,null,null,null,null,null,"Summerville Boro",75168,65]
[null,null,null,null,null,null,"Sykesville Boro",75888,null,null,null,null,null,null,null,null,"Sykesville Boro",75888,65]
[null,null,null,null,null,null,"Timblin Boro",76744,null,null,null,null,null,null,null,null,"Timblin Boro",76744,65]
[null,null,null,null,null,null,"Union Twp",78336,null,null,null,null,null,null,null,null,"Union Twp",78336,65]
[null,null,null,null,null,null,"Warsaw Twp",81120,null,null,null,null,null,null,null,null,"Warsaw Twp",81120,65]
[null,null,null,null,null,null,"Washington Twp",81264,null,null,null,null,null,null,null,null,"Washington Twp",81264,65]
[null,null,null,null,null,null,"Winslow Twp",85840,null,null,null,null,null,null,null,null,"Winslow Twp",85840,65]
[null,null,null,null,null,null,"Worthville Boro",86568,null,null,null,null,null,null,null,null,"Worthville Boro",86568,65]
[null,null,null,null,null,null,"Young Twp",87168,null,null,null,null,null,null,null,null,"Young Twp",87168,65]
[null,null,null,null,null,null,"Beale Twp",4560,null,null,null,null,null,null,null,null,"Beale Twp",4560,67]
[null,null,null,null,null,null,"Delaware Twp",18680,null,null,null,null,null,null,null,null,"Delaware Twp",18680,67]
[null,null,null,null,null,null,"Fayette Twp",25440,null,null,null,null,null,null,null,null,"Fayette Twp",25440,67]
[null,null,null,null,null,null,"Fermanagh Twp",25648,null,null,null,null,null,null,null,null,"Fermanagh Twp",25648,67]
[null,null,null,null,null,null,"Greenwood Twp",31424,null,null,null,null,null,null,null,null,"Greenwood Twp",31424,67]
[null,null,null,null,null,null,"Lack Twp",40752,null,null,null,null,null,null,null,null,"Lack Twp",40752,67]
[null,null,null,null,null,null,"Mifflin Boro",49272,null,null,null,null,null,null,null,null,"Mifflin Boro",49272,67]
[null,null,null,null,null,null,"Mifflintown Boro",49304,null,null,null,null,null,null,null,null,"Mifflintown Boro",49304,67]
[null,null,null,null,null,null,"Milford Twp",49392,null,null,null,null,null,null,null,null,"Milford Twp",49392,67]
[null,null,null,null,null,null,"Monroe Twp",50480,null,null,null,null,null,null,null,null,"Monroe Twp",50480,67]
[null,null,null,null,null,null,"Port Royal Boro",62304,null,null,null,null,null,null,null,null,"Port Royal Boro",62304,67]
[null,null,null,null,null,null,"Spruce Hill Twp",73504,null,null,null,null,null,null,null,null,"Spruce Hill Twp",73504,67]
[null,null,null,null,null,null,"Susquehanna Twp",75536,null,null,null,null,null,null,null,null,"Susquehanna Twp",75536,67]
[null,null,null,null,null,null,"Thompsontown Boro",76536,null,null,null,null,null,null,null,null,"Thompsontown Boro",76536,67]
[null,null,null,null,null,null,"Turbett Twp",77824,null,null,null,null,null,null,null,null,"Turbett Twp",77824,67]
[null,null,null,null,null,null,"Tuscarora Twp",77952,null,null,null,null,null,null,null,null,"Tuscarora Twp",77952,67]
[null,null,null,null,null,null,"Walker Twp",80568,null,null,null,null,null,null,null,null,"Walker Twp",80568,67]
[null,null,null,null,null,null,"Abington Twp",140,null,null,null,null,null,null,null,null,"Abington Twp",140,69]
[null,null,null,null,null,null,"Archbald Boro",2832,null,null,null,null,null,null,null,null,"Archbald Boro",2832,69]
[null,null,null,null,null,null,"Benton Twp",5696,null,null,null,null,null,null,null,null,"Benton Twp",5696,69]
[null,null,null,null,null,null,"Blakely Boro",6928,null,null,null,null,null,null,null,null,"Blakely Boro",6928,69]
[null,null,null,null,null,null,"Carbondale City",11232,null,null,null,null,null,null,null,null,"Carbondale City",11232,69]
[null,null,null,null,null,null,"Carbondale Twp",11240,null,null,null,null,null,null,null,null,"Carbondale Twp",11240,69]
[null,null,null,null,null,null,"Clarks Green Boro",13864,null,null,null,null,null,null,null,null,"Clarks Green Boro",13864,69]
[null,null,null,null,null,null,"Clarks Summit Boro",13880,null,null,null,null,null,null,null,null,"Clarks Summit Boro",13880,69]
[null,null,null,null,null,null,"Clifton Twp",14256,null,null,null,null,null,null,null,null,"Clifton Twp",14256,69]
[null,null,null,null,null,null,"Covington Twp",16664,null,null,null,null,null,null,null,null,"Covington Twp",16664,69]
[null,null,null,null,null,null,"Dalton Boro",18088,null,null,null,null,null,null,null,null,"Dalton Boro",18088,69]
[null,null,null,null,null,null,"Dickson City Boro",19160,null,null,null,null,null,null,null,null,"Dickson City Boro",19160,69]
[null,null,null,null,null,null,"Dunmore Boro",20352,null,null,null,null,null,null,null,null,"Dunmore Boro",20352,69]
[null,null,null,null,null,null,"Elmhurst Twp",23336,null,null,null,null,null,null,null,null,"Elmhurst Twp",23336,69]
[null,null,null,null,null,null,"Fell Twp",25560,null,null,null,null,null,null,null,null,"Fell Twp",25560,69]
[null,null,null,null,null,null,"Glenburn Twp",29504,null,null,null,null,null,null,null,null,"Glenburn Twp",29504,69]
[null,null,null,null,null,null,"Greenfield Twp",31016,null,null,null,null,null,null,null,null,"Greenfield Twp",31016,69]
[null,null,null,null,null,null,"Jefferson Twp",37896,null,null,null,null,null,null,null,null,"Jefferson Twp",37896,69]
[null,null,null,null,null,null,"Jermyn Boro",38096,null,null,null,null,null,null,null,null,"Jermyn Boro",38096,69]
[null,null,null,null,null,null,"Jessup Boro",38160,null,null,null,null,null,null,null,null,"Jessup Boro",38160,69]
[null,null,null,null,null,null,"Laplume Twp",41504,null,null,null,null,null,null,null,null,"Laplume Twp",41504,69]
[null,null,null,null,null,null,"Madison Twp",46480,null,null,null,null,null,null,null,null,"Madison Twp",46480,69]
[null,null,null,null,null,null,"Mayfield Boro",48176,null,null,null,null,null,null,null,null,"Mayfield Boro",48176,69]
[null,null,null,null,null,null,"Moosic Boro",50880,null,null,null,null,null,null,null,null,"Moosic Boro",50880,69]
[null,null,null,null,null,null,"Moscow Boro",51208,null,null,null,null,null,null,null,null,"Moscow Boro",51208,69]
[null,null,null,null,null,null,"Newton Twp",54136,null,null,null,null,null,null,null,null,"Newton Twp",54136,69]
[null,null,null,null,null,null,"North Abington Twp",54680,null,null,null,null,null,null,null,null,"North Abington Twp",54680,69]
[null,null,null,null,null,null,"Old Forge Boro",56576,null,null,null,null,null,null,null,null,"Old Forge Boro",56576,69]
[null,null,null,null,null,null,"Olyphant Boro",56792,null,null,null,null,null,null,null,null,"Olyphant Boro",56792,69]
[null,null,null,null,null,null,"Ransom Twp",63432,null,null,null,null,null,null,null,null,"Ransom Twp",63432,69]
[null,null,null,null,null,null,"Roaring Brook Twp",65224,null,null,null,null,null,null,null,null,"Roaring Brook Twp",65224,69]
[null,null,null,null,null,null,"Scott Twp",68400,null,null,null,null,null,null,null,null,"Scott Twp",68400,69]
[null,null,null,null,null,null,"Scranton City",69000,null,null,null,null,null,null,null,null,"Scranton City",69000,69]
[null,null,null,null,null,null,"South Abington Twp",71872,null,null,null,null,null,null,null,null,"South Abington Twp",71872,69]
[null,null,null,null,null,null,"Springbrook Twp",72896,null,null,null,null,null,null,null,null,"Springbrook Twp",72896,69]
[null,null,null,null,null,null,"Taylor Boro",76184,null,null,null,null,null,null,null,null,"Taylor Boro",76184,69]
[null,null,null,null,null,null,"Thornhurst Twp",76601,null,null,null,null,null,null,null,null,"Thornhurst Twp",76601,69]
[null,null,null,null,null,null,"Throop Boro",76648,null,null,null,null,null,null,null,null,"Throop Boro",76648,69]
[null,null,null,null,null,null,"Vandling Boro",79792,null,null,null,null,null,null,null,null,"Vandling Boro",79792,69]
[null,null,null,null,null,null,"West Abington Twp",82360,null,null,null,null,null,null,null,null,"West Abington Twp",82360,69]
[null,null,null,null,null,null,"Adamstown Boro",364,null,null,null,null,null,null,null,null,"Adamstown Boro",364,71]
[null,null,null,null,null,null,"Akron Boro",540,null,null,null,null,null,null,null,null,"Akron Boro",540,71]
[null,null,null,null,null,null,"Bart Twp",4376,null,null,null,null,null,null,null,null,"Bart Twp",4376,71]
[null,null,null,null,null,null,"Brecknock Twp",8352,null,null,null,null,null,null,null,null,"Brecknock Twp",8352,71]
[null,null,null,null,null,null,"Caernarvon Twp",10704,null,null,null,null,null,null,null,null,"Caernarvon Twp",10704,71]
[null,null,null,null,null,null,"Christiana Boro",13512,null,null,null,null,null,null,null,null,"Christiana Boro",13512,71]
[null,null,null,null,null,null,"Clay Twp",13960,null,null,null,null,null,null,null,null,"Clay Twp",13960,71]
[null,null,null,null,null,null,"Colerain Twp",15056,null,null,null,null,null,null,null,null,"Colerain Twp",15056,71]
[null,null,null,null,null,null,"Columbia Boro",15384,null,null,null,null,null,null,null,null,"Columbia Boro",15384,71]
[null,null,null,null,null,null,"Conestoga Twp",15592,null,null,null,null,null,null,null,null,"Conestoga Twp",15592,71]
[null,null,null,null,null,null,"Conoy Twp",15824,null,null,null,null,null,null,null,null,"Conoy Twp",15824,71]
[null,null,null,null,null,null,"Denver Boro",18888,null,null,null,null,null,null,null,null,"Denver Boro",18888,71]
[null,null,null,null,null,null,"Drumore Twp",20032,null,null,null,null,null,null,null,null,"Drumore Twp",20032,71]
[null,null,null,null,null,null,"Earl Twp",20688,null,null,null,null,null,null,null,null,"Earl Twp",20688,71]
[null,null,null,null,null,null,"East Cocalico Twp",20984,null,null,null,null,null,null,null,null,"East Cocalico Twp",20984,71]
[null,null,null,null,null,null,"East Donegal Twp",21032,null,null,null,null,null,null,null,null,"East Donegal Twp",21032,71]
[null,null,null,null,null,null,"East Drumore Twp",21040,null,null,null,null,null,null,null,null,"East Drumore Twp",21040,71]
[null,null,null,null,null,null,"East Earl Twp",21072,null,null,null,null,null,null,null,null,"East Earl Twp",21072,71]
[null,null,null,null,null,null,"East Hempfield Twp",21232,null,null,null,null,null,null,null,null,"East Hempfield Twp",21232,71]
[null,null,null,null,null,null,"East Lampeter Twp",21344,null,null,null,null,null,null,null,null,"East Lampeter Twp",21344,71]
[null,null,null,null,null,null,"East Petersburg Boro",21688,null,null,null,null,null,null,null,null,"East Petersburg Boro",21688,71]
[null,null,null,null,null,null,"Eden Twp",22336,null,null,null,null,null,null,null,null,"Eden Twp",22336,71]
[null,null,null,null,null,null,"Elizabeth Twp",23008,null,null,null,null,null,null,null,null,"Elizabeth Twp",23008,71]
[null,null,null,null,null,null,"Elizabethtown Boro",23016,null,null,null,null,null,null,null,null,"Elizabethtown Boro",23016,71]
[null,null,null,null,null,null,"Ephrata Boro",23832,null,null,null,null,null,null,null,null,"Ephrata Boro",23832,71]
[null,null,null,null,null,null,"Ephrata Twp",23840,null,null,null,null,null,null,null,null,"Ephrata Twp",23840,71]
[null,null,null,null,null,null,"Fulton Twp",28168,null,null,null,null,null,null,null,null,"Fulton Twp",28168,71]
[null,null,null,null,null,null,"Lancaster City",41216,null,null,null,null,null,null,null,null,"Lancaster City",41216,71]
[null,null,null,null,null,null,"Lancaster Twp",41224,null,null,null,null,null,null,null,null,"Lancaster Twp",41224,71]
[null,null,null,null,null,null,"Leacock Twp",42080,null,null,null,null,null,null,null,null,"Leacock Twp",42080,71]
[null,null,null,null,null,null,"Lititz Boro",43816,null,null,null,null,null,null,null,null,"Lititz Boro",43816,71]
[null,null,null,null,null,null,"Little Britain Twp",43832,null,null,null,null,null,null,null,null,"Little Britain Twp",43832,71]
[null,null,null,null,null,null,"Manheim Boro",46888,null,null,null,null,null,null,null,null,"Manheim Boro",46888,71]
[null,null,null,null,null,null,"Manheim Twp",46896,null,null,null,null,null,null,null,null,"Manheim Twp",46896,71]
[null,null,null,null,null,null,"Manor Twp",46992,null,null,null,null,null,null,null,null,"Manor Twp",46992,71]
[null,null,null,null,null,null,"Marietta Boro",47424,null,null,null,null,null,null,null,null,"Marietta Boro",47424,71]
[null,null,null,null,null,null,"Martic Twp",47824,null,null,null,null,null,null,null,null,"Martic Twp",47824,71]
[null,null,null,null,null,null,"Millersville Boro",49728,null,null,null,null,null,null,null,null,"Millersville Boro",49728,71]
[null,null,null,null,null,null,"Mt Joy Boro",51656,null,null,null,null,null,null,null,null,"Mt Joy Boro",51656,71]
[null,null,null,null,null,null,"Mount Joy Twp",51664,null,null,null,null,null,null,null,null,"Mount Joy Twp",51664,71]
[null,null,null,null,null,null,"Mountville Boro",52016,null,null,null,null,null,null,null,null,"Mountville Boro",52016,71]
[null,null,null,null,null,null,"New Holland Boro",53696,null,null,null,null,null,null,null,null,"New Holland Boro",53696,71]
[null,null,null,null,null,null,"Paradise Twp",57848,null,null,null,null,null,null,null,null,"Paradise Twp",57848,71]
[null,null,null,null,null,null,"Penn Twp",58840,null,null,null,null,null,null,null,null,"Penn Twp",58840,71]
[null,null,null,null,null,null,"Pequea Twp",59360,null,null,null,null,null,null,null,null,"Pequea Twp",59360,71]
[null,null,null,null,null,null,"Providence Twp",62832,null,null,null,null,null,null,null,null,"Providence Twp",62832,71]
[null,null,null,null,null,null,"Quarryville Boro",63064,null,null,null,null,null,null,null,null,"Quarryville Boro",63064,71]
[null,null,null,null,null,null,"Rapho Twp",63440,null,null,null,null,null,null,null,null,"Rapho Twp",63440,71]
[null,null,null,null,null,null,"Sadsbury Twp",67096,null,null,null,null,null,null,null,null,"Sadsbury Twp",67096,71]
[null,null,null,null,null,null,"Salisbury Twp",67568,null,null,null,null,null,null,null,null,"Salisbury Twp",67568,71]
[null,null,null,null,null,null,"Strasburg Boro",74712,null,null,null,null,null,null,null,null,"Strasburg Boro",74712,71]
[null,null,null,null,null,null,"Strasburg Twp",74720,null,null,null,null,null,null,null,null,"Strasburg Twp",74720,71]
[null,null,null,null,null,null,"Terre Hill Boro",76400,null,null,null,null,null,null,null,null,"Terre Hill Boro",76400,71]
[null,null,null,null,null,null,"Upper Leacock Twp",79080,null,null,null,null,null,null,null,null,"Upper Leacock Twp",79080,71]
[null,null,null,null,null,null,"Warwick Twp",81168,null,null,null,null,null,null,null,null,"Warwick Twp",81168,71]
[null,null,null,null,null,null,"West Cocalico Twp",82728,null,null,null,null,null,null,null,null,"West Cocalico Twp",82728,71]
[null,null,null,null,null,null,"West Donegal Twp",82816,null,null,null,null,null,null,null,null,"West Donegal Twp",82816,71]
[null,null,null,null,null,null,"West Earl Twp",82824,null,null,null,null,null,null,null,null,"West Earl Twp",82824,71]
[null,null,null,null,null,null,"West Hempfield Twp",83152,null,null,null,null,null,null,null,null,"West Hempfield Twp",83152,71]
[null,null,null,null,null,null,"West Lampeter Twp",83256,null,null,null,null,null,null,null,null,"West Lampeter Twp",83256,71]
[null,null,null,null,null,null,"Bessemer Boro",5936,null,null,null,null,null,null,null,null,"Bessemer Boro",5936,73]
[null,null,null,null,null,null,"Ellport Boro",23280,null,null,null,null,null,null,null,null,"Ellport Boro",23280,73]
[null,null,null,null,null,null,"Ellwood City Boro",23304,null,null,null,null,null,null,null,null,"Ellwood City Boro",23304,73]
[null,null,null,null,null,null,"Enon Valley Boro",23768,null,null,null,null,null,null,null,null,"Enon Valley Boro",23768,73]
[null,null,null,null,null,null,"Hickory Twp",34248,null,null,null,null,null,null,null,null,"Hickory Twp",34248,73]
[null,null,null,null,null,null,"Little Beaver Twp",43824,null,null,null,null,null,null,null,null,"Little Beaver Twp",43824,73]
[null,null,null,null,null,null,"Mahoning Twp",46648,null,null,null,null,null,null,null,null,"Mahoning Twp",46648,73]
[null,null,null,null,null,null,"Neshannock Twp",53064,null,null,null,null,null,null,null,null,"Neshannock Twp",53064,73]
[null,null,null,null,null,null,"New Beaver Boro",53184,null,null,null,null,null,null,null,null,"New Beaver Boro",53184,73]
[null,null,null,null,null,null,"New Castle City",53368,null,null,null,null,null,null,null,null,"New Castle City",53368,73]
[null,null,null,null,null,null,"New Wilmington Boro",54352,null,null,null,null,null,null,null,null,"New Wilmington Boro",54352,73]
[null,null,null,null,null,null,"North Beaver Twp",54768,null,null,null,null,null,null,null,null,"North Beaver Twp",54768,73]
[null,null,null,null,null,null,"Perry Twp",59488,null,null,null,null,null,null,null,null,"Perry Twp",59488,73]
[null,null,null,null,null,null,"Plain Grove Twp",61104,null,null,null,null,null,null,null,null,"Plain Grove Twp",61104,73]
[null,null,null,null,null,null,"Pulaski Twp",62904,null,null,null,null,null,null,null,null,"Pulaski Twp",62904,73]
[null,null,null,null,null,null,"Scott Twp",68408,null,null,null,null,null,null,null,null,"Scott Twp",68408,73]
[null,null,null,null,null,null,"Shenango Twp",70080,null,null,null,null,null,null,null,null,"Shenango Twp",70080,73]
[null,null,null,null,null,null,"Slippery Rock Twp",71200,null,null,null,null,null,null,null,null,"Slippery Rock Twp",71200,73]
[null,null,null,null,null,null,"S.N.P.J. Boro",71620,null,null,null,null,null,null,null,null,"S.N.P.J. Boro",71620,73]
[null,null,null,null,null,null,"South New Castle Boro",72376,null,null,null,null,null,null,null,null,"South New Castle Boro",72376,73]
[null,null,null,null,null,null,"Taylor Twp",76192,null,null,null,null,null,null,null,null,"Taylor Twp",76192,73]
[null,null,null,null,null,null,"Union Twp",78368,null,null,null,null,null,null,null,null,"Union Twp",78368,73]
[null,null,null,null,null,null,"Volant Boro",80368,null,null,null,null,null,null,null,null,"Volant Boro",80368,73]
[null,null,null,null,null,null,"Wampum Boro",80880,null,null,null,null,null,null,null,null,"Wampum Boro",80880,73]
[null,null,null,null,null,null,"Washington Twp",81272,null,null,null,null,null,null,null,null,"Washington Twp",81272,73]
[null,null,null,null,null,null,"Wayne Twp",81776,null,null,null,null,null,null,null,null,"Wayne Twp",81776,73]
[null,null,null,null,null,null,"Wilmington Twp",85504,null,null,null,null,null,null,null,null,"Wilmington Twp",85504,73]
[null,null,null,null,null,null,"Annville Twp",2600,null,null,null,null,null,null,null,null,"Annville Twp",2600,75]
[null,null,null,null,null,null,"Bethel Twp",6040,null,null,null,null,null,null,null,null,"Bethel Twp",6040,75]
[null,null,null,null,null,null,"Cleona Boro",14160,null,null,null,null,null,null,null,null,"Cleona Boro",14160,75]
[null,null,null,null,null,null,"Cold Spring Twp",14944,null,null,null,null,null,null,null,null,"Cold Spring Twp",14944,75]
[null,null,null,null,null,null,"Cornwall Boro",16256,null,null,null,null,null,null,null,null,"Cornwall Boro",16256,75]
[null,null,null,null,null,null,"East Hanover Twp",21224,null,null,null,null,null,null,null,null,"East Hanover Twp",21224,75]
[null,null,null,null,null,null,"Heidelberg Twp",33608,null,null,null,null,null,null,null,null,"Heidelberg Twp",33608,75]
[null,null,null,null,null,null,"Jackson Twp",37392,null,null,null,null,null,null,null,null,"Jackson Twp",37392,75]
[null,null,null,null,null,null,"Jonestown Boro",38400,null,null,null,null,null,null,null,null,"Jonestown Boro",38400,75]
[null,null,null,null,null,null,"Lebanon City",42168,null,null,null,null,null,null,null,null,"Lebanon City",42168,75]
[null,null,null,null,null,null,"Millcreek Twp",49560,null,null,null,null,null,null,null,null,"Millcreek Twp",49560,75]
[null,null,null,null,null,null,"Mount Gretna Boro",51568,null,null,null,null,null,null,null,null,"Mount Gretna Boro",51568,75]
[null,null,null,null,null,null,"Myerstown Boro",52488,null,null,null,null,null,null,null,null,"Myerstown Boro",52488,75]
[null,null,null,null,null,null,"North Annville Twp",54720,null,null,null,null,null,null,null,null,"North Annville Twp",54720,75]
[null,null,null,null,null,null,"North Cornwall Twp",54928,null,null,null,null,null,null,null,null,"North Cornwall Twp",54928,75]
[null,null,null,null,null,null,"North Lebanon Twp",55160,null,null,null,null,null,null,null,null,"North Lebanon Twp",55160,75]
[null,null,null,null,null,null,"North Londonderry Twp",55176,null,null,null,null,null,null,null,null,"North Londonderry Twp",55176,75]
[null,null,null,null,null,null,"Palmyra Boro",57720,null,null,null,null,null,null,null,null,"Palmyra Boro",57720,75]
[null,null,null,null,null,null,"Richland Boro",64560,null,null,null,null,null,null,null,null,"Richland Boro",64560,75]
[null,null,null,null,null,null,"South Annville Twp",71928,null,null,null,null,null,null,null,null,"South Annville Twp",71928,75]
[null,null,null,null,null,null,"South Lebanon Twp",72288,null,null,null,null,null,null,null,null,"South Lebanon Twp",72288,75]
[null,null,null,null,null,null,"South Londonderry Twp",72296,null,null,null,null,null,null,null,null,"South Londonderry Twp",72296,75]
[null,null,null,null,null,null,"Swatara Twp",75680,null,null,null,null,null,null,null,null,"Swatara Twp",75680,75]
[null,null,null,null,null,null,"Union Twp",78376,null,null,null,null,null,null,null,null,"Union Twp",78376,75]
[null,null,null,null,null,null,"West Cornwall Twp",82752,null,null,null,null,null,null,null,null,"West Cornwall Twp",82752,75]
[null,null,null,null,null,null,"West Lebanon Twp",83312,null,null,null,null,null,null,null,null,"West Lebanon Twp",83312,75]
[null,null,null,null,null,null,"Alburtis Boro",660,null,null,null,null,null,null,null,null,"Alburtis Boro",660,77]
[null,null,null,null,null,null,"Allentown City",2000,null,null,null,null,null,null,null,null,"Allentown City",2000,77]
[null,null,null,null,null,null,"Bethlehem City",6088,null,null,null,null,null,null,null,null,"Bethlehem City",6088,77]
[null,null,null,null,null,null,"Catasauqua Boro",11720,null,null,null,null,null,null,null,null,"Catasauqua Boro",11720,77]
[null,null,null,null,null,null,"Coopersburg Boro",16056,null,null,null,null,null,null,null,null,"Coopersburg Boro",16056,77]
[null,null,null,null,null,null,"Coplay Boro",16128,null,null,null,null,null,null,null,null,"Coplay Boro",16128,77]
[null,null,null,null,null,null,"Emmaus Boro",23584,null,null,null,null,null,null,null,null,"Emmaus Boro",23584,77]
[null,null,null,null,null,null,"Fountain Hill Boro",27008,null,null,null,null,null,null,null,null,"Fountain Hill Boro",27008,77]
[null,null,null,null,null,null,"Hanover Twp",32400,null,null,null,null,null,null,null,null,"Hanover Twp",32400,77]
[null,null,null,null,null,null,"Heidelberg Twp",33616,null,null,null,null,null,null,null,null,"Heidelberg Twp",33616,77]
[null,null,null,null,null,null,"Lower Macungie Twp",44952,null,null,null,null,null,null,null,null,"Lower Macungie Twp",44952,77]
[null,null,null,null,null,null,"Lower Milford Twp",44992,null,null,null,null,null,null,null,null,"Lower Milford Twp",44992,77]
[null,null,null,null,null,null,"Lowhill Twp",45168,null,null,null,null,null,null,null,null,"Lowhill Twp",45168,77]
[null,null,null,null,null,null,"Lynn Twp",45656,null,null,null,null,null,null,null,null,"Lynn Twp",45656,77]
[null,null,null,null,null,null,"Macungie Boro",46392,null,null,null,null,null,null,null,null,"Macungie Boro",46392,77]
[null,null,null,null,null,null,"North Whitehall Twp",55576,null,null,null,null,null,null,null,null,"North Whitehall Twp",55576,77]
[null,null,null,null,null,null,"Salisbury Twp",67576,null,null,null,null,null,null,null,null,"Salisbury Twp",67576,77]
[null,null,null,null,null,null,"Slatington Boro",71144,null,null,null,null,null,null,null,null,"Slatington Boro",71144,77]
[null,null,null,null,null,null,"South Whitehall Twp",72632,null,null,null,null,null,null,null,null,"South Whitehall Twp",72632,77]
[null,null,null,null,null,null,"Upper Macungie Twp",79104,null,null,null,null,null,null,null,null,"Upper Macungie Twp",79104,77]
[null,null,null,null,null,null,"Upper Milford Twp",79160,null,null,null,null,null,null,null,null,"Upper Milford Twp",79160,77]
[null,null,null,null,null,null,"Upper Saucon Twp",79288,null,null,null,null,null,null,null,null,"Upper Saucon Twp",79288,77]
[null,null,null,null,null,null,"Washington Twp",81280,null,null,null,null,null,null,null,null,"Washington Twp",81280,77]
[null,null,null,null,null,null,"Weisenberg Twp",82064,null,null,null,null,null,null,null,null,"Weisenberg Twp",82064,77]
[null,null,null,null,null,null,"Whitehall Twp",84528,null,null,null,null,null,null,null,null,"Whitehall Twp",84528,77]
[null,null,null,null,null,null,"Ashley Boro",3272,null,null,null,null,null,null,null,null,"Ashley Boro",3272,79]
[null,null,null,null,null,null,"Avoca Boro",3640,null,null,null,null,null,null,null,null,"Avoca Boro",3640,79]
[null,null,null,null,null,null,"Bear Creek Twp",4592,null,null,null,null,null,null,null,null,"Bear Creek Twp",4592,79]
[null,null,null,null,null,null,"Bear Creek Village Boro",4599,null,null,null,null,null,null,null,null,"Bear Creek Village Boro",4599,79]
[null,null,null,null,null,null,"Black Creek Twp",6672,null,null,null,null,null,null,null,null,"Black Creek Twp",6672,79]
[null,null,null,null,null,null,"Buck Twp",9760,null,null,null,null,null,null,null,null,"Buck Twp",9760,79]
[null,null,null,null,null,null,"Butler Twp",10480,null,null,null,null,null,null,null,null,"Butler Twp",10480,79]
[null,null,null,null,null,null,"Conyngham Boro",15888,null,null,null,null,null,null,null,null,"Conyngham Boro",15888,79]
[null,null,null,null,null,null,"Conyngham Twp",15904,null,null,null,null,null,null,null,null,"Conyngham Twp",15904,79]
[null,null,null,null,null,null,"Courtdale Boro",16568,null,null,null,null,null,null,null,null,"Courtdale Boro",16568,79]
[null,null,null,null,null,null,"Dallas Boro",18048,null,null,null,null,null,null,null,null,"Dallas Boro",18048,79]
[null,null,null,null,null,null,"Dallas Twp",18056,null,null,null,null,null,null,null,null,"Dallas Twp",18056,79]
[null,null,null,null,null,null,"Dennison Twp",18868,null,null,null,null,null,null,null,null,"Dennison Twp",18868,79]
[null,null,null,null,null,null,"Dorrance Twp",19616,null,null,null,null,null,null,null,null,"Dorrance Twp",19616,79]
[null,null,null,null,null,null,"Dupont Boro",20424,null,null,null,null,null,null,null,null,"Dupont Boro",20424,79]
[null,null,null,null,null,null,"Duryea Boro",20512,null,null,null,null,null,null,null,null,"Duryea Boro",20512,79]
[null,null,null,null,null,null,"Edwardsville Boro",22672,null,null,null,null,null,null,null,null,"Edwardsville Boro",22672,79]
[null,null,null,null,null,null,"Exeter Boro",24392,null,null,null,null,null,null,null,null,"Exeter Boro",24392,79]
[null,null,null,null,null,null,"Exeter Twp",24400,null,null,null,null,null,null,null,null,"Exeter Twp",24400,79]
[null,null,null,null,null,null,"Fairmount Twp",24752,null,null,null,null,null,null,null,null,"Fairmount Twp",24752,79]
[null,null,null,null,null,null,"Fairview Twp",24888,null,null,null,null,null,null,null,null,"Fairview Twp",24888,79]
[null,null,null,null,null,null,"Forty Fort Boro",26880,null,null,null,null,null,null,null,null,"Forty Fort Boro",26880,79]
[null,null,null,null,null,null,"Foster Twp",26928,null,null,null,null,null,null,null,null,"Foster Twp",26928,79]
[null,null,null,null,null,null,"Franklin Twp",27424,null,null,null,null,null,null,null,null,"Franklin Twp",27424,79]
[null,null,null,null,null,null,"Freeland Boro",27744,null,null,null,null,null,null,null,null,"Freeland Boro",27744,79]
[null,null,null,null,null,null,"Hanover Twp",32416,null,null,null,null,null,null,null,null,"Hanover Twp",32416,79]
[null,null,null,null,null,null,"Harveys Lake Boro",33000,null,null,null,null,null,null,null,null,"Harveys Lake Boro",33000,79]
[null,null,null,null,null,null,"Hazle Twp",33376,null,null,null,null,null,null,null,null,"Hazle Twp",33376,79]
[null,null,null,null,null,null,"Hazleton City",33408,null,null,null,null,null,null,null,null,"Hazleton City",33408,79]
[null,null,null,null,null,null,"Hollenback Twp",35192,null,null,null,null,null,null,null,null,"Hollenback Twp",35192,79]
[null,null,null,null,null,null,"Hughestown Boro",36152,null,null,null,null,null,null,null,null,"Hughestown Boro",36152,79]
[null,null,null,null,null,null,"Hunlock Twp",36296,null,null,null,null,null,null,null,null,"Hunlock Twp",36296,79]
[null,null,null,null,null,null,"Huntington Twp",36432,null,null,null,null,null,null,null,null,"Huntington Twp",36432,79]
[null,null,null,null,null,null,"Jackson Twp",37400,null,null,null,null,null,null,null,null,"Jackson Twp",37400,79]
[null,null,null,null,null,null,"Jeddo Boro",37792,null,null,null,null,null,null,null,null,"Jeddo Boro",37792,79]
[null,null,null,null,null,null,"Jenkins Twp",37984,null,null,null,null,null,null,null,null,"Jenkins Twp",37984,79]
[null,null,null,null,null,null,"Kingston Boro",39784,null,null,null,null,null,null,null,null,"Kingston Boro",39784,79]
[null,null,null,null,null,null,"Kingston Twp",39792,null,null,null,null,null,null,null,null,"Kingston Twp",39792,79]
[null,null,null,null,null,null,"Laflin Boro",40848,null,null,null,null,null,null,null,null,"Laflin Boro",40848,79]
[null,null,null,null,null,null,"Lake Twp",40920,null,null,null,null,null,null,null,null,"Lake Twp",40920,79]
[null,null,null,null,null,null,"Larksville Boro",41608,null,null,null,null,null,null,null,null,"Larksville Boro",41608,79]
[null,null,null,null,null,null,"Laurel Run Boro",41848,null,null,null,null,null,null,null,null,"Laurel Run Boro",41848,79]
[null,null,null,null,null,null,"Lehman Twp",42504,null,null,null,null,null,null,null,null,"Lehman Twp",42504,79]
[null,null,null,null,null,null,"Luzerne Boro",45568,null,null,null,null,null,null,null,null,"Luzerne Boro",45568,79]
[null,null,null,null,null,null,"Nanticoke City",52584,null,null,null,null,null,null,null,null,"Nanticoke City",52584,79]
[null,null,null,null,null,null,"Nescopeck Boro",52984,null,null,null,null,null,null,null,null,"Nescopeck Boro",52984,79]
[null,null,null,null,null,null,"Nescopeck Twp",52992,null,null,null,null,null,null,null,null,"Nescopeck Twp",52992,79]
[null,null,null,null,null,null,"New Columbus Boro",53448,null,null,null,null,null,null,null,null,"New Columbus Boro",53448,79]
[null,null,null,null,null,null,"Newport Twp",53960,null,null,null,null,null,null,null,null,"Newport Twp",53960,79]
[null,null,null,null,null,null,"Nuangola Boro",55752,null,null,null,null,null,null,null,null,"Nuangola Boro",55752,79]
[null,null,null,null,null,null,"Penn Lake Park Boro",59054,null,null,null,null,null,null,null,null,"Penn Lake Park Boro",59054,79]
[null,null,null,null,null,null,"Pittston City",61048,null,null,null,null,null,null,null,null,"Pittston City",61048,79]
[null,null,null,null,null,null,"Pittston Twp",61056,null,null,null,null,null,null,null,null,"Pittston Twp",61056,79]
[null,null,null,null,null,null,"Plains Twp",61120,null,null,null,null,null,null,null,null,"Plains Twp",61120,79]
[null,null,null,null,null,null,"Plymouth Boro",61648,null,null,null,null,null,null,null,null,"Plymouth Boro",61648,79]
[null,null,null,null,null,null,"Plymouth Twp",61656,null,null,null,null,null,null,null,null,"Plymouth Twp",61656,79]
[null,null,null,null,null,null,"Pringle Boro",62712,null,null,null,null,null,null,null,null,"Pringle Boro",62712,79]
[null,null,null,null,null,null,"Rice Twp",64424,null,null,null,null,null,null,null,null,"Rice Twp",64424,79]
[null,null,null,null,null,null,"Ross Twp",66272,null,null,null,null,null,null,null,null,"Ross Twp",66272,79]
[null,null,null,null,null,null,"Salem Twp",67456,null,null,null,null,null,null,null,null,"Salem Twp",67456,79]
[null,null,null,null,null,null,"Shickshinny Boro",70224,null,null,null,null,null,null,null,null,"Shickshinny Boro",70224,79]
[null,null,null,null,null,null,"Slocum Twp",71216,null,null,null,null,null,null,null,null,"Slocum Twp",71216,79]
[null,null,null,null,null,null,"Sugarloaf Twp",75064,null,null,null,null,null,null,null,null,"Sugarloaf Twp",75064,79]
[null,null,null,null,null,null,"Sugar Notch Boro",75072,null,null,null,null,null,null,null,null,"Sugar Notch Boro",75072,79]
[null,null,null,null,null,null,"Swoyersville Boro",75832,null,null,null,null,null,null,null,null,"Swoyersville Boro",75832,79]
[null,null,null,null,null,null,"Union Twp",78384,null,null,null,null,null,null,null,null,"Union Twp",78384,79]
[null,null,null,null,null,null,"Warrior Run Boro",81080,null,null,null,null,null,null,null,null,"Warrior Run Boro",81080,79]
[null,null,null,null,null,null,"West Hazleton Boro",83136,null,null,null,null,null,null,null,null,"West Hazleton Boro",83136,79]
[null,null,null,null,null,null,"West Pittston Boro",83856,null,null,null,null,null,null,null,null,"West Pittston Boro",83856,79]
[null,null,null,null,null,null,"West Wyoming Boro",84272,null,null,null,null,null,null,null,null,"West Wyoming Boro",84272,79]
[null,null,null,null,null,null,"White Haven Boro",84552,null,null,null,null,null,null,null,null,"White Haven Boro",84552,79]
[null,null,null,null,null,null,"Wilkes Barre City",85152,null,null,null,null,null,null,null,null,"Wilkes Barre City",85152,79]
[null,null,null,null,null,null,"Wilkes Barre Twp",85160,null,null,null,null,null,null,null,null,"Wilkes Barre Twp",85160,79]
[null,null,null,null,null,null,"Wright Twp",86584,null,null,null,null,null,null,null,null,"Wright Twp",86584,79]
[null,null,null,null,null,null,"Wyoming Boro",86856,null,null,null,null,null,null,null,null,"Wyoming Boro",86856,79]
[null,null,null,null,null,null,"Yatesville Boro",86952,null,null,null,null,null,null,null,null,"Yatesville Boro",86952,79]
[null,null,null,null,null,null,"Anthony Twp",2656,null,null,null,null,null,null,null,null,"Anthony Twp",2656,81]
[null,null,null,null,null,null,"Armstrong Twp",3072,null,null,null,null,null,null,null,null,"Armstrong Twp",3072,81]
[null,null,null,null,null,null,"Bastress Twp",4424,null,null,null,null,null,null,null,null,"Bastress Twp",4424,81]
[null,null,null,null,null,null,"Brady Twp",8136,null,null,null,null,null,null,null,null,"Brady Twp",8136,81]
[null,null,null,null,null,null,"Brown Twp",9280,null,null,null,null,null,null,null,null,"Brown Twp",9280,81]
[null,null,null,null,null,null,"Cascade Twp",11560,null,null,null,null,null,null,null,null,"Cascade Twp",11560,81]
[null,null,null,null,null,null,"Clinton Twp",14336,null,null,null,null,null,null,null,null,"Clinton Twp",14336,81]
[null,null,null,null,null,null,"Cogan House Twp",14872,null,null,null,null,null,null,null,null,"Cogan House Twp",14872,81]
[null,null,null,null,null,null,"Cummings Twp",17696,null,null,null,null,null,null,null,null,"Cummings Twp",17696,81]
[null,null,null,null,null,null,"Duboistown Boro",20144,null,null,null,null,null,null,null,null,"Duboistown Boro",20144,81]
[null,null,null,null,null,null,"Eldred Twp",22880,null,null,null,null,null,null,null,null,"Eldred Twp",22880,81]
[null,null,null,null,null,null,"Fairfield Twp",24592,null,null,null,null,null,null,null,null,"Fairfield Twp",24592,81]
[null,null,null,null,null,null,"Franklin Twp",27432,null,null,null,null,null,null,null,null,"Franklin Twp",27432,81]
[null,null,null,null,null,null,"Gamble Twp",28352,null,null,null,null,null,null,null,null,"Gamble Twp",28352,81]
[null,null,null,null,null,null,"Hepburn Twp",33944,null,null,null,null,null,null,null,null,"Hepburn Twp",33944,81]
[null,null,null,null,null,null,"Hughesville Boro",36160,null,null,null,null,null,null,null,null,"Hughesville Boro",36160,81]
[null,null,null,null,null,null,"Jackson Twp",37408,null,null,null,null,null,null,null,null,"Jackson Twp",37408,81]
[null,null,null,null,null,null,"Jersey Shore Boro",38128,null,null,null,null,null,null,null,null,"Jersey Shore Boro",38128,81]
[null,null,null,null,null,null,"Jordan Twp",38448,null,null,null,null,null,null,null,null,"Jordan Twp",38448,81]
[null,null,null,null,null,null,"Lewis Twp",42944,null,null,null,null,null,null,null,null,"Lewis Twp",42944,81]
[null,null,null,null,null,null,"Limestone Twp",43352,null,null,null,null,null,null,null,null,"Limestone Twp",43352,81]
[null,null,null,null,null,null,"Loyalsock Twp",45224,null,null,null,null,null,null,null,null,"Loyalsock Twp",45224,81]
[null,null,null,null,null,null,"Lycoming Twp",45584,null,null,null,null,null,null,null,null,"Lycoming Twp",45584,81]
[null,null,null,null,null,null,"Mchenry Twp",46184,null,null,null,null,null,null,null,null,"Mchenry Twp",46184,81]
[null,null,null,null,null,null,"Mcintyre Twp",46208,null,null,null,null,null,null,null,null,"Mcintyre Twp",46208,81]
[null,null,null,null,null,null,"Mcnett Twp",46352,null,null,null,null,null,null,null,null,"Mcnett Twp",46352,81]
[null,null,null,null,null,null,"Mifflin Twp",49280,null,null,null,null,null,null,null,null,"Mifflin Twp",49280,81]
[null,null,null,null,null,null,"Mill Creek Twp",49568,null,null,null,null,null,null,null,null,"Mill Creek Twp",49568,81]
[null,null,null,null,null,null,"Montgomery Boro",50632,null,null,null,null,null,null,null,null,"Montgomery Boro",50632,81]
[null,null,null,null,null,null,"Montoursville Boro",50720,null,null,null,null,null,null,null,null,"Montoursville Boro",50720,81]
[null,null,null,null,null,null,"Moreland Twp",50936,null,null,null,null,null,null,null,null,"Moreland Twp",50936,81]
[null,null,null,null,null,null,"Muncy Boro",52264,null,null,null,null,null,null,null,null,"Muncy Boro",52264,81]
[null,null,null,null,null,null,"Muncy Twp",52280,null,null,null,null,null,null,null,null,"Muncy Twp",52280,81]
[null,null,null,null,null,null,"Muncy Creek Twp",52288,null,null,null,null,null,null,null,null,"Muncy Creek Twp",52288,81]
[null,null,null,null,null,null,"Nippenose Twp",54504,null,null,null,null,null,null,null,null,"Nippenose Twp",54504,81]
[null,null,null,null,null,null,"Old Lycoming Twp",56608,null,null,null,null,null,null,null,null,"Old Lycoming Twp",56608,81]
[null,null,null,null,null,null,"Penn Twp",58848,null,null,null,null,null,null,null,null,"Penn Twp",58848,81]
[null,null,null,null,null,null,"Piatt Twp",60128,null,null,null,null,null,null,null,null,"Piatt Twp",60128,81]
[null,null,null,null,null,null,"Picture Rocks Boro",60136,null,null,null,null,null,null,null,null,"Picture Rocks Boro",60136,81]
[null,null,null,null,null,null,"Pine Twp",60328,null,null,null,null,null,null,null,null,"Pine Twp",60328,81]
[null,null,null,null,null,null,"Plunketts Creek Twp",61640,null,null,null,null,null,null,null,null,"Plunketts Creek Twp",61640,81]
[null,null,null,null,null,null,"Porter Twp",62184,null,null,null,null,null,null,null,null,"Porter Twp",62184,81]
[null,null,null,null,null,null,"Salladasburg Boro",67616,null,null,null,null,null,null,null,null,"Salladasburg Boro",67616,81]
[null,null,null,null,null,null,"Shrewsbury Twp",70552,null,null,null,null,null,null,null,null,"Shrewsbury Twp",70552,81]
[null,null,null,null,null,null,"South Williamsport Boro",72648,null,null,null,null,null,null,null,null,"South Williamsport Boro",72648,81]
[null,null,null,null,null,null,"Susquehanna Twp",75544,null,null,null,null,null,null,null,null,"Susquehanna Twp",75544,81]
[null,null,null,null,null,null,"Upper Fairfield Twp",79024,null,null,null,null,null,null,null,null,"Upper Fairfield Twp",79024,81]
[null,null,null,null,null,null,"Washington Twp",81288,null,null,null,null,null,null,null,null,"Washington Twp",81288,81]
[null,null,null,null,null,null,"Watson Twp",81576,null,null,null,null,null,null,null,null,"Watson Twp",81576,81]
[null,null,null,null,null,null,"Williamsport City",85312,null,null,null,null,null,null,null,null,"Williamsport City",85312,81]
[null,null,null,null,null,null,"Wolf Twp",85984,null,null,null,null,null,null,null,null,"Wolf Twp",85984,81]
[null,null,null,null,null,null,"Woodward Twp",86456,null,null,null,null,null,null,null,null,"Woodward Twp",86456,81]
[null,null,null,null,null,null,"Annin Twp",2576,null,null,null,null,null,null,null,null,"Annin Twp",2576,83]
[null,null,null,null,null,null,"Bradford City",8040,null,null,null,null,null,null,null,null,"Bradford City",8040,83]
[null,null,null,null,null,null,"Bradford Twp",8048,null,null,null,null,null,null,null,null,"Bradford Twp",8048,83]
[null,null,null,null,null,null,"Ceres Twp",12408,null,null,null,null,null,null,null,null,"Ceres Twp",12408,83]
[null,null,null,null,null,null,"Corydon Twp",16352,null,null,null,null,null,null,null,null,"Corydon Twp",16352,83]
[null,null,null,null,null,null,"Eldred Boro",22888,null,null,null,null,null,null,null,null,"Eldred Boro",22888,83]
[null,null,null,null,null,null,"Eldred Twp",22896,null,null,null,null,null,null,null,null,"Eldred Twp",22896,83]
[null,null,null,null,null,null,"Foster Twp",26936,null,null,null,null,null,null,null,null,"Foster Twp",26936,83]
[null,null,null,null,null,null,"Hamilton Twp",32168,null,null,null,null,null,null,null,null,"Hamilton Twp",32168,83]
[null,null,null,null,null,null,"Hamlin Twp",32232,null,null,null,null,null,null,null,null,"Hamlin Twp",32232,83]
[null,null,null,null,null,null,"Kane Boro",38688,null,null,null,null,null,null,null,null,"Kane Boro",38688,83]
[null,null,null,null,null,null,"Keating Twp",38912,null,null,null,null,null,null,null,null,"Keating Twp",38912,83]
[null,null,null,null,null,null,"Lafayette Twp",40808,null,null,null,null,null,null,null,null,"Lafayette Twp",40808,83]
[null,null,null,null,null,null,"Lewis Run Boro",42984,null,null,null,null,null,null,null,null,"Lewis Run Boro",42984,83]
[null,null,null,null,null,null,"Liberty Twp",43096,null,null,null,null,null,null,null,null,"Liberty Twp",43096,83]
[null,null,null,null,null,null,"Mount Jewett Boro",51632,null,null,null,null,null,null,null,null,"Mount Jewett Boro",51632,83]
[null,null,null,null,null,null,"Norwich Twp",55632,null,null,null,null,null,null,null,null,"Norwich Twp",55632,83]
[null,null,null,null,null,null,"Otto Twp",57312,null,null,null,null,null,null,null,null,"Otto Twp",57312,83]
[null,null,null,null,null,null,"Port Allegany Boro",62088,null,null,null,null,null,null,null,null,"Port Allegany Boro",62088,83]
[null,null,null,null,null,null,"Sergeant Twp",69304,null,null,null,null,null,null,null,null,"Sergeant Twp",69304,83]
[null,null,null,null,null,null,"Smethport Boro",71248,null,null,null,null,null,null,null,null,"Smethport Boro",71248,83]
[null,null,null,null,null,null,"Wetmore Twp",84312,null,null,null,null,null,null,null,null,"Wetmore Twp",84312,83]
[null,null,null,null,null,null,"Clark Boro",13832,null,null,null,null,null,null,null,null,"Clark Boro",13832,85]
[null,null,null,null,null,null,"Coolspring Twp",15992,null,null,null,null,null,null,null,null,"Coolspring Twp",15992,85]
[null,null,null,null,null,null,"Deer Creek Twp",18536,null,null,null,null,null,null,null,null,"Deer Creek Twp",18536,85]
[null,null,null,null,null,null,"Delaware Twp",18688,null,null,null,null,null,null,null,null,"Delaware Twp",18688,85]
[null,null,null,null,null,null,"East Lackawannock Twp",21336,null,null,null,null,null,null,null,null,"East Lackawannock Twp",21336,85]
[null,null,null,null,null,null,"Fairview Twp",24904,null,null,null,null,null,null,null,null,"Fairview Twp",24904,85]
[null,null,null,null,null,null,"Farrell City",25360,null,null,null,null,null,null,null,null,"Farrell City",25360,85]
[null,null,null,null,null,null,"Findley Twp",25912,null,null,null,null,null,null,null,null,"Findley Twp",25912,85]
[null,null,null,null,null,null,"Fredonia Boro",27688,null,null,null,null,null,null,null,null,"Fredonia Boro",27688,85]
[null,null,null,null,null,null,"French Creek Twp",27824,null,null,null,null,null,null,null,null,"French Creek Twp",27824,85]
[null,null,null,null,null,null,"Greene Twp",30968,null,null,null,null,null,null,null,null,"Greene Twp",30968,85]
[null,null,null,null,null,null,"Greenville Boro",31328,null,null,null,null,null,null,null,null,"Greenville Boro",31328,85]
[null,null,null,null,null,null,"Grove City Boro",31656,null,null,null,null,null,null,null,null,"Grove City Boro",31656,85]
[null,null,null,null,null,null,"Hempfield Twp",33784,null,null,null,null,null,null,null,null,"Hempfield Twp",33784,85]
[null,null,null,null,null,null,"Hermitage City",34064,null,null,null,null,null,null,null,null,"Hermitage City",34064,85]
[null,null,null,null,null,null,"Jackson Twp",37416,null,null,null,null,null,null,null,null,"Jackson Twp",37416,85]
[null,null,null,null,null,null,"Jackson Center Boro",37496,null,null,null,null,null,null,null,null,"Jackson Center Boro",37496,85]
[null,null,null,null,null,null,"Jamestown Boro",37696,null,null,null,null,null,null,null,null,"Jamestown Boro",37696,85]
[null,null,null,null,null,null,"Jefferson Twp",37904,null,null,null,null,null,null,null,null,"Jefferson Twp",37904,85]
[null,null,null,null,null,null,"Lackawannock Twp",40760,null,null,null,null,null,null,null,null,"Lackawannock Twp",40760,85]
[null,null,null,null,null,null,"Lake Twp",40928,null,null,null,null,null,null,null,null,"Lake Twp",40928,85]
[null,null,null,null,null,null,"Liberty Twp",43104,null,null,null,null,null,null,null,null,"Liberty Twp",43104,85]
[null,null,null,null,null,null,"Mercer Boro",48696,null,null,null,null,null,null,null,null,"Mercer Boro",48696,85]
[null,null,null,null,null,null,"Mill Creek Twp",49576,null,null,null,null,null,null,null,null,"Mill Creek Twp",49576,85]
[null,null,null,null,null,null,"New Lebanon Boro",53768,null,null,null,null,null,null,null,null,"New Lebanon Boro",53768,85]
[null,null,null,null,null,null,"New Vernon Twp",54304,null,null,null,null,null,null,null,null,"New Vernon Twp",54304,85]
[null,null,null,null,null,null,"Otter Creek Twp",57304,null,null,null,null,null,null,null,null,"Otter Creek Twp",57304,85]
[null,null,null,null,null,null,"Perry Twp",59496,null,null,null,null,null,null,null,null,"Perry Twp",59496,85]
[null,null,null,null,null,null,"Pine Twp",60336,null,null,null,null,null,null,null,null,"Pine Twp",60336,85]
[null,null,null,null,null,null,"Pymatuning Twp",63008,null,null,null,null,null,null,null,null,"Pymatuning Twp",63008,85]
[null,null,null,null,null,null,"Salem Twp",67472,null,null,null,null,null,null,null,null,"Salem Twp",67472,85]
[null,null,null,null,null,null,"Sandy Creek Twp",67816,null,null,null,null,null,null,null,null,"Sandy Creek Twp",67816,85]
[null,null,null,null,null,null,"Sandy Lake Boro",67848,null,null,null,null,null,null,null,null,"Sandy Lake Boro",67848,85]
[null,null,null,null,null,null,"Sandy Lake Twp",67856,null,null,null,null,null,null,null,null,"Sandy Lake Twp",67856,85]
[null,null,null,null,null,null,"Sharon City",69720,null,null,null,null,null,null,null,null,"Sharon City",69720,85]
[null,null,null,null,null,null,"Sharpsville Boro",69800,null,null,null,null,null,null,null,null,"Sharpsville Boro",69800,85]
[null,null,null,null,null,null,"Sheakleyville Boro",69936,null,null,null,null,null,null,null,null,"Sheakleyville Boro",69936,85]
[null,null,null,null,null,null,"Shenango Twp",70096,null,null,null,null,null,null,null,null,"Shenango Twp",70096,85]
[null,null,null,null,null,null,"South Pymatuming Twp",72440,null,null,null,null,null,null,null,null,"South Pymatuming Twp",72440,85]
[null,null,null,null,null,null,"Springfield Twp",73080,null,null,null,null,null,null,null,null,"Springfield Twp",73080,85]
[null,null,null,null,null,null,"Stoneboro Boro",74288,null,null,null,null,null,null,null,null,"Stoneboro Boro",74288,85]
[null,null,null,null,null,null,"Sugar Grove Twp",75008,null,null,null,null,null,null,null,null,"Sugar Grove Twp",75008,85]
[null,null,null,null,null,null,"West Middlesex Boro",83496,null,null,null,null,null,null,null,null,"West Middlesex Boro",83496,85]
[null,null,null,null,null,null,"West Salem Twp",83976,null,null,null,null,null,null,null,null,"West Salem Twp",83976,85]
[null,null,null,null,null,null,"Wheatland Boro",84376,null,null,null,null,null,null,null,null,"Wheatland Boro",84376,85]
[null,null,null,null,null,null,"Wilmington Twp",85512,null,null,null,null,null,null,null,null,"Wilmington Twp",85512,85]
[null,null,null,null,null,null,"Wolf Creek Twp",85992,null,null,null,null,null,null,null,null,"Wolf Creek Twp",85992,85]
[null,null,null,null,null,null,"Worth Twp",86552,null,null,null,null,null,null,null,null,"Worth Twp",86552,85]
[null,null,null,null,null,null,"Armagh Twp",3040,null,null,null,null,null,null,null,null,"Armagh Twp",3040,87]
[null,null,null,null,null,null,"Bratton Twp",8304,null,null,null,null,null,null,null,null,"Bratton Twp",8304,87]
[null,null,null,null,null,null,"Brown Twp",9288,null,null,null,null,null,null,null,null,"Brown Twp",9288,87]
[null,null,null,null,null,null,"Burnham Boro",10256,null,null,null,null,null,null,null,null,"Burnham Boro",10256,87]
[null,null,null,null,null,null,"Decatur Twp",18464,null,null,null,null,null,null,null,null,"Decatur Twp",18464,87]
[null,null,null,null,null,null,"Derry Twp",18944,null,null,null,null,null,null,null,null,"Derry Twp",18944,87]
[null,null,null,null,null,null,"Granville Twp",30480,null,null,null,null,null,null,null,null,"Granville Twp",30480,87]
[null,null,null,null,null,null,"Juniata Terrace Boro",38640,null,null,null,null,null,null,null,null,"Juniata Terrace Boro",38640,87]
[null,null,null,null,null,null,"Kistler Boro",40016,null,null,null,null,null,null,null,null,"Kistler Boro",40016,87]
[null,null,null,null,null,null,"Lewistown Boro",43000,null,null,null,null,null,null,null,null,"Lewistown Boro",43000,87]
[null,null,null,null,null,null,"Mcveytown Boro",46400,null,null,null,null,null,null,null,null,"Mcveytown Boro",46400,87]
[null,null,null,null,null,null,"Menno Twp",48664,null,null,null,null,null,null,null,null,"Menno Twp",48664,87]
[null,null,null,null,null,null,"Newton Hamilton Boro",54160,null,null,null,null,null,null,null,null,"Newton Hamilton Boro",54160,87]
[null,null,null,null,null,null,"Oliver Twp",56720,null,null,null,null,null,null,null,null,"Oliver Twp",56720,87]
[null,null,null,null,null,null,"Union Twp",78392,null,null,null,null,null,null,null,null,"Union Twp",78392,87]
[null,null,null,null,null,null,"Wayne Twp",81784,null,null,null,null,null,null,null,null,"Wayne Twp",81784,87]
[null,null,null,null,null,null,"Barrett Twp",4320,null,null,null,null,null,null,null,null,"Barrett Twp",4320,89]
[null,null,null,null,null,null,"Chestnuthill Twp",13328,null,null,null,null,null,null,null,null,"Chestnuthill Twp",13328,89]
[null,null,null,null,null,null,"Coolbaugh Twp",15960,null,null,null,null,null,null,null,null,"Coolbaugh Twp",15960,89]
[null,null,null,null,null,null,"Delaware Water Gap Boro",18736,null,null,null,null,null,null,null,null,"Delaware Water Gap Boro",18736,89]
[null,null,null,null,null,null,"East Stroudsburg Boro",21872,null,null,null,null,null,null,null,null,"East Stroudsburg Boro",21872,89]
[null,null,null,null,null,null,"Eldred Twp",22904,null,null,null,null,null,null,null,null,"Eldred Twp",22904,89]
[null,null,null,null,null,null,"Hamilton Twp",32176,null,null,null,null,null,null,null,null,"Hamilton Twp",32176,89]
[null,null,null,null,null,null,"Jackson Twp",37424,null,null,null,null,null,null,null,null,"Jackson Twp",37424,89]
[null,null,null,null,null,null,"Middle Smithfield Twp",49080,null,null,null,null,null,null,null,null,"Middle Smithfield Twp",49080,89]
[null,null,null,null,null,null,"Mt Pocono Boro",51912,null,null,null,null,null,null,null,null,"Mt Pocono Boro",51912,89]
[null,null,null,null,null,null,"Paradise Twp",57856,null,null,null,null,null,null,null,null,"Paradise Twp",57856,89]
[null,null,null,null,null,null,"Pocono Twp",61728,null,null,null,null,null,null,null,null,"Pocono Twp",61728,89]
[null,null,null,null,null,null,"Polk Twp",61928,null,null,null,null,null,null,null,null,"Polk Twp",61928,89]
[null,null,null,null,null,null,"Price Twp",62632,null,null,null,null,null,null,null,null,"Price Twp",62632,89]
[null,null,null,null,null,null,"Ross Twp",66280,null,null,null,null,null,null,null,null,"Ross Twp",66280,89]
[null,null,null,null,null,null,"Smithfield Twp",71344,null,null,null,null,null,null,null,null,"Smithfield Twp",71344,89]
[null,null,null,null,null,null,"Stroud Twp",74880,null,null,null,null,null,null,null,null,"Stroud Twp",74880,89]
[null,null,null,null,null,null,"Stroudsburg Boro",74888,null,null,null,null,null,null,null,null,"Stroudsburg Boro",74888,89]
[null,null,null,null,null,null,"Tobyhanna Twp",76960,null,null,null,null,null,null,null,null,"Tobyhanna Twp",76960,89]
[null,null,null,null,null,null,"Tunkhannock Twp",77776,null,null,null,null,null,null,null,null,"Tunkhannock Twp",77776,89]
[null,null,null,null,null,null,"Abington Twp",156,null,null,null,null,null,null,null,null,"Abington Twp",156,91]
[null,null,null,null,null,null,"Ambler Boro",2264,null,null,null,null,null,null,null,null,"Ambler Boro",2264,91]
[null,null,null,null,null,null,"Bridgeport Boro",8568,null,null,null,null,null,null,null,null,"Bridgeport Boro",8568,91]
[null,null,null,null,null,null,"Bryn Athyn Boro",9696,null,null,null,null,null,null,null,null,"Bryn Athyn Boro",9696,91]
[null,null,null,null,null,null,"Cheltenham Twp",12968,null,null,null,null,null,null,null,null,"Cheltenham Twp",12968,91]
[null,null,null,null,null,null,"Collegeville Boro",15192,null,null,null,null,null,null,null,null,"Collegeville Boro",15192,91]
[null,null,null,null,null,null,"Conshohocken Boro",15848,null,null,null,null,null,null,null,null,"Conshohocken Boro",15848,91]
[null,null,null,null,null,null,"Douglass Twp",19672,null,null,null,null,null,null,null,null,"Douglass Twp",19672,91]
[null,null,null,null,null,null,"East Greenville Boro",21200,null,null,null,null,null,null,null,null,"East Greenville Boro",21200,91]
[null,null,null,null,null,null,"East Norriton Twp",21600,null,null,null,null,null,null,null,null,"East Norriton Twp",21600,91]
[null,null,null,null,null,null,"Franconia Twp",27280,null,null,null,null,null,null,null,null,"Franconia Twp",27280,91]
[null,null,null,null,null,null,"Green Lane Boro",31088,null,null,null,null,null,null,null,null,"Green Lane Boro",31088,91]
[null,null,null,null,null,null,"Hatboro Boro",33088,null,null,null,null,null,null,null,null,"Hatboro Boro",33088,91]
[null,null,null,null,null,null,"Hatfield Boro",33112,null,null,null,null,null,null,null,null,"Hatfield Boro",33112,91]
[null,null,null,null,null,null,"Hatfield Twp",33120,null,null,null,null,null,null,null,null,"Hatfield Twp",33120,91]
[null,null,null,null,null,null,"Horsham Twp",35808,null,null,null,null,null,null,null,null,"Horsham Twp",35808,91]
[null,null,null,null,null,null,"Jenkintown Boro",38000,null,null,null,null,null,null,null,null,"Jenkintown Boro",38000,91]
[null,null,null,null,null,null,"Lansdale Boro",41432,null,null,null,null,null,null,null,null,"Lansdale Boro",41432,91]
[null,null,null,null,null,null,"Limerick Twp",43312,null,null,null,null,null,null,null,null,"Limerick Twp",43312,91]
[null,null,null,null,null,null,"Lower Frederick Twp",44912,null,null,null,null,null,null,null,null,"Lower Frederick Twp",44912,91]
[null,null,null,null,null,null,"Lower Gwynedd Twp",44920,null,null,null,null,null,null,null,null,"Lower Gwynedd Twp",44920,91]
[null,null,null,null,null,null,"Lower Merion Twp",44976,null,null,null,null,null,null,null,null,"Lower Merion Twp",44976,91]
[null,null,null,null,null,null,"Lower Moreland Twp",45008,null,null,null,null,null,null,null,null,"Lower Moreland Twp",45008,91]
[null,null,null,null,null,null,"Lower Pottsgrove Twp",45072,null,null,null,null,null,null,null,null,"Lower Pottsgrove Twp",45072,91]
[null,null,null,null,null,null,"Lower Providence Twp",45080,null,null,null,null,null,null,null,null,"Lower Providence Twp",45080,91]
[null,null,null,null,null,null,"Lower Salford Twp",45096,null,null,null,null,null,null,null,null,"Lower Salford Twp",45096,91]
[null,null,null,null,null,null,"Marlborough Twp",47592,null,null,null,null,null,null,null,null,"Marlborough Twp",47592,91]
[null,null,null,null,null,null,"Montgomery Twp",50640,null,null,null,null,null,null,null,null,"Montgomery Twp",50640,91]
[null,null,null,null,null,null,"Narberth Boro",52664,null,null,null,null,null,null,null,null,"Narberth Boro",52664,91]
[null,null,null,null,null,null,"New Hanover Twp",53664,null,null,null,null,null,null,null,null,"New Hanover Twp",53664,91]
[null,null,null,null,null,null,"Norristown Boro",54656,null,null,null,null,null,null,null,null,"Norristown Boro",54656,91]
[null,null,null,null,null,null,"North Wales Boro",55512,null,null,null,null,null,null,null,null,"North Wales Boro",55512,91]
[null,null,null,null,null,null,"Pennsburg Boro",59120,null,null,null,null,null,null,null,null,"Pennsburg Boro",59120,91]
[null,null,null,null,null,null,"Perkiomen Twp",59392,null,null,null,null,null,null,null,null,"Perkiomen Twp",59392,91]
[null,null,null,null,null,null,"Plymouth Twp",61664,null,null,null,null,null,null,null,null,"Plymouth Twp",61664,91]
[null,null,null,null,null,null,"Pottstown Boro",62416,null,null,null,null,null,null,null,null,"Pottstown Boro",62416,91]
[null,null,null,null,null,null,"Red Hill Boro",63808,null,null,null,null,null,null,null,null,"Red Hill Boro",63808,91]
[null,null,null,null,null,null,"Rockledge Boro",65568,null,null,null,null,null,null,null,null,"Rockledge Boro",65568,91]
[null,null,null,null,null,null,"Royersford Boro",66576,null,null,null,null,null,null,null,null,"Royersford Boro",66576,91]
[null,null,null,null,null,null,"Salford Twp",67528,null,null,null,null,null,null,null,null,"Salford Twp",67528,91]
[null,null,null,null,null,null,"Schwenksville Boro",68328,null,null,null,null,null,null,null,null,"Schwenksville Boro",68328,91]
[null,null,null,null,null,null,"Skippack Twp",71016,null,null,null,null,null,null,null,null,"Skippack Twp",71016,91]
[null,null,null,null,null,null,"Souderton Boro",71856,null,null,null,null,null,null,null,null,"Souderton Boro",71856,91]
[null,null,null,null,null,null,"Springfield Twp",73088,null,null,null,null,null,null,null,null,"Springfield Twp",73088,91]
[null,null,null,null,null,null,"Telford Boro",76304,null,null,null,null,null,null,null,null,"Telford Boro",76304,91]
[null,null,null,null,null,null,"Towamencin Twp",77152,null,null,null,null,null,null,null,null,"Towamencin Twp",77152,91]
[null,null,null,null,null,null,"Trappe Boro",77304,null,null,null,null,null,null,null,null,"Trappe Boro",77304,91]
[null,null,null,null,null,null,"Upper Dublin Twp",79008,null,null,null,null,null,null,null,null,"Upper Dublin Twp",79008,91]
[null,null,null,null,null,null,"Upper Frederick Twp",79040,null,null,null,null,null,null,null,null,"Upper Frederick Twp",79040,91]
[null,null,null,null,null,null,"Upper Gwynedd Twp",79056,null,null,null,null,null,null,null,null,"Upper Gwynedd Twp",79056,91]
[null,null,null,null,null,null,"Upper Hanover Twp",79064,null,null,null,null,null,null,null,null,"Upper Hanover Twp",79064,91]
[null,null,null,null,null,null,"Upper Merion Twp",79136,null,null,null,null,null,null,null,null,"Upper Merion Twp",79136,91]
[null,null,null,null,null,null,"Upper Moreland Twp",79176,null,null,null,null,null,null,null,null,"Upper Moreland Twp",79176,91]
[null,null,null,null,null,null,"Upper Pottsgrove Twp",79240,null,null,null,null,null,null,null,null,"Upper Pottsgrove Twp",79240,91]
[null,null,null,null,null,null,"Upper Providence Twp",79256,null,null,null,null,null,null,null,null,"Upper Providence Twp",79256,91]
[null,null,null,null,null,null,"Upper Salford Twp",79280,null,null,null,null,null,null,null,null,"Upper Salford Twp",79280,91]
[null,null,null,null,null,null,"West Conshohocken Boro",82736,null,null,null,null,null,null,null,null,"West Conshohocken Boro",82736,91]
[null,null,null,null,null,null,"West Norriton Twp",83696,null,null,null,null,null,null,null,null,"West Norriton Twp",83696,91]
[null,null,null,null,null,null,"West Pottsgrove Twp",83912,null,null,null,null,null,null,null,null,"West Pottsgrove Twp",83912,91]
[null,null,null,null,null,null,"Whitemarsh Twp",84624,null,null,null,null,null,null,null,null,"Whitemarsh Twp",84624,91]
[null,null,null,null,null,null,"Whitpain Twp",84888,null,null,null,null,null,null,null,null,"Whitpain Twp",84888,91]
[null,null,null,null,null,null,"Worcester Twp",86496,null,null,null,null,null,null,null,null,"Worcester Twp",86496,91]
[null,null,null,null,null,null,"Anthony Twp",2664,null,null,null,null,null,null,null,null,"Anthony Twp",2664,93]
[null,null,null,null,null,null,"Cooper Twp",16048,null,null,null,null,null,null,null,null,"Cooper Twp",16048,93]
[null,null,null,null,null,null,"Danville Boro",18136,null,null,null,null,null,null,null,null,"Danville Boro",18136,93]
[null,null,null,null,null,null,"Derry Twp",18952,null,null,null,null,null,null,null,null,"Derry Twp",18952,93]
[null,null,null,null,null,null,"Liberty Twp",43112,null,null,null,null,null,null,null,null,"Liberty Twp",43112,93]
[null,null,null,null,null,null,"Limestone Twp",43360,null,null,null,null,null,null,null,null,"Limestone Twp",43360,93]
[null,null,null,null,null,null,"Mahoning Twp",46656,null,null,null,null,null,null,null,null,"Mahoning Twp",46656,93]
[null,null,null,null,null,null,"Mayberry Twp",48152,null,null,null,null,null,null,null,null,"Mayberry Twp",48152,93]
[null,null,null,null,null,null,"Valley Twp",79552,null,null,null,null,null,null,null,null,"Valley Twp",79552,93]
[null,null,null,null,null,null,"Washingtonville Boro",81424,null,null,null,null,null,null,null,null,"Washingtonville Boro",81424,93]
[null,null,null,null,null,null,"West Hemlock Twp",83144,null,null,null,null,null,null,null,null,"West Hemlock Twp",83144,93]
[null,null,null,null,null,null,"Allen Twp",948,null,null,null,null,null,null,null,null,"Allen Twp",948,95]
[null,null,null,null,null,null,"Bangor Boro",4032,null,null,null,null,null,null,null,null,"Bangor Boro",4032,95]
[null,null,null,null,null,null,"Bath Boro",4432,null,null,null,null,null,null,null,null,"Bath Boro",4432,95]
[null,null,null,null,null,null,"Bethlehem City",6088,null,null,null,null,null,null,null,null,"Bethlehem City",6088,95]
[null,null,null,null,null,null,"Bethlehem Twp",6096,null,null,null,null,null,null,null,null,"Bethlehem Twp",6096,95]
[null,null,null,null,null,null,"Bushkill Twp",10400,null,null,null,null,null,null,null,null,"Bushkill Twp",10400,95]
[null,null,null,null,null,null,"Chapman Quarries Boro",12656,null,null,null,null,null,null,null,null,"Chapman Quarries Boro",12656,95]
[null,null,null,null,null,null,"East Allen Twp",20736,null,null,null,null,null,null,null,null,"East Allen Twp",20736,95]
[null,null,null,null,null,null,"East Bangor Boro",20776,null,null,null,null,null,null,null,null,"East Bangor Boro",20776,95]
[null,null,null,null,null,null,"Easton City",21648,null,null,null,null,null,null,null,null,"Easton City",21648,95]
[null,null,null,null,null,null,"Forks Twp",26728,null,null,null,null,null,null,null,null,"Forks Twp",26728,95]
[null,null,null,null,null,null,"Freemansburg Boro",27760,null,null,null,null,null,null,null,null,"Freemansburg Boro",27760,95]
[null,null,null,null,null,null,"Glendon Boro",29568,null,null,null,null,null,null,null,null,"Glendon Boro",29568,95]
[null,null,null,null,null,null,"Hanover Twp",32432,null,null,null,null,null,null,null,null,"Hanover Twp",32432,95]
[null,null,null,null,null,null,"Hellertown Boro",33744,null,null,null,null,null,null,null,null,"Hellertown Boro",33744,95]
[null,null,null,null,null,null,"Lehigh Twp",42424,null,null,null,null,null,null,null,null,"Lehigh Twp",42424,95]
[null,null,null,null,null,null,"Lower Mt Bethel Twp",45016,null,null,null,null,null,null,null,null,"Lower Mt Bethel Twp",45016,95]
[null,null,null,null,null,null,"Lower Nazareth Twp",45024,null,null,null,null,null,null,null,null,"Lower Nazareth Twp",45024,95]
[null,null,null,null,null,null,"Lower Saucon Twp",45104,null,null,null,null,null,null,null,null,"Lower Saucon Twp",45104,95]
[null,null,null,null,null,null,"Moore Twp",50824,null,null,null,null,null,null,null,null,"Moore Twp",50824,95]
[null,null,null,null,null,null,"Nazareth Boro",52808,null,null,null,null,null,null,null,null,"Nazareth Boro",52808,95]
[null,null,null,null,null,null,"Northampton Boro",54696,null,null,null,null,null,null,null,null,"Northampton Boro",54696,95]
[null,null,null,null,null,null,"North Catasauqua Boro",54872,null,null,null,null,null,null,null,null,"North Catasauqua Boro",54872,95]
[null,null,null,null,null,null,"Palmer Twp",57672,null,null,null,null,null,null,null,null,"Palmer Twp",57672,95]
[null,null,null,null,null,null,"Pen Argyl Boro",58696,null,null,null,null,null,null,null,null,"Pen Argyl Boro",58696,95]
[null,null,null,null,null,null,"Plainfield Twp",61088,null,null,null,null,null,null,null,null,"Plainfield Twp",61088,95]
[null,null,null,null,null,null,"Portland Boro",62264,null,null,null,null,null,null,null,null,"Portland Boro",62264,95]
[null,null,null,null,null,null,"Roseto Boro",66168,null,null,null,null,null,null,null,null,"Roseto Boro",66168,95]
[null,null,null,null,null,null,"Stockertown Boro",74232,null,null,null,null,null,null,null,null,"Stockertown Boro",74232,95]
[null,null,null,null,null,null,"Tatamy Boro",76144,null,null,null,null,null,null,null,null,"Tatamy Boro",76144,95]
[null,null,null,null,null,null,"Upper Mt Bethel Twp",79184,null,null,null,null,null,null,null,null,"Upper Mt Bethel Twp",79184,95]
[null,null,null,null,null,null,"Upper Nazareth Twp",79192,null,null,null,null,null,null,null,null,"Upper Nazareth Twp",79192,95]
[null,null,null,null,null,null,"Walnutport Boro",80800,null,null,null,null,null,null,null,null,"Walnutport Boro",80800,95]
[null,null,null,null,null,null,"Washington Twp",81296,null,null,null,null,null,null,null,null,"Washington Twp",81296,95]
[null,null,null,null,null,null,"West Easton Boro",82832,null,null,null,null,null,null,null,null,"West Easton Boro",82832,95]
[null,null,null,null,null,null,"Williams Twp",85256,null,null,null,null,null,null,null,null,"Williams Twp",85256,95]
[null,null,null,null,null,null,"Wilson Boro",85592,null,null,null,null,null,null,null,null,"Wilson Boro",85592,95]
[null,null,null,null,null,null,"Wind Gap Boro",85664,null,null,null,null,null,null,null,null,"Wind Gap Boro",85664,95]
[null,null,null,null,null,null,"Coal Twp",14536,null,null,null,null,null,null,null,null,"Coal Twp",14536,97]
[null,null,null,null,null,null,"Delaware Twp",18696,null,null,null,null,null,null,null,null,"Delaware Twp",18696,97]
[null,null,null,null,null,null,"East Cameron Twp",20928,null,null,null,null,null,null,null,null,"East Cameron Twp",20928,97]
[null,null,null,null,null,null,"East Chillisquaque Twp",20976,null,null,null,null,null,null,null,null,"East Chillisquaque Twp",20976,97]
[null,null,null,null,null,null,"Herndon Boro",34080,null,null,null,null,null,null,null,null,"Herndon Boro",34080,97]
[null,null,null,null,null,null,"Jackson Twp",37432,null,null,null,null,null,null,null,null,"Jackson Twp",37432,97]
[null,null,null,null,null,null,"Jordan Twp",38456,null,null,null,null,null,null,null,null,"Jordan Twp",38456,97]
[null,null,null,null,null,null,"Kulpmont Boro",40584,null,null,null,null,null,null,null,null,"Kulpmont Boro",40584,97]
[null,null,null,null,null,null,"Lewis Twp",42952,null,null,null,null,null,null,null,null,"Lewis Twp",42952,97]
[null,null,null,null,null,null,"Little Mahanoy Twp",43912,null,null,null,null,null,null,null,null,"Little Mahanoy Twp",43912,97]
[null,null,null,null,null,null,"Lower Augusta Twp",44856,null,null,null,null,null,null,null,null,"Lower Augusta Twp",44856,97]
[null,null,null,null,null,null,"Lower Mahanoy Twp",44960,null,null,null,null,null,null,null,null,"Lower Mahanoy Twp",44960,97]
[null,null,null,null,null,null,"Mcewensville Boro",46120,null,null,null,null,null,null,null,null,"Mcewensville Boro",46120,97]
[null,null,null,null,null,null,"Marion Heights Boro",47480,null,null,null,null,null,null,null,null,"Marion Heights Boro",47480,97]
[null,null,null,null,null,null,"Milton Boro",50016,null,null,null,null,null,null,null,null,"Milton Boro",50016,97]
[null,null,null,null,null,null,"Mount Carmel Boro",51496,null,null,null,null,null,null,null,null,"Mount Carmel Boro",51496,97]
[null,null,null,null,null,null,"Mt Carmel Twp",51504,null,null,null,null,null,null,null,null,"Mt Carmel Twp",51504,97]
[null,null,null,null,null,null,"Northumberland Boro",55456,null,null,null,null,null,null,null,null,"Northumberland Boro",55456,97]
[null,null,null,null,null,null,"Point Twp",61832,null,null,null,null,null,null,null,null,"Point Twp",61832,97]
[null,null,null,null,null,null,"Ralpho Twp",63328,null,null,null,null,null,null,null,null,"Ralpho Twp",63328,97]
[null,null,null,null,null,null,"Riverside Boro",65112,null,null,null,null,null,null,null,null,"Riverside Boro",65112,97]
[null,null,null,null,null,null,"Rockefeller Twp",65472,null,null,null,null,null,null,null,null,"Rockefeller Twp",65472,97]
[null,null,null,null,null,null,"Rush Twp",66752,null,null,null,null,null,null,null,null,"Rush Twp",66752,97]
[null,null,null,null,null,null,"Shamokin City",69600,null,null,null,null,null,null,null,null,"Shamokin City",69600,97]
[null,null,null,null,null,null,"Shamokin Twp",69608,null,null,null,null,null,null,null,null,"Shamokin Twp",69608,97]
[null,null,null,null,null,null,"Snydertown Boro",71688,null,null,null,null,null,null,null,null,"Snydertown Boro",71688,97]
[null,null,null,null,null,null,"Sunbury City",75304,null,null,null,null,null,null,null,null,"Sunbury City",75304,97]
[null,null,null,null,null,null,"Turbot Twp",77830,null,null,null,null,null,null,null,null,"Turbot Twp",77830,97]
[null,null,null,null,null,null,"Turbotville Boro",77832,null,null,null,null,null,null,null,null,"Turbotville Boro",77832,97]
[null,null,null,null,null,null,"Upper Augusta Twp",78744,null,null,null,null,null,null,null,null,"Upper Augusta Twp",78744,97]
[null,null,null,null,null,null,"Upper Mahanoy Twp",79112,null,null,null,null,null,null,null,null,"Upper Mahanoy Twp",79112,97]
[null,null,null,null,null,null,"Washington Twp",81304,null,null,null,null,null,null,null,null,"Washington Twp",81304,97]
[null,null,null,null,null,null,"Watsontown Boro",81616,null,null,null,null,null,null,null,null,"Watsontown Boro",81616,97]
[null,null,null,null,null,null,"West Cameron Twp",82680,null,null,null,null,null,null,null,null,"West Cameron Twp",82680,97]
[null,null,null,null,null,null,"W Chillisquaque Twp",82712,null,null,null,null,null,null,null,null,"W Chillisquaque Twp",82712,97]
[null,null,null,null,null,null,"Zerbe Twp",87280,null,null,null,null,null,null,null,null,"Zerbe Twp",87280,97]
[null,null,null,null,null,null,"Blain Boro",6824,null,null,null,null,null,null,null,null,"Blain Boro",6824,99]
[null,null,null,null,null,null,"Bloomfield Boro",7040,null,null,null,null,null,null,null,null,"Bloomfield Boro",7040,99]
[null,null,null,null,null,null,"Buffalo Twp",10008,null,null,null,null,null,null,null,null,"Buffalo Twp",10008,99]
[null,null,null,null,null,null,"Carroll Twp",11416,null,null,null,null,null,null,null,null,"Carroll Twp",11416,99]
[null,null,null,null,null,null,"Centre Twp",12360,null,null,null,null,null,null,null,null,"Centre Twp",12360,99]
[null,null,null,null,null,null,"Duncannon Boro",20240,null,null,null,null,null,null,null,null,"Duncannon Boro",20240,99]
[null,null,null,null,null,null,"Greenwood Twp",31440,null,null,null,null,null,null,null,null,"Greenwood Twp",31440,99]
[null,null,null,null,null,null,"Howe Twp",36000,null,null,null,null,null,null,null,null,"Howe Twp",36000,99]
[null,null,null,null,null,null,"Jackson Twp",37440,null,null,null,null,null,null,null,null,"Jackson Twp",37440,99]
[null,null,null,null,null,null,"Juniata Twp",38616,null,null,null,null,null,null,null,null,"Juniata Twp",38616,99]
[null,null,null,null,null,null,"Landisburg Boro",41272,null,null,null,null,null,null,null,null,"Landisburg Boro",41272,99]
[null,null,null,null,null,null,"Liverpool Boro",43968,null,null,null,null,null,null,null,null,"Liverpool Boro",43968,99]
[null,null,null,null,null,null,"Liverpool Twp",43976,null,null,null,null,null,null,null,null,"Liverpool Twp",43976,99]
[null,null,null,null,null,null,"Marysville Boro",47968,null,null,null,null,null,null,null,null,"Marysville Boro",47968,99]
[null,null,null,null,null,null,"Miller Twp",49632,null,null,null,null,null,null,null,null,"Miller Twp",49632,99]
[null,null,null,null,null,null,"Millerstown Boro",49720,null,null,null,null,null,null,null,null,"Millerstown Boro",49720,99]
[null,null,null,null,null,null,"New Buffalo Boro",53320,null,null,null,null,null,null,null,null,"New Buffalo Boro",53320,99]
[null,null,null,null,null,null,"Newport Boro",53968,null,null,null,null,null,null,null,null,"Newport Boro",53968,99]
[null,null,null,null,null,null,"Northeast Madison Twp",54968,null,null,null,null,null,null,null,null,"Northeast Madison Twp",54968,99]
[null,null,null,null,null,null,"Oliver Twp",56728,null,null,null,null,null,null,null,null,"Oliver Twp",56728,99]
[null,null,null,null,null,null,"Penn Twp",58856,null,null,null,null,null,null,null,null,"Penn Twp",58856,99]
[null,null,null,null,null,null,"Rye Twp",66976,null,null,null,null,null,null,null,null,"Rye Twp",66976,99]
[null,null,null,null,null,null,"Saville Twp",68032,null,null,null,null,null,null,null,null,"Saville Twp",68032,99]
[null,null,null,null,null,null,"Southwest Madison Twp",72624,null,null,null,null,null,null,null,null,"Southwest Madison Twp",72624,99]
[null,null,null,null,null,null,"Spring Twp",72848,null,null,null,null,null,null,null,null,"Spring Twp",72848,99]
[null,null,null,null,null,null,"Toboyne Twp",76920,null,null,null,null,null,null,null,null,"Toboyne Twp",76920,99]
[null,null,null,null,null,null,"Tuscarora Twp",77960,null,null,null,null,null,null,null,null,"Tuscarora Twp",77960,99]
[null,null,null,null,null,null,"Tyrone Twp",78184,null,null,null,null,null,null,null,null,"Tyrone Twp",78184,99]
[null,null,null,null,null,null,"Watts Twp",81640,null,null,null,null,null,null,null,null,"Watts Twp",81640,99]
[null,null,null,null,null,null,"Wheatfield Twp",84368,null,null,null,null,null,null,null,null,"Wheatfield Twp",84368,99]
[null,null,null,null,null,null,"Philadelphia City",60000,null,null,null,null,null,null,null,null,"Philadelphia City",60000,101]
[null,null,null,null,null,null,"Blooming Grove Twp",7088,null,null,null,null,null,null,null,null,"Blooming Grove Twp",7088,103]
[null,null,null,null,null,null,"Delaware Twp",18704,null,null,null,null,null,null,null,null,"Delaware Twp",18704,103]
[null,null,null,null,null,null,"Dingman Twp",19272,null,null,null,null,null,null,null,null,"Dingman Twp",19272,103]
[null,null,null,null,null,null,"Greene Twp",30976,null,null,null,null,null,null,null,null,"Greene Twp",30976,103]
[null,null,null,null,null,null,"Lackawaxen Twp",40776,null,null,null,null,null,null,null,null,"Lackawaxen Twp",40776,103]
[null,null,null,null,null,null,"Lehman Twp",42512,null,null,null,null,null,null,null,null,"Lehman Twp",42512,103]
[null,null,null,null,null,null,"Matamoras Boro",48048,null,null,null,null,null,null,null,null,"Matamoras Boro",48048,103]
[null,null,null,null,null,null,"Milford Boro",49400,null,null,null,null,null,null,null,null,"Milford Boro",49400,103]
[null,null,null,null,null,null,"Milford Twp",49408,null,null,null,null,null,null,null,null,"Milford Twp",49408,103]
[null,null,null,null,null,null,"Palmyra Twp",57728,null,null,null,null,null,null,null,null,"Palmyra Twp",57728,103]
[null,null,null,null,null,null,"Porter Twp",62192,null,null,null,null,null,null,null,null,"Porter Twp",62192,103]
[null,null,null,null,null,null,"Shohola Twp",70496,null,null,null,null,null,null,null,null,"Shohola Twp",70496,103]
[null,null,null,null,null,null,"Westfall Twp",82928,null,null,null,null,null,null,null,null,"Westfall Twp",82928,103]
[null,null,null,null,null,null,"Abbott Twp",108,null,null,null,null,null,null,null,null,"Abbott Twp",108,105]
[null,null,null,null,null,null,"Allegany Twp",836,null,null,null,null,null,null,null,null,"Allegany Twp",836,105]
[null,null,null,null,null,null,"Austin Boro",3576,null,null,null,null,null,null,null,null,"Austin Boro",3576,105]
[null,null,null,null,null,null,"Bingham Twp",6432,null,null,null,null,null,null,null,null,"Bingham Twp",6432,105]
[null,null,null,null,null,null,"Clara Twp",13760,null,null,null,null,null,null,null,null,"Clara Twp",13760,105]
[null,null,null,null,null,null,"Coudersport Boro",16448,null,null,null,null,null,null,null,null,"Coudersport Boro",16448,105]
[null,null,null,null,null,null,"Eulalia Twp",24184,null,null,null,null,null,null,null,null,"Eulalia Twp",24184,105]
[null,null,null,null,null,null,"Galeton Boro",28280,null,null,null,null,null,null,null,null,"Galeton Boro",28280,105]
[null,null,null,null,null,null,"Genesee Twp",28760,null,null,null,null,null,null,null,null,"Genesee Twp",28760,105]
[null,null,null,null,null,null,"Harrison Twp",32848,null,null,null,null,null,null,null,null,"Harrison Twp",32848,105]
[null,null,null,null,null,null,"Hebron Twp",33512,null,null,null,null,null,null,null,null,"Hebron Twp",33512,105]
[null,null,null,null,null,null,"Hector Twp",33568,null,null,null,null,null,null,null,null,"Hector Twp",33568,105]
[null,null,null,null,null,null,"Homer Twp",35400,null,null,null,null,null,null,null,null,"Homer Twp",35400,105]
[null,null,null,null,null,null,"Keating Twp",38920,null,null,null,null,null,null,null,null,"Keating Twp",38920,105]
[null,null,null,null,null,null,"Oswayo Boro",57280,null,null,null,null,null,null,null,null,"Oswayo Boro",57280,105]
[null,null,null,null,null,null,"Oswayo Twp",57288,null,null,null,null,null,null,null,null,"Oswayo Twp",57288,105]
[null,null,null,null,null,null,"Pike Twp",60200,null,null,null,null,null,null,null,null,"Pike Twp",60200,105]
[null,null,null,null,null,null,"Pleasant Valley Twp",61400,null,null,null,null,null,null,null,null,"Pleasant Valley Twp",61400,105]
[null,null,null,null,null,null,"Portage Twp",62072,null,null,null,null,null,null,null,null,"Portage Twp",62072,105]
[null,null,null,null,null,null,"Roulette Twp",66416,null,null,null,null,null,null,null,null,"Roulette Twp",66416,105]
[null,null,null,null,null,null,"Sharon Twp",69736,null,null,null,null,null,null,null,null,"Sharon Twp",69736,105]
[null,null,null,null,null,null,"Shinglehouse Boro",70304,null,null,null,null,null,null,null,null,"Shinglehouse Boro",70304,105]
[null,null,null,null,null,null,"Stewardson Twp",74072,null,null,null,null,null,null,null,null,"Stewardson Twp",74072,105]
[null,null,null,null,null,null,"Summit Twp",75224,null,null,null,null,null,null,null,null,"Summit Twp",75224,105]
[null,null,null,null,null,null,"Sweden Twp",75720,null,null,null,null,null,null,null,null,"Sweden Twp",75720,105]
[null,null,null,null,null,null,"Sylvania Twp",75952,null,null,null,null,null,null,null,null,"Sylvania Twp",75952,105]
[null,null,null,null,null,null,"Ulysses Boro",78240,null,null,null,null,null,null,null,null,"Ulysses Boro",78240,105]
[null,null,null,null,null,null,"Ulysses Twp",78248,null,null,null,null,null,null,null,null,"Ulysses Twp",78248,105]
[null,null,null,null,null,null,"West Branch Twp",82568,null,null,null,null,null,null,null,null,"West Branch Twp",82568,105]
[null,null,null,null,null,null,"Wharton Twp",84360,null,null,null,null,null,null,null,null,"Wharton Twp",84360,105]
[null,null,null,null,null,null,"Ashland Boro",3264,null,null,null,null,null,null,null,null,"Ashland Boro",3264,107]
[null,null,null,null,null,null,"Auburn Boro",3488,null,null,null,null,null,null,null,null,"Auburn Boro",3488,107]
[null,null,null,null,null,null,"Barry Twp",4352,null,null,null,null,null,null,null,null,"Barry Twp",4352,107]
[null,null,null,null,null,null,"Blythe Twp",7336,null,null,null,null,null,null,null,null,"Blythe Twp",7336,107]
[null,null,null,null,null,null,"Branch Twp",8200,null,null,null,null,null,null,null,null,"Branch Twp",8200,107]
[null,null,null,null,null,null,"Butler Twp",10488,null,null,null,null,null,null,null,null,"Butler Twp",10488,107]
[null,null,null,null,null,null,"Cass Twp",11608,null,null,null,null,null,null,null,null,"Cass Twp",11608,107]
[null,null,null,null,null,null,"Coaldale Boro",14600,null,null,null,null,null,null,null,null,"Coaldale Boro",14600,107]
[null,null,null,null,null,null,"Cressona Boro",17152,null,null,null,null,null,null,null,null,"Cressona Boro",17152,107]
[null,null,null,null,null,null,"Deer Lake Boro",18576,null,null,null,null,null,null,null,null,"Deer Lake Boro",18576,107]
[null,null,null,null,null,null,"Delano Twp",18672,null,null,null,null,null,null,null,null,"Delano Twp",18672,107]
[null,null,null,null,null,null,"East Brunswick Twp",20880,null,null,null,null,null,null,null,null,"East Brunswick Twp",20880,107]
[null,null,null,null,null,null,"East Norwegian Twp",21616,null,null,null,null,null,null,null,null,"East Norwegian Twp",21616,107]
[null,null,null,null,null,null,"East Union Twp",21952,null,null,null,null,null,null,null,null,"East Union Twp",21952,107]
[null,null,null,null,null,null,"Eldred Twp",22912,null,null,null,null,null,null,null,null,"Eldred Twp",22912,107]
[null,null,null,null,null,null,"Foster Twp",26944,null,null,null,null,null,null,null,null,"Foster Twp",26944,107]
[null,null,null,null,null,null,"Frackville Boro",27232,null,null,null,null,null,null,null,null,"Frackville Boro",27232,107]
[null,null,null,null,null,null,"Frailey Twp",27248,null,null,null,null,null,null,null,null,"Frailey Twp",27248,107]
[null,null,null,null,null,null,"Gilberton Boro",29088,null,null,null,null,null,null,null,null,"Gilberton Boro",29088,107]
[null,null,null,null,null,null,"Girardville Boro",29264,null,null,null,null,null,null,null,null,"Girardville Boro",29264,107]
[null,null,null,null,null,null,"Gordon Boro",30128,null,null,null,null,null,null,null,null,"Gordon Boro",30128,107]
[null,null,null,null,null,null,"Hegins Twp",33584,null,null,null,null,null,null,null,null,"Hegins Twp",33584,107]
[null,null,null,null,null,null,"Hubley Twp",36072,null,null,null,null,null,null,null,null,"Hubley Twp",36072,107]
[null,null,null,null,null,null,"Kline Twp",40096,null,null,null,null,null,null,null,null,"Kline Twp",40096,107]
[null,null,null,null,null,null,"Landingville Boro",41264,null,null,null,null,null,null,null,null,"Landingville Boro",41264,107]
[null,null,null,null,null,null,"Mcadoo Boro",45824,null,null,null,null,null,null,null,null,"Mcadoo Boro",45824,107]
[null,null,null,null,null,null,"Mahanoy Twp",46584,null,null,null,null,null,null,null,null,"Mahanoy Twp",46584,107]
[null,null,null,null,null,null,"Mahanoy City Boro",46592,null,null,null,null,null,null,null,null,"Mahanoy City Boro",46592,107]
[null,null,null,null,null,null,"Mechanicsville Boro",48448,null,null,null,null,null,null,null,null,"Mechanicsville Boro",48448,107]
[null,null,null,null,null,null,"Middleport Boro",49048,null,null,null,null,null,null,null,null,"Middleport Boro",49048,107]
[null,null,null,null,null,null,"Minersville Boro",50088,null,null,null,null,null,null,null,null,"Minersville Boro",50088,107]
[null,null,null,null,null,null,"Mount Carbon Boro",51488,null,null,null,null,null,null,null,null,"Mount Carbon Boro",51488,107]
[null,null,null,null,null,null,"New Castle Twp",53376,null,null,null,null,null,null,null,null,"New Castle Twp",53376,107]
[null,null,null,null,null,null,"New Philadelphia Boro",53944,null,null,null,null,null,null,null,null,"New Philadelphia Boro",53944,107]
[null,null,null,null,null,null,"New Ringgold Boro",54016,null,null,null,null,null,null,null,null,"New Ringgold Boro",54016,107]
[null,null,null,null,null,null,"North Manheim Twp",55192,null,null,null,null,null,null,null,null,"North Manheim Twp",55192,107]
[null,null,null,null,null,null,"North Union Twp",55472,null,null,null,null,null,null,null,null,"North Union Twp",55472,107]
[null,null,null,null,null,null,"Norwegian Twp",55624,null,null,null,null,null,null,null,null,"Norwegian Twp",55624,107]
[null,null,null,null,null,null,"Orwigsburg Boro",57184,null,null,null,null,null,null,null,null,"Orwigsburg Boro",57184,107]
[null,null,null,null,null,null,"Palo Alto Boro",57752,null,null,null,null,null,null,null,null,"Palo Alto Boro",57752,107]
[null,null,null,null,null,null,"Pine Grove Boro",60456,null,null,null,null,null,null,null,null,"Pine Grove Boro",60456,107]
[null,null,null,null,null,null,"Pine Grove Twp",60464,null,null,null,null,null,null,null,null,"Pine Grove Twp",60464,107]
[null,null,null,null,null,null,"Port Carbon Boro",62128,null,null,null,null,null,null,null,null,"Port Carbon Boro",62128,107]
[null,null,null,null,null,null,"Port Clinton Boro",62136,null,null,null,null,null,null,null,null,"Port Clinton Boro",62136,107]
[null,null,null,null,null,null,"Porter Twp",62200,null,null,null,null,null,null,null,null,"Porter Twp",62200,107]
[null,null,null,null,null,null,"Pottsville City",62432,null,null,null,null,null,null,null,null,"Pottsville City",62432,107]
[null,null,null,null,null,null,"Reilly Twp",64088,null,null,null,null,null,null,null,null,"Reilly Twp",64088,107]
[null,null,null,null,null,null,"Ringtown Boro",65000,null,null,null,null,null,null,null,null,"Ringtown Boro",65000,107]
[null,null,null,null,null,null,"Rush Twp",66760,null,null,null,null,null,null,null,null,"Rush Twp",66760,107]
[null,null,null,null,null,null,"Ryan Twp",66944,null,null,null,null,null,null,null,null,"Ryan Twp",66944,107]
[null,null,null,null,null,null,"Saint Clair Boro",67224,null,null,null,null,null,null,null,null,"Saint Clair Boro",67224,107]
[null,null,null,null,null,null,"Schuylkill Twp",68304,null,null,null,null,null,null,null,null,"Schuylkill Twp",68304,107]
[null,null,null,null,null,null,"Schuylkill Haven Boro",68312,null,null,null,null,null,null,null,null,"Schuylkill Haven Boro",68312,107]
[null,null,null,null,null,null,"Shenandoah Boro",70056,null,null,null,null,null,null,null,null,"Shenandoah Boro",70056,107]
[null,null,null,null,null,null,"South Manheim Twp",72312,null,null,null,null,null,null,null,null,"South Manheim Twp",72312,107]
[null,null,null,null,null,null,"Tamaqua Boro",76032,null,null,null,null,null,null,null,null,"Tamaqua Boro",76032,107]
[null,null,null,null,null,null,"Tower City Boro",77184,null,null,null,null,null,null,null,null,"Tower City Boro",77184,107]
[null,null,null,null,null,null,"Tremont Boro",77392,null,null,null,null,null,null,null,null,"Tremont Boro",77392,107]
[null,null,null,null,null,null,"Tremont Twp",77400,null,null,null,null,null,null,null,null,"Tremont Twp",77400,107]
[null,null,null,null,null,null,"Union Twp",78400,null,null,null,null,null,null,null,null,"Union Twp",78400,107]
[null,null,null,null,null,null,"Upper Mahantango Twp",79120,null,null,null,null,null,null,null,null,"Upper Mahantango Twp",79120,107]
[null,null,null,null,null,null,"Walker Twp",80576,null,null,null,null,null,null,null,null,"Walker Twp",80576,107]
[null,null,null,null,null,null,"Washington Twp",81312,null,null,null,null,null,null,null,null,"Washington Twp",81312,107]
[null,null,null,null,null,null,"Wayne Twp",81792,null,null,null,null,null,null,null,null,"Wayne Twp",81792,107]
[null,null,null,null,null,null,"West Brunswick Twp",82632,null,null,null,null,null,null,null,null,"West Brunswick Twp",82632,107]
[null,null,null,null,null,null,"West Mahanoy Twp",83408,null,null,null,null,null,null,null,null,"West Mahanoy Twp",83408,107]
[null,null,null,null,null,null,"West Penn Twp",83792,null,null,null,null,null,null,null,null,"West Penn Twp",83792,107]
[null,null,null,null,null,null,"Adams Twp",316,null,null,null,null,null,null,null,null,"Adams Twp",316,109]
[null,null,null,null,null,null,"Beaver Twp",4736,null,null,null,null,null,null,null,null,"Beaver Twp",4736,109]
[null,null,null,null,null,null,"Beavertown Boro",4848,null,null,null,null,null,null,null,null,"Beavertown Boro",4848,109]
[null,null,null,null,null,null,"Centre Twp",12060,null,null,null,null,null,null,null,null,"Centre Twp",12060,109]
[null,null,null,null,null,null,"Chapman Twp",12672,null,null,null,null,null,null,null,null,"Chapman Twp",12672,109]
[null,null,null,null,null,null,"Franklin Twp",27440,null,null,null,null,null,null,null,null,"Franklin Twp",27440,109]
[null,null,null,null,null,null,"Freeburg Boro",27696,null,null,null,null,null,null,null,null,"Freeburg Boro",27696,109]
[null,null,null,null,null,null,"Jackson Twp",37448,null,null,null,null,null,null,null,null,"Jackson Twp",37448,109]
[null,null,null,null,null,null,"Mcclure Boro",45992,null,null,null,null,null,null,null,null,"Mcclure Boro",45992,109]
[null,null,null,null,null,null,"Middleburg Boro",48960,null,null,null,null,null,null,null,null,"Middleburg Boro",48960,109]
[null,null,null,null,null,null,"Middlecreek Twp",49016,null,null,null,null,null,null,null,null,"Middlecreek Twp",49016,109]
[null,null,null,null,null,null,"Monroe Twp",50488,null,null,null,null,null,null,null,null,"Monroe Twp",50488,109]
[null,null,null,null,null,null,"Penn Twp",58864,null,null,null,null,null,null,null,null,"Penn Twp",58864,109]
[null,null,null,null,null,null,"Perry Twp",59504,null,null,null,null,null,null,null,null,"Perry Twp",59504,109]
[null,null,null,null,null,null,"Selinsgrove Boro",69216,null,null,null,null,null,null,null,null,"Selinsgrove Boro",69216,109]
[null,null,null,null,null,null,"Shamokin Dam Boro",69616,null,null,null,null,null,null,null,null,"Shamokin Dam Boro",69616,109]
[null,null,null,null,null,null,"Spring Twp",72856,null,null,null,null,null,null,null,null,"Spring Twp",72856,109]
[null,null,null,null,null,null,"Union Twp",78408,null,null,null,null,null,null,null,null,"Union Twp",78408,109]
[null,null,null,null,null,null,"Washington Twp",81320,null,null,null,null,null,null,null,null,"Washington Twp",81320,109]
[null,null,null,null,null,null,"West Beaver Twp",82464,null,null,null,null,null,null,null,null,"West Beaver Twp",82464,109]
[null,null,null,null,null,null,"West Perry Twp",83808,null,null,null,null,null,null,null,null,"West Perry Twp",83808,109]
[null,null,null,null,null,null,"Addison Boro",396,null,null,null,null,null,null,null,null,"Addison Boro",396,111]
[null,null,null,null,null,null,"Addison Twp",404,null,null,null,null,null,null,null,null,"Addison Twp",404,111]
[null,null,null,null,null,null,"Allegheny Twp",876,null,null,null,null,null,null,null,null,"Allegheny Twp",876,111]
[null,null,null,null,null,null,"Benson Boro",5648,null,null,null,null,null,null,null,null,"Benson Boro",5648,111]
[null,null,null,null,null,null,"Berlin Boro",5776,null,null,null,null,null,null,null,null,"Berlin Boro",5776,111]
[null,null,null,null,null,null,"Black Twp",6640,null,null,null,null,null,null,null,null,"Black Twp",6640,111]
[null,null,null,null,null,null,"Boswell Boro",7712,null,null,null,null,null,null,null,null,"Boswell Boro",7712,111]
[null,null,null,null,null,null,"Brothers Valley Twp",9256,null,null,null,null,null,null,null,null,"Brothers Valley Twp",9256,111]
[null,null,null,null,null,null,"Callimont Boro",10808,null,null,null,null,null,null,null,null,"Callimont Boro",10808,111]
[null,null,null,null,null,null,"Casselman Boro",11624,null,null,null,null,null,null,null,null,"Casselman Boro",11624,111]
[null,null,null,null,null,null,"Central City Boro",12296,null,null,null,null,null,null,null,null,"Central City Boro",12296,111]
[null,null,null,null,null,null,"Conemaugh Twp",15568,null,null,null,null,null,null,null,null,"Conemaugh Twp",15568,111]
[null,null,null,null,null,null,"Confluence Boro",15680,null,null,null,null,null,null,null,null,"Confluence Boro",15680,111]
[null,null,null,null,null,null,"Elk Lick Twp",23168,null,null,null,null,null,null,null,null,"Elk Lick Twp",23168,111]
[null,null,null,null,null,null,"Fairhope Twp",24680,null,null,null,null,null,null,null,null,"Fairhope Twp",24680,111]
[null,null,null,null,null,null,"Garrett Boro",28520,null,null,null,null,null,null,null,null,"Garrett Boro",28520,111]
[null,null,null,null,null,null,"Greenville Twp",31336,null,null,null,null,null,null,null,null,"Greenville Twp",31336,111]
[null,null,null,null,null,null,"Hooversville Boro",35608,null,null,null,null,null,null,null,null,"Hooversville Boro",35608,111]
[null,null,null,null,null,null,"Indian Lake Boro",36888,null,null,null,null,null,null,null,null,"Indian Lake Boro",36888,111]
[null,null,null,null,null,null,"Jefferson Twp",37920,null,null,null,null,null,null,null,null,"Jefferson Twp",37920,111]
[null,null,null,null,null,null,"Jenner Twp",38032,null,null,null,null,null,null,null,null,"Jenner Twp",38032,111]
[null,null,null,null,null,null,"Jennerstown Boro",38048,null,null,null,null,null,null,null,null,"Jennerstown Boro",38048,111]
[null,null,null,null,null,null,"Larimer Twp",41568,null,null,null,null,null,null,null,null,"Larimer Twp",41568,111]
[null,null,null,null,null,null,"Lincoln Twp",43440,null,null,null,null,null,null,null,null,"Lincoln Twp",43440,111]
[null,null,null,null,null,null,"Lower Turkeyfoot Twp",45136,null,null,null,null,null,null,null,null,"Lower Turkeyfoot Twp",45136,111]
[null,null,null,null,null,null,"Meyersdale Boro",48912,null,null,null,null,null,null,null,null,"Meyersdale Boro",48912,111]
[null,null,null,null,null,null,"Middlecreek Twp",49024,null,null,null,null,null,null,null,null,"Middlecreek Twp",49024,111]
[null,null,null,null,null,null,"Milford Twp",49416,null,null,null,null,null,null,null,null,"Milford Twp",49416,111]
[null,null,null,null,null,null,"New Baltimore Boro",53168,null,null,null,null,null,null,null,null,"New Baltimore Boro",53168,111]
[null,null,null,null,null,null,"New Centerville Boro",53416,null,null,null,null,null,null,null,null,"New Centerville Boro",53416,111]
[null,null,null,null,null,null,"Northampton Twp",54704,null,null,null,null,null,null,null,null,"Northampton Twp",54704,111]
[null,null,null,null,null,null,"Ogle Twp",56352,null,null,null,null,null,null,null,null,"Ogle Twp",56352,111]
[null,null,null,null,null,null,"Paint Boro",57544,null,null,null,null,null,null,null,null,"Paint Boro",57544,111]
[null,null,null,null,null,null,"Paint Twp",57552,null,null,null,null,null,null,null,null,"Paint Twp",57552,111]
[null,null,null,null,null,null,"Quemahoning Twp",63144,null,null,null,null,null,null,null,null,"Quemahoning Twp",63144,111]
[null,null,null,null,null,null,"Rockwood Boro",65736,null,null,null,null,null,null,null,null,"Rockwood Boro",65736,111]
[null,null,null,null,null,null,"Salisbury Boro",67584,null,null,null,null,null,null,null,null,"Salisbury Boro",67584,111]
[null,null,null,null,null,null,"Seven Springs Boro",69336,null,null,null,null,null,null,null,null,"Seven Springs Boro",69336,111]
[null,null,null,null,null,null,"Shade Twp",69448,null,null,null,null,null,null,null,null,"Shade Twp",69448,111]
[null,null,null,null,null,null,"Shanksville Boro",69680,null,null,null,null,null,null,null,null,"Shanksville Boro",69680,111]
[null,null,null,null,null,null,"Somerset Boro",71776,null,null,null,null,null,null,null,null,"Somerset Boro",71776,111]
[null,null,null,null,null,null,"Somerset Twp",71784,null,null,null,null,null,null,null,null,"Somerset Twp",71784,111]
[null,null,null,null,null,null,"Southampton Twp",71920,null,null,null,null,null,null,null,null,"Southampton Twp",71920,111]
[null,null,null,null,null,null,"Stonycreek Twp",74440,null,null,null,null,null,null,null,null,"Stonycreek Twp",74440,111]
[null,null,null,null,null,null,"Stoystown Boro",74672,null,null,null,null,null,null,null,null,"Stoystown Boro",74672,111]
[null,null,null,null,null,null,"Summit Twp",75232,null,null,null,null,null,null,null,null,"Summit Twp",75232,111]
[null,null,null,null,null,null,"Upper Turkeyfoot Twp",79336,null,null,null,null,null,null,null,null,"Upper Turkeyfoot Twp",79336,111]
[null,null,null,null,null,null,"Ursina Boro",79424,null,null,null,null,null,null,null,null,"Ursina Boro",79424,111]
[null,null,null,null,null,null,"Wellersburg Boro",82128,null,null,null,null,null,null,null,null,"Wellersburg Boro",82128,111]
[null,null,null,null,null,null,"Windber Boro",85632,null,null,null,null,null,null,null,null,"Windber Boro",85632,111]
[null,null,null,null,null,null,"Cherry Twp",13000,null,null,null,null,null,null,null,null,"Cherry Twp",13000,113]
[null,null,null,null,null,null,"Colley Twp",15208,null,null,null,null,null,null,null,null,"Colley Twp",15208,113]
[null,null,null,null,null,null,"Davidson Twp",18296,null,null,null,null,null,null,null,null,"Davidson Twp",18296,113]
[null,null,null,null,null,null,"Dushore Boro",20528,null,null,null,null,null,null,null,null,"Dushore Boro",20528,113]
[null,null,null,null,null,null,"Eagles Mere Boro",20648,null,null,null,null,null,null,null,null,"Eagles Mere Boro",20648,113]
[null,null,null,null,null,null,"Elkland Twp",23144,null,null,null,null,null,null,null,null,"Elkland Twp",23144,113]
[null,null,null,null,null,null,"Forks Twp",26736,null,null,null,null,null,null,null,null,"Forks Twp",26736,113]
[null,null,null,null,null,null,"Forksville Boro",26760,null,null,null,null,null,null,null,null,"Forksville Boro",26760,113]
[null,null,null,null,null,null,"Fox Twp",27096,null,null,null,null,null,null,null,null,"Fox Twp",27096,113]
[null,null,null,null,null,null,"Hillsgrove Twp",34840,null,null,null,null,null,null,null,null,"Hillsgrove Twp",34840,113]
[null,null,null,null,null,null,"Laporte Boro",41512,null,null,null,null,null,null,null,null,"Laporte Boro",41512,113]
[null,null,null,null,null,null,"Laporte Twp",41520,null,null,null,null,null,null,null,null,"Laporte Twp",41520,113]
[null,null,null,null,null,null,"Shrewsbury Twp",70560,null,null,null,null,null,null,null,null,"Shrewsbury Twp",70560,113]
[null,null,null,null,null,null,"Apolacon Twp",2712,null,null,null,null,null,null,null,null,"Apolacon Twp",2712,115]
[null,null,null,null,null,null,"Ararat Twp",2792,null,null,null,null,null,null,null,null,"Ararat Twp",2792,115]
[null,null,null,null,null,null,"Auburn Twp",3496,null,null,null,null,null,null,null,null,"Auburn Twp",3496,115]
[null,null,null,null,null,null,"Bridgewater Twp",8648,null,null,null,null,null,null,null,null,"Bridgewater Twp",8648,115]
[null,null,null,null,null,null,"Brooklyn Twp",9128,null,null,null,null,null,null,null,null,"Brooklyn Twp",9128,115]
[null,null,null,null,null,null,"Choconut Twp",13504,null,null,null,null,null,null,null,null,"Choconut Twp",13504,115]
[null,null,null,null,null,null,"Clifford Twp",14224,null,null,null,null,null,null,null,null,"Clifford Twp",14224,115]
[null,null,null,null,null,null,"Dimock Twp",19264,null,null,null,null,null,null,null,null,"Dimock Twp",19264,115]
[null,null,null,null,null,null,"Forest City Boro",26560,null,null,null,null,null,null,null,null,"Forest City Boro",26560,115]
[null,null,null,null,null,null,"Forest Lake Twp",26648,null,null,null,null,null,null,null,null,"Forest Lake Twp",26648,115]
[null,null,null,null,null,null,"Franklin Twp",27448,null,null,null,null,null,null,null,null,"Franklin Twp",27448,115]
[null,null,null,null,null,null,"Friendsville Boro",27968,null,null,null,null,null,null,null,null,"Friendsville Boro",27968,115]
[null,null,null,null,null,null,"Gibson Twp",29024,null,null,null,null,null,null,null,null,"Gibson Twp",29024,115]
[null,null,null,null,null,null,"Great Bend Boro",30728,null,null,null,null,null,null,null,null,"Great Bend Boro",30728,115]
[null,null,null,null,null,null,"Great Bend Twp",30736,null,null,null,null,null,null,null,null,"Great Bend Twp",30736,115]
[null,null,null,null,null,null,"Hallstead Boro",32080,null,null,null,null,null,null,null,null,"Hallstead Boro",32080,115]
[null,null,null,null,null,null,"Harford Twp",32568,null,null,null,null,null,null,null,null,"Harford Twp",32568,115]
[null,null,null,null,null,null,"Harmony Twp",32720,null,null,null,null,null,null,null,null,"Harmony Twp",32720,115]
[null,null,null,null,null,null,"Herrick Twp",34096,null,null,null,null,null,null,null,null,"Herrick Twp",34096,115]
[null,null,null,null,null,null,"Hop Bottom Boro",35624,null,null,null,null,null,null,null,null,"Hop Bottom Boro",35624,115]
[null,null,null,null,null,null,"Jackson Twp",37464,null,null,null,null,null,null,null,null,"Jackson Twp",37464,115]
[null,null,null,null,null,null,"Jessup Twp",38168,null,null,null,null,null,null,null,null,"Jessup Twp",38168,115]
[null,null,null,null,null,null,"Lanesboro Boro",41336,null,null,null,null,null,null,null,null,"Lanesboro Boro",41336,115]
[null,null,null,null,null,null,"Lathrop Twp",41656,null,null,null,null,null,null,null,null,"Lathrop Twp",41656,115]
[null,null,null,null,null,null,"Lenox Twp",42760,null,null,null,null,null,null,null,null,"Lenox Twp",42760,115]
[null,null,null,null,null,null,"Liberty Twp",43120,null,null,null,null,null,null,null,null,"Liberty Twp",43120,115]
[null,null,null,null,null,null,"Little Meadows Boro",43928,null,null,null,null,null,null,null,null,"Little Meadows Boro",43928,115]
[null,null,null,null,null,null,"Middletown Twp",49152,null,null,null,null,null,null,null,null,"Middletown Twp",49152,115]
[null,null,null,null,null,null,"Montrose Boro",50736,null,null,null,null,null,null,null,null,"Montrose Boro",50736,115]
[null,null,null,null,null,null,"New Milford Boro",53880,null,null,null,null,null,null,null,null,"New Milford Boro",53880,115]
[null,null,null,null,null,null,"New Milford Twp",53888,null,null,null,null,null,null,null,null,"New Milford Twp",53888,115]
[null,null,null,null,null,null,"Oakland Boro",56008,null,null,null,null,null,null,null,null,"Oakland Boro",56008,115]
[null,null,null,null,null,null,"Oakland Twp",56016,null,null,null,null,null,null,null,null,"Oakland Twp",56016,115]
[null,null,null,null,null,null,"Rush Twp",66776,null,null,null,null,null,null,null,null,"Rush Twp",66776,115]
[null,null,null,null,null,null,"Silver Lake Twp",70776,null,null,null,null,null,null,null,null,"Silver Lake Twp",70776,115]
[null,null,null,null,null,null,"Springville Twp",73440,null,null,null,null,null,null,null,null,"Springville Twp",73440,115]
[null,null,null,null,null,null,"Susquehanna Depot Boro",75568,null,null,null,null,null,null,null,null,"Susquehanna Depot Boro",75568,115]
[null,null,null,null,null,null,"Thompson Boro",76496,null,null,null,null,null,null,null,null,"Thompson Boro",76496,115]
[null,null,null,null,null,null,"Thompson Twp",76504,null,null,null,null,null,null,null,null,"Thompson Twp",76504,115]
[null,null,null,null,null,null,"Uniondale Boro",78456,null,null,null,null,null,null,null,null,"Uniondale Boro",78456,115]
[null,null,null,null,null,null,"Bloss Twp",7152,null,null,null,null,null,null,null,null,"Bloss Twp",7152,117]
[null,null,null,null,null,null,"Blossburg Boro",7160,null,null,null,null,null,null,null,null,"Blossburg Boro",7160,117]
[null,null,null,null,null,null,"Brookfield Twp",9072,null,null,null,null,null,null,null,null,"Brookfield Twp",9072,117]
[null,null,null,null,null,null,"Charleston Twp",12728,null,null,null,null,null,null,null,null,"Charleston Twp",12728,117]
[null,null,null,null,null,null,"Chatham Twp",12880,null,null,null,null,null,null,null,null,"Chatham Twp",12880,117]
[null,null,null,null,null,null,"Clymer Twp",14528,null,null,null,null,null,null,null,null,"Clymer Twp",14528,117]
[null,null,null,null,null,null,"Covington Twp",16680,null,null,null,null,null,null,null,null,"Covington Twp",16680,117]
[null,null,null,null,null,null,"Deerfield Twp",18552,null,null,null,null,null,null,null,null,"Deerfield Twp",18552,117]
[null,null,null,null,null,null,"Delmar Twp",18760,null,null,null,null,null,null,null,null,"Delmar Twp",18760,117]
[null,null,null,null,null,null,"Duncan Twp",20232,null,null,null,null,null,null,null,null,"Duncan Twp",20232,117]
[null,null,null,null,null,null,"Elk Twp",23056,null,null,null,null,null,null,null,null,"Elk Twp",23056,117]
[null,null,null,null,null,null,"Elkland Boro",23152,null,null,null,null,null,null,null,null,"Elkland Boro",23152,117]
[null,null,null,null,null,null,"Farmington Twp",25296,null,null,null,null,null,null,null,null,"Farmington Twp",25296,117]
[null,null,null,null,null,null,"Gaines Twp",28264,null,null,null,null,null,null,null,null,"Gaines Twp",28264,117]
[null,null,null,null,null,null,"Hamilton Twp",32192,null,null,null,null,null,null,null,null,"Hamilton Twp",32192,117]
[null,null,null,null,null,null,"Jackson Twp",37472,null,null,null,null,null,null,null,null,"Jackson Twp",37472,117]
[null,null,null,null,null,null,"Knoxville Boro",40360,null,null,null,null,null,null,null,null,"Knoxville Boro",40360,117]
[null,null,null,null,null,null,"Lawrence Twp",41960,null,null,null,null,null,null,null,null,"Lawrence Twp",41960,117]
[null,null,null,null,null,null,"Lawrenceville Boro",42016,null,null,null,null,null,null,null,null,"Lawrenceville Boro",42016,117]
[null,null,null,null,null,null,"Liberty Boro",43128,null,null,null,null,null,null,null,null,"Liberty Boro",43128,117]
[null,null,null,null,null,null,"Liberty Twp",43136,null,null,null,null,null,null,null,null,"Liberty Twp",43136,117]
[null,null,null,null,null,null,"Mansfield Boro",47080,null,null,null,null,null,null,null,null,"Mansfield Boro",47080,117]
[null,null,null,null,null,null,"Middlebury Twp",48968,null,null,null,null,null,null,null,null,"Middlebury Twp",48968,117]
[null,null,null,null,null,null,"Morris Twp",51096,null,null,null,null,null,null,null,null,"Morris Twp",51096,117]
[null,null,null,null,null,null,"Nelson Twp",52960,null,null,null,null,null,null,null,null,"Nelson Twp",52960,117]
[null,null,null,null,null,null,"Osceola Twp",57224,null,null,null,null,null,null,null,null,"Osceola Twp",57224,117]
[null,null,null,null,null,null,"Putnam Twp",62960,null,null,null,null,null,null,null,null,"Putnam Twp",62960,117]
[null,null,null,null,null,null,"Richmond Twp",64624,null,null,null,null,null,null,null,null,"Richmond Twp",64624,117]
[null,null,null,null,null,null,"Roseville Boro",66232,null,null,null,null,null,null,null,null,"Roseville Boro",66232,117]
[null,null,null,null,null,null,"Rutland Twp",66912,null,null,null,null,null,null,null,null,"Rutland Twp",66912,117]
[null,null,null,null,null,null,"Shippen Twp",70344,null,null,null,null,null,null,null,null,"Shippen Twp",70344,117]
[null,null,null,null,null,null,"Sullivan Twp",75104,null,null,null,null,null,null,null,null,"Sullivan Twp",75104,117]
[null,null,null,null,null,null,"Tioga Boro",76808,null,null,null,null,null,null,null,null,"Tioga Boro",76808,117]
[null,null,null,null,null,null,"Tioga Twp",76824,null,null,null,null,null,null,null,null,"Tioga Twp",76824,117]
[null,null,null,null,null,null,"Union Twp",78416,null,null,null,null,null,null,null,null,"Union Twp",78416,117]
[null,null,null,null,null,null,"Ward Twp",80936,null,null,null,null,null,null,null,null,"Ward Twp",80936,117]
[null,null,null,null,null,null,"Wellsboro Boro",82160,null,null,null,null,null,null,null,null,"Wellsboro Boro",82160,117]
[null,null,null,null,null,null,"Westfield Boro",82968,null,null,null,null,null,null,null,null,"Westfield Boro",82968,117]
[null,null,null,null,null,null,"Westfield Twp",82976,null,null,null,null,null,null,null,null,"Westfield Twp",82976,117]
[null,null,null,null,null,null,"Buffalo Twp",10016,null,null,null,null,null,null,null,null,"Buffalo Twp",10016,119]
[null,null,null,null,null,null,"East Buffalo Twp",20888,null,null,null,null,null,null,null,null,"East Buffalo Twp",20888,119]
[null,null,null,null,null,null,"Gregg Twp",31480,null,null,null,null,null,null,null,null,"Gregg Twp",31480,119]
[null,null,null,null,null,null,"Hartleton Boro",32936,null,null,null,null,null,null,null,null,"Hartleton Boro",32936,119]
[null,null,null,null,null,null,"Hartley Twp",32952,null,null,null,null,null,null,null,null,"Hartley Twp",32952,119]
[null,null,null,null,null,null,"Kelly Twp",39136,null,null,null,null,null,null,null,null,"Kelly Twp",39136,119]
[null,null,null,null,null,null,"Lewis Twp",42960,null,null,null,null,null,null,null,null,"Lewis Twp",42960,119]
[null,null,null,null,null,null,"Lewisburg Boro",42976,null,null,null,null,null,null,null,null,"Lewisburg Boro",42976,119]
[null,null,null,null,null,null,"Limestone Twp",43368,null,null,null,null,null,null,null,null,"Limestone Twp",43368,119]
[null,null,null,null,null,null,"Mifflinburg Boro",49288,null,null,null,null,null,null,null,null,"Mifflinburg Boro",49288,119]
[null,null,null,null,null,null,"New Berlin Boro",53200,null,null,null,null,null,null,null,null,"New Berlin Boro",53200,119]
[null,null,null,null,null,null,"Union Twp",78424,null,null,null,null,null,null,null,null,"Union Twp",78424,119]
[null,null,null,null,null,null,"West Buffalo Twp",82640,null,null,null,null,null,null,null,null,"West Buffalo Twp",82640,119]
[null,null,null,null,null,null,"White Deer Twp",84496,null,null,null,null,null,null,null,null,"White Deer Twp",84496,119]
[null,null,null,null,null,null,"Allegheny Twp",884,null,null,null,null,null,null,null,null,"Allegheny Twp",884,121]
[null,null,null,null,null,null,"Barkeyville Boro",4136,null,null,null,null,null,null,null,null,"Barkeyville Boro",4136,121]
[null,null,null,null,null,null,"Canal Twp",11080,null,null,null,null,null,null,null,null,"Canal Twp",11080,121]
[null,null,null,null,null,null,"Cherrytree Twp",13136,null,null,null,null,null,null,null,null,"Cherrytree Twp",13136,121]
[null,null,null,null,null,null,"Clinton Twp",14344,null,null,null,null,null,null,null,null,"Clinton Twp",14344,121]
[null,null,null,null,null,null,"Clintonville Boro",14376,null,null,null,null,null,null,null,null,"Clintonville Boro",14376,121]
[null,null,null,null,null,null,"Cooperstown Boro",16080,null,null,null,null,null,null,null,null,"Cooperstown Boro",16080,121]
[null,null,null,null,null,null,"Cornplanter Twp",16232,null,null,null,null,null,null,null,null,"Cornplanter Twp",16232,121]
[null,null,null,null,null,null,"Cranberry Twp",16944,null,null,null,null,null,null,null,null,"Cranberry Twp",16944,121]
[null,null,null,null,null,null,"Emlenton Boro",23568,null,null,null,null,null,null,null,null,"Emlenton Boro",23568,121]
[null,null,null,null,null,null,"Franklin City",27456,null,null,null,null,null,null,null,null,"Franklin City",27456,121]
[null,null,null,null,null,null,"French Creek Twp",27832,null,null,null,null,null,null,null,null,"French Creek Twp",27832,121]
[null,null,null,null,null,null,"Irwin Twp",37200,null,null,null,null,null,null,null,null,"Irwin Twp",37200,121]
[null,null,null,null,null,null,"Jackson Twp",37480,null,null,null,null,null,null,null,null,"Jackson Twp",37480,121]
[null,null,null,null,null,null,"Mineral Twp",50048,null,null,null,null,null,null,null,null,"Mineral Twp",50048,121]
[null,null,null,null,null,null,"Oakland Twp",56024,null,null,null,null,null,null,null,null,"Oakland Twp",56024,121]
[null,null,null,null,null,null,"Oil City City",56456,null,null,null,null,null,null,null,null,"Oil City City",56456,121]
[null,null,null,null,null,null,"Oil Creek Twp",56480,null,null,null,null,null,null,null,null,"Oil Creek Twp",56480,121]
[null,null,null,null,null,null,"Pine Grove Twp",60472,null,null,null,null,null,null,null,null,"Pine Grove Twp",60472,121]
[null,null,null,null,null,null,"Pleasantville Boro",61512,null,null,null,null,null,null,null,null,"Pleasantville Boro",61512,121]
[null,null,null,null,null,null,"Plum Twp",61552,null,null,null,null,null,null,null,null,"Plum Twp",61552,121]
[null,null,null,null,null,null,"Polk Boro",61936,null,null,null,null,null,null,null,null,"Polk Boro",61936,121]
[null,null,null,null,null,null,"President Twp",62544,null,null,null,null,null,null,null,null,"President Twp",62544,121]
[null,null,null,null,null,null,"Richland Twp",64568,null,null,null,null,null,null,null,null,"Richland Twp",64568,121]
[null,null,null,null,null,null,"Rockland Twp",65560,null,null,null,null,null,null,null,null,"Rockland Twp",65560,121]
[null,null,null,null,null,null,"Rouseville Boro",66440,null,null,null,null,null,null,null,null,"Rouseville Boro",66440,121]
[null,null,null,null,null,null,"Sandy Creek Twp",67824,null,null,null,null,null,null,null,null,"Sandy Creek Twp",67824,121]
[null,null,null,null,null,null,"Scrubgrass Twp",69016,null,null,null,null,null,null,null,null,"Scrubgrass Twp",69016,121]
[null,null,null,null,null,null,"Sugarcreek Boro",75000,null,null,null,null,null,null,null,null,"Sugarcreek Boro",75000,121]
[null,null,null,null,null,null,"Utica Boro",79472,null,null,null,null,null,null,null,null,"Utica Boro",79472,121]
[null,null,null,null,null,null,"Victory Twp",80168,null,null,null,null,null,null,null,null,"Victory Twp",80168,121]
[null,null,null,null,null,null,"Bear Lake Boro",4608,null,null,null,null,null,null,null,null,"Bear Lake Boro",4608,123]
[null,null,null,null,null,null,"Brokenstraw Twp",9024,null,null,null,null,null,null,null,null,"Brokenstraw Twp",9024,123]
[null,null,null,null,null,null,"Cherry Grove Twp",13056,null,null,null,null,null,null,null,null,"Cherry Grove Twp",13056,123]
[null,null,null,null,null,null,"Clarendon Boro",13776,null,null,null,null,null,null,null,null,"Clarendon Boro",13776,123]
[null,null,null,null,null,null,"Columbus Twp",15408,null,null,null,null,null,null,null,null,"Columbus Twp",15408,123]
[null,null,null,null,null,null,"Conewango Twp",15672,null,null,null,null,null,null,null,null,"Conewango Twp",15672,123]
[null,null,null,null,null,null,"Deerfield Twp",18560,null,null,null,null,null,null,null,null,"Deerfield Twp",18560,123]
[null,null,null,null,null,null,"Eldred Twp",22920,null,null,null,null,null,null,null,null,"Eldred Twp",22920,123]
[null,null,null,null,null,null,"Elk Twp",23064,null,null,null,null,null,null,null,null,"Elk Twp",23064,123]
[null,null,null,null,null,null,"Farmington Twp",25304,null,null,null,null,null,null,null,null,"Farmington Twp",25304,123]
[null,null,null,null,null,null,"Freehold Twp",27736,null,null,null,null,null,null,null,null,"Freehold Twp",27736,123]
[null,null,null,null,null,null,"Glade Twp",29328,null,null,null,null,null,null,null,null,"Glade Twp",29328,123]
[null,null,null,null,null,null,"Limestone Twp",43372,null,null,null,null,null,null,null,null,"Limestone Twp",43372,123]
[null,null,null,null,null,null,"Mead Twp",48272,null,null,null,null,null,null,null,null,"Mead Twp",48272,123]
[null,null,null,null,null,null,"Pine Grove Twp",60480,null,null,null,null,null,null,null,null,"Pine Grove Twp",60480,123]
[null,null,null,null,null,null,"Pittsfield Twp",61040,null,null,null,null,null,null,null,null,"Pittsfield Twp",61040,123]
[null,null,null,null,null,null,"Pleasant Twp",61208,null,null,null,null,null,null,null,null,"Pleasant Twp",61208,123]
[null,null,null,null,null,null,"Sheffield Twp",69992,null,null,null,null,null,null,null,null,"Sheffield Twp",69992,123]
[null,null,null,null,null,null,"Southwest Twp",72600,null,null,null,null,null,null,null,null,"Southwest Twp",72600,123]
[null,null,null,null,null,null,"Spring Creek Twp",72952,null,null,null,null,null,null,null,null,"Spring Creek Twp",72952,123]
[null,null,null,null,null,null,"Sugar Grove Boro",75024,null,null,null,null,null,null,null,null,"Sugar Grove Boro",75024,123]
[null,null,null,null,null,null,"Sugar Grove Twp",75032,null,null,null,null,null,null,null,null,"Sugar Grove Twp",75032,123]
[null,null,null,null,null,null,"Tidioute Boro",76696,null,null,null,null,null,null,null,null,"Tidioute Boro",76696,123]
[null,null,null,null,null,null,"Triumph Twp",77512,null,null,null,null,null,null,null,null,"Triumph Twp",77512,123]
[null,null,null,null,null,null,"Warren City",81000,null,null,null,null,null,null,null,null,"Warren City",81000,123]
[null,null,null,null,null,null,"Watson Twp",81584,null,null,null,null,null,null,null,null,"Watson Twp",81584,123]
[null,null,null,null,null,null,"Youngsville Boro",87224,null,null,null,null,null,null,null,null,"Youngsville Boro",87224,123]
[null,null,null,null,null,null,"Allenport Boro",988,null,null,null,null,null,null,null,null,"Allenport Boro",988,125]
[null,null,null,null,null,null,"Amwell Twp",2384,null,null,null,null,null,null,null,null,"Amwell Twp",2384,125]
[null,null,null,null,null,null,"Beallsville Boro",4568,null,null,null,null,null,null,null,null,"Beallsville Boro",4568,125]
[null,null,null,null,null,null,"Bentleyville Boro",5672,null,null,null,null,null,null,null,null,"Bentleyville Boro",5672,125]
[null,null,null,null,null,null,"Blaine Twp",6840,null,null,null,null,null,null,null,null,"Blaine Twp",6840,125]
[null,null,null,null,null,null,"Buffalo Twp",10032,null,null,null,null,null,null,null,null,"Buffalo Twp",10032,125]
[null,null,null,null,null,null,"Burgettstown Boro",10224,null,null,null,null,null,null,null,null,"Burgettstown Boro",10224,125]
[null,null,null,null,null,null,"California Boro",10768,null,null,null,null,null,null,null,null,"California Boro",10768,125]
[null,null,null,null,null,null,"Canonsburg Boro",11152,null,null,null,null,null,null,null,null,"Canonsburg Boro",11152,125]
[null,null,null,null,null,null,"Canton Twp",11176,null,null,null,null,null,null,null,null,"Canton Twp",11176,125]
[null,null,null,null,null,null,"Carroll Twp",11424,null,null,null,null,null,null,null,null,"Carroll Twp",11424,125]
[null,null,null,null,null,null,"Cecil Twp",11800,null,null,null,null,null,null,null,null,"Cecil Twp",11800,125]
[null,null,null,null,null,null,"Centerville Boro",12224,null,null,null,null,null,null,null,null,"Centerville Boro",12224,125]
[null,null,null,null,null,null,"Charleroi Boro",12704,null,null,null,null,null,null,null,null,"Charleroi Boro",12704,125]
[null,null,null,null,null,null,"Chartiers Twp",12848,null,null,null,null,null,null,null,null,"Chartiers Twp",12848,125]
[null,null,null,null,null,null,"Claysville Boro",14000,null,null,null,null,null,null,null,null,"Claysville Boro",14000,125]
[null,null,null,null,null,null,"Coal Center Boro",14568,null,null,null,null,null,null,null,null,"Coal Center Boro",14568,125]
[null,null,null,null,null,null,"Cokeburg Boro",14896,null,null,null,null,null,null,null,null,"Cokeburg Boro",14896,125]
[null,null,null,null,null,null,"Cross Creek Twp",17314,null,null,null,null,null,null,null,null,"Cross Creek Twp",17314,125]
[null,null,null,null,null,null,"Deemston Boro",18496,null,null,null,null,null,null,null,null,"Deemston Boro",18496,125]
[null,null,null,null,null,null,"Donegal Twp",19464,null,null,null,null,null,null,null,null,"Donegal Twp",19464,125]
[null,null,null,null,null,null,"Donora Boro",19536,null,null,null,null,null,null,null,null,"Donora Boro",19536,125]
[null,null,null,null,null,null,"Dunlevy Boro",20328,null,null,null,null,null,null,null,null,"Dunlevy Boro",20328,125]
[null,null,null,null,null,null,"East Bethlehem Twp",20808,null,null,null,null,null,null,null,null,"East Bethlehem Twp",20808,125]
[null,null,null,null,null,null,"East Finley Twp",21144,null,null,null,null,null,null,null,null,"East Finley Twp",21144,125]
[null,null,null,null,null,null,"East Washington Boro",22016,null,null,null,null,null,null,null,null,"East Washington Boro",22016,125]
[null,null,null,null,null,null,"Elco Boro",22800,null,null,null,null,null,null,null,null,"Elco Boro",22800,125]
[null,null,null,null,null,null,"Ellsworth Boro",23296,null,null,null,null,null,null,null,null,"Ellsworth Boro",23296,125]
[null,null,null,null,null,null,"Fallowfield Twp",25104,null,null,null,null,null,null,null,null,"Fallowfield Twp",25104,125]
[null,null,null,null,null,null,"Finleyville Boro",25944,null,null,null,null,null,null,null,null,"Finleyville Boro",25944,125]
[null,null,null,null,null,null,"Greenhills Boro",31082,null,null,null,null,null,null,null,null,"Greenhills Boro",31082,125]
[null,null,null,null,null,null,"Hanover Twp",32440,null,null,null,null,null,null,null,null,"Hanover Twp",32440,125]
[null,null,null,null,null,null,"Hopewell Twp",35696,null,null,null,null,null,null,null,null,"Hopewell Twp",35696,125]
[null,null,null,null,null,null,"Houston Boro",35896,null,null,null,null,null,null,null,null,"Houston Boro",35896,125]
[null,null,null,null,null,null,"Independence Twp",36800,null,null,null,null,null,null,null,null,"Independence Twp",36800,125]
[null,null,null,null,null,null,"Jefferson Twp",37936,null,null,null,null,null,null,null,null,"Jefferson Twp",37936,125]
[null,null,null,null,null,null,"Long Branch Boro",44512,null,null,null,null,null,null,null,null,"Long Branch Boro",44512,125]
[null,null,null,null,null,null,"Mcdonald Boro",46072,null,null,null,null,null,null,null,null,"Mcdonald Boro",46072,125]
[null,null,null,null,null,null,"Marianna Boro",47400,null,null,null,null,null,null,null,null,"Marianna Boro",47400,125]
[null,null,null,null,null,null,"Midway Boro",49240,null,null,null,null,null,null,null,null,"Midway Boro",49240,125]
[null,null,null,null,null,null,"Monongahela City",50408,null,null,null,null,null,null,null,null,"Monongahela City",50408,125]
[null,null,null,null,null,null,"Morris Twp",51104,null,null,null,null,null,null,null,null,"Morris Twp",51104,125]
[null,null,null,null,null,null,"Mount Pleasant Twp",51864,null,null,null,null,null,null,null,null,"Mount Pleasant Twp",51864,125]
[null,null,null,null,null,null,"New Eagle Boro",53496,null,null,null,null,null,null,null,null,"New Eagle Boro",53496,125]
[null,null,null,null,null,null,"North Bethlehem Twp",54800,null,null,null,null,null,null,null,null,"North Bethlehem Twp",54800,125]
[null,null,null,null,null,null,"North Charleroi Boro",54888,null,null,null,null,null,null,null,null,"North Charleroi Boro",54888,125]
[null,null,null,null,null,null,"North Franklin Twp",55040,null,null,null,null,null,null,null,null,"North Franklin Twp",55040,125]
[null,null,null,null,null,null,"North Strabane Twp",55432,null,null,null,null,null,null,null,null,"North Strabane Twp",55432,125]
[null,null,null,null,null,null,"Nottingham Twp",55712,null,null,null,null,null,null,null,null,"Nottingham Twp",55712,125]
[null,null,null,null,null,null,"Peters Twp",59608,null,null,null,null,null,null,null,null,"Peters Twp",59608,125]
[null,null,null,null,null,null,"Robinson Twp",65376,null,null,null,null,null,null,null,null,"Robinson Twp",65376,125]
[null,null,null,null,null,null,"Roscoe Boro",66016,null,null,null,null,null,null,null,null,"Roscoe Boro",66016,125]
[null,null,null,null,null,null,"Smith Twp",71288,null,null,null,null,null,null,null,null,"Smith Twp",71288,125]
[null,null,null,null,null,null,"Somerset Twp",71792,null,null,null,null,null,null,null,null,"Somerset Twp",71792,125]
[null,null,null,null,null,null,"South Franklin Twp",72176,null,null,null,null,null,null,null,null,"South Franklin Twp",72176,125]
[null,null,null,null,null,null,"South Strabane Twp",72504,null,null,null,null,null,null,null,null,"South Strabane Twp",72504,125]
[null,null,null,null,null,null,"Speers Boro",72736,null,null,null,null,null,null,null,null,"Speers Boro",72736,125]
[null,null,null,null,null,null,"Stockdale Boro",74224,null,null,null,null,null,null,null,null,"Stockdale Boro",74224,125]
[null,null,null,null,null,null,"Twilight Boro",78008,null,null,null,null,null,null,null,null,"Twilight Boro",78008,125]
[null,null,null,null,null,null,"Union Twp",78432,null,null,null,null,null,null,null,null,"Union Twp",78432,125]
[null,null,null,null,null,null,"Washington City",81328,null,null,null,null,null,null,null,null,"Washington City",81328,125]
[null,null,null,null,null,null,"West Alexander Boro",82376,null,null,null,null,null,null,null,null,"West Alexander Boro",82376,125]
[null,null,null,null,null,null,"West Bethlehem Twp",82512,null,null,null,null,null,null,null,null,"West Bethlehem Twp",82512,125]
[null,null,null,null,null,null,"West Brownsville Boro",82616,null,null,null,null,null,null,null,null,"West Brownsville Boro",82616,125]
[null,null,null,null,null,null,"West Finley Twp",83000,null,null,null,null,null,null,null,null,"West Finley Twp",83000,125]
[null,null,null,null,null,null,"West Middletown Boro",83504,null,null,null,null,null,null,null,null,"West Middletown Boro",83504,125]
[null,null,null,null,null,null,"West Pike Run Twp",83840,null,null,null,null,null,null,null,null,"West Pike Run Twp",83840,125]
[null,null,null,null,null,null,"Berlin Twp",5784,null,null,null,null,null,null,null,null,"Berlin Twp",5784,127]
[null,null,null,null,null,null,"Bethany Boro",5976,null,null,null,null,null,null,null,null,"Bethany Boro",5976,127]
[null,null,null,null,null,null,"Buckingham Twp",9824,null,null,null,null,null,null,null,null,"Buckingham Twp",9824,127]
[null,null,null,null,null,null,"Canaan Twp",11056,null,null,null,null,null,null,null,null,"Canaan Twp",11056,127]
[null,null,null,null,null,null,"Cherry Ridge Twp",13096,null,null,null,null,null,null,null,null,"Cherry Ridge Twp",13096,127]
[null,null,null,null,null,null,"Clinton Twp",14352,null,null,null,null,null,null,null,null,"Clinton Twp",14352,127]
[null,null,null,null,null,null,"Damascus Twp",18104,null,null,null,null,null,null,null,null,"Damascus Twp",18104,127]
[null,null,null,null,null,null,"Dreher Twp",19864,null,null,null,null,null,null,null,null,"Dreher Twp",19864,127]
[null,null,null,null,null,null,"Dyberry Twp",20576,null,null,null,null,null,null,null,null,"Dyberry Twp",20576,127]
[null,null,null,null,null,null,"Hawley Boro",33200,null,null,null,null,null,null,null,null,"Hawley Boro",33200,127]
[null,null,null,null,null,null,"Honesdale Boro",35520,null,null,null,null,null,null,null,null,"Honesdale Boro",35520,127]
[null,null,null,null,null,null,"Lake Twp",40936,null,null,null,null,null,null,null,null,"Lake Twp",40936,127]
[null,null,null,null,null,null,"Lebanon Twp",42176,null,null,null,null,null,null,null,null,"Lebanon Twp",42176,127]
[null,null,null,null,null,null,"Lehigh Twp",42432,null,null,null,null,null,null,null,null,"Lehigh Twp",42432,127]
[null,null,null,null,null,null,"Manchester Twp",46856,null,null,null,null,null,null,null,null,"Manchester Twp",46856,127]
[null,null,null,null,null,null,"Mount Pleasant Twp",51872,null,null,null,null,null,null,null,null,"Mount Pleasant Twp",51872,127]
[null,null,null,null,null,null,"Oregon Twp",57000,null,null,null,null,null,null,null,null,"Oregon Twp",57000,127]
[null,null,null,null,null,null,"Palmyra Twp",57736,null,null,null,null,null,null,null,null,"Palmyra Twp",57736,127]
[null,null,null,null,null,null,"Paupack Twp",58480,null,null,null,null,null,null,null,null,"Paupack Twp",58480,127]
[null,null,null,null,null,null,"Preston Twp",62600,null,null,null,null,null,null,null,null,"Preston Twp",62600,127]
[null,null,null,null,null,null,"Prompton Boro",62744,null,null,null,null,null,null,null,null,"Prompton Boro",62744,127]
[null,null,null,null,null,null,"Salem Twp",67488,null,null,null,null,null,null,null,null,"Salem Twp",67488,127]
[null,null,null,null,null,null,"Scott Twp",68416,null,null,null,null,null,null,null,null,"Scott Twp",68416,127]
[null,null,null,null,null,null,"South Canaan Twp",72024,null,null,null,null,null,null,null,null,"South Canaan Twp",72024,127]
[null,null,null,null,null,null,"Starrucca Boro",73784,null,null,null,null,null,null,null,null,"Starrucca Boro",73784,127]
[null,null,null,null,null,null,"Sterling Twp",73968,null,null,null,null,null,null,null,null,"Sterling Twp",73968,127]
[null,null,null,null,null,null,"Texas Twp",76424,null,null,null,null,null,null,null,null,"Texas Twp",76424,127]
[null,null,null,null,null,null,"Waymart Boro",81712,null,null,null,null,null,null,null,null,"Waymart Boro",81712,127]
[null,null,null,null,null,null,"Adamsburg Boro",332,null,null,null,null,null,null,null,null,"Adamsburg Boro",332,129]
[null,null,null,null,null,null,"Allegheny Twp",892,null,null,null,null,null,null,null,null,"Allegheny Twp",892,129]
[null,null,null,null,null,null,"Arnold City",3088,null,null,null,null,null,null,null,null,"Arnold City",3088,129]
[null,null,null,null,null,null,"Arona Boro",3120,null,null,null,null,null,null,null,null,"Arona Boro",3120,129]
[null,null,null,null,null,null,"Avonmore Boro",3688,null,null,null,null,null,null,null,null,"Avonmore Boro",3688,129]
[null,null,null,null,null,null,"Bell Twp",5208,null,null,null,null,null,null,null,null,"Bell Twp",5208,129]
[null,null,null,null,null,null,"Bolivar Boro",7480,null,null,null,null,null,null,null,null,"Bolivar Boro",7480,129]
[null,null,null,null,null,null,"Cook Twp",15912,null,null,null,null,null,null,null,null,"Cook Twp",15912,129]
[null,null,null,null,null,null,"Delmont Boro",18768,null,null,null,null,null,null,null,null,"Delmont Boro",18768,129]
[null,null,null,null,null,null,"Derry Boro",18960,null,null,null,null,null,null,null,null,"Derry Boro",18960,129]
[null,null,null,null,null,null,"Derry Twp",18968,null,null,null,null,null,null,null,null,"Derry Twp",18968,129]
[null,null,null,null,null,null,"Donegal Boro",19472,null,null,null,null,null,null,null,null,"Donegal Boro",19472,129]
[null,null,null,null,null,null,"Donegal Twp",19480,null,null,null,null,null,null,null,null,"Donegal Twp",19480,129]
[null,null,null,null,null,null,"East Huntingdon Twp",21304,null,null,null,null,null,null,null,null,"East Huntingdon Twp",21304,129]
[null,null,null,null,null,null,"East Vandergrift Boro",21976,null,null,null,null,null,null,null,null,"East Vandergrift Boro",21976,129]
[null,null,null,null,null,null,"Export Boro",24432,null,null,null,null,null,null,null,null,"Export Boro",24432,129]
[null,null,null,null,null,null,"Fairfield Twp",24608,null,null,null,null,null,null,null,null,"Fairfield Twp",24608,129]
[null,null,null,null,null,null,"Greensburg City",31200,null,null,null,null,null,null,null,null,"Greensburg City",31200,129]
[null,null,null,null,null,null,"Hempfield Twp",33792,null,null,null,null,null,null,null,null,"Hempfield Twp",33792,129]
[null,null,null,null,null,null,"Hunker Boro",36288,null,null,null,null,null,null,null,null,"Hunker Boro",36288,129]
[null,null,null,null,null,null,"Hyde Park Boro",36592,null,null,null,null,null,null,null,null,"Hyde Park Boro",36592,129]
[null,null,null,null,null,null,"Irwin Boro",37208,null,null,null,null,null,null,null,null,"Irwin Boro",37208,129]
[null,null,null,null,null,null,"Jeannette City",37784,null,null,null,null,null,null,null,null,"Jeannette City",37784,129]
[null,null,null,null,null,null,"Latrobe Boro",41680,null,null,null,null,null,null,null,null,"Latrobe Boro",41680,129]
[null,null,null,null,null,null,"Laurel Mountain Boro",41834,null,null,null,null,null,null,null,null,"Laurel Mountain Boro",41834,129]
[null,null,null,null,null,null,"Ligonier Boro",43232,null,null,null,null,null,null,null,null,"Ligonier Boro",43232,129]
[null,null,null,null,null,null,"Ligonier Twp",43240,null,null,null,null,null,null,null,null,"Ligonier Twp",43240,129]
[null,null,null,null,null,null,"Lower Burrell City",44864,null,null,null,null,null,null,null,null,"Lower Burrell City",44864,129]
[null,null,null,null,null,null,"Loyalhanna Twp",45200,null,null,null,null,null,null,null,null,"Loyalhanna Twp",45200,129]
[null,null,null,null,null,null,"Madison Boro",46488,null,null,null,null,null,null,null,null,"Madison Boro",46488,129]
[null,null,null,null,null,null,"Manor Boro",47000,null,null,null,null,null,null,null,null,"Manor Boro",47000,129]
[null,null,null,null,null,null,"Monessen City",50344,null,null,null,null,null,null,null,null,"Monessen City",50344,129]
[null,null,null,null,null,null,"Mount Pleasant Boro",51880,null,null,null,null,null,null,null,null,"Mount Pleasant Boro",51880,129]
[null,null,null,null,null,null,"Mount Pleasant Twp",51888,null,null,null,null,null,null,null,null,"Mount Pleasant Twp",51888,129]
[null,null,null,null,null,null,"Murrysville Boro",52332,null,null,null,null,null,null,null,null,"Murrysville Boro",52332,129]
[null,null,null,null,null,null,"New Alexandria Boro",53160,null,null,null,null,null,null,null,null,"New Alexandria Boro",53160,129]
[null,null,null,null,null,null,"New Florence Boro",53544,null,null,null,null,null,null,null,null,"New Florence Boro",53544,129]
[null,null,null,null,null,null,"New Kensington City",53736,null,null,null,null,null,null,null,null,"New Kensington City",53736,129]
[null,null,null,null,null,null,"New Stanton Boro",54104,null,null,null,null,null,null,null,null,"New Stanton Boro",54104,129]
[null,null,null,null,null,null,"North Belle Vernon Boro",54776,null,null,null,null,null,null,null,null,"North Belle Vernon Boro",54776,129]
[null,null,null,null,null,null,"North Huntingdon Twp",55128,null,null,null,null,null,null,null,null,"North Huntingdon Twp",55128,129]
[null,null,null,null,null,null,"North Irwin Boro",55136,null,null,null,null,null,null,null,null,"North Irwin Boro",55136,129]
[null,null,null,null,null,null,"Oklahoma Boro",56496,null,null,null,null,null,null,null,null,"Oklahoma Boro",56496,129]
[null,null,null,null,null,null,"Penn Boro",58872,null,null,null,null,null,null,null,null,"Penn Boro",58872,129]
[null,null,null,null,null,null,"Penn Twp",58880,null,null,null,null,null,null,null,null,"Penn Twp",58880,129]
[null,null,null,null,null,null,"Rostraver Twp",66376,null,null,null,null,null,null,null,null,"Rostraver Twp",66376,129]
[null,null,null,null,null,null,"St Clair Twp",67240,null,null,null,null,null,null,null,null,"St Clair Twp",67240,129]
[null,null,null,null,null,null,"Salem Twp",67496,null,null,null,null,null,null,null,null,"Salem Twp",67496,129]
[null,null,null,null,null,null,"Scottdale Boro",68432,null,null,null,null,null,null,null,null,"Scottdale Boro",68432,129]
[null,null,null,null,null,null,"Seward Boro",69368,null,null,null,null,null,null,null,null,"Seward Boro",69368,129]
[null,null,null,null,null,null,"Sewickley Twp",69392,null,null,null,null,null,null,null,null,"Sewickley Twp",69392,129]
[null,null,null,null,null,null,"Smithton Boro",71424,null,null,null,null,null,null,null,null,"Smithton Boro",71424,129]
[null,null,null,null,null,null,"South Greensburg Boro",72192,null,null,null,null,null,null,null,null,"South Greensburg Boro",72192,129]
[null,null,null,null,null,null,"South Huntingdon Twp",72256,null,null,null,null,null,null,null,null,"South Huntingdon Twp",72256,129]
[null,null,null,null,null,null,"Southwest Greensburg Boro",72616,null,null,null,null,null,null,null,null,"Southwest Greensburg Boro",72616,129]
[null,null,null,null,null,null,"Sutersville Boro",75584,null,null,null,null,null,null,null,null,"Sutersville Boro",75584,129]
[null,null,null,null,null,null,"Trafford Boro",77272,null,null,null,null,null,null,null,null,"Trafford Boro",77272,129]
[null,null,null,null,null,null,"Unity Twp",78656,null,null,null,null,null,null,null,null,"Unity Twp",78656,129]
[null,null,null,null,null,null,"Upper Burrell Twp",78768,null,null,null,null,null,null,null,null,"Upper Burrell Twp",78768,129]
[null,null,null,null,null,null,"Vandergrift Boro",79776,null,null,null,null,null,null,null,null,"Vandergrift Boro",79776,129]
[null,null,null,null,null,null,"Washington Twp",81336,null,null,null,null,null,null,null,null,"Washington Twp",81336,129]
[null,null,null,null,null,null,"West Leechburg Boro",83328,null,null,null,null,null,null,null,null,"West Leechburg Boro",83328,129]
[null,null,null,null,null,null,"West Newton Boro",83680,null,null,null,null,null,null,null,null,"West Newton Boro",83680,129]
[null,null,null,null,null,null,"Youngstown Boro",87208,null,null,null,null,null,null,null,null,"Youngstown Boro",87208,129]
[null,null,null,null,null,null,"Youngwood Boro",87232,null,null,null,null,null,null,null,null,"Youngwood Boro",87232,129]
[null,null,null,null,null,null,"Braintrim Twp",8176,null,null,null,null,null,null,null,null,"Braintrim Twp",8176,131]
[null,null,null,null,null,null,"Clinton Twp",14360,null,null,null,null,null,null,null,null,"Clinton Twp",14360,131]
[null,null,null,null,null,null,"Eaton Twp",22112,null,null,null,null,null,null,null,null,"Eaton Twp",22112,131]
[null,null,null,null,null,null,"Exeter Twp",24408,null,null,null,null,null,null,null,null,"Exeter Twp",24408,131]
[null,null,null,null,null,null,"Factoryville Boro",24488,null,null,null,null,null,null,null,null,"Factoryville Boro",24488,131]
[null,null,null,null,null,null,"Falls Twp",25128,null,null,null,null,null,null,null,null,"Falls Twp",25128,131]
[null,null,null,null,null,null,"Forkston Twp",26752,null,null,null,null,null,null,null,null,"Forkston Twp",26752,131]
[null,null,null,null,null,null,"Laceyville Boro",40744,null,null,null,null,null,null,null,null,"Laceyville Boro",40744,131]
[null,null,null,null,null,null,"Lemon Twp",42616,null,null,null,null,null,null,null,null,"Lemon Twp",42616,131]
[null,null,null,null,null,null,"Mehoopany Twp",48528,null,null,null,null,null,null,null,null,"Mehoopany Twp",48528,131]
[null,null,null,null,null,null,"Meshoppen Boro",48856,null,null,null,null,null,null,null,null,"Meshoppen Boro",48856,131]
[null,null,null,null,null,null,"Meshoppen Twp",48864,null,null,null,null,null,null,null,null,"Meshoppen Twp",48864,131]
[null,null,null,null,null,null,"Monroe Twp",50496,null,null,null,null,null,null,null,null,"Monroe Twp",50496,131]
[null,null,null,null,null,null,"Nicholson Boro",54400,null,null,null,null,null,null,null,null,"Nicholson Boro",54400,131]
[null,null,null,null,null,null,"Nicholson Twp",54408,null,null,null,null,null,null,null,null,"Nicholson Twp",54408,131]
[null,null,null,null,null,null,"North Branch Twp",54824,null,null,null,null,null,null,null,null,"North Branch Twp",54824,131]
[null,null,null,null,null,null,"Northmoreland Twp",55232,null,null,null,null,null,null,null,null,"Northmoreland Twp",55232,131]
[null,null,null,null,null,null,"Noxen Twp",55736,null,null,null,null,null,null,null,null,"Noxen Twp",55736,131]
[null,null,null,null,null,null,"Overfield Twp",57408,null,null,null,null,null,null,null,null,"Overfield Twp",57408,131]
[null,null,null,null,null,null,"Tunkhannock Boro",77784,null,null,null,null,null,null,null,null,"Tunkhannock Boro",77784,131]
[null,null,null,null,null,null,"Tunkhannock Twp",77792,null,null,null,null,null,null,null,null,"Tunkhannock Twp",77792,131]
[null,null,null,null,null,null,"Washington Twp",81344,null,null,null,null,null,null,null,null,"Washington Twp",81344,131]
[null,null,null,null,null,null,"Windham Twp",85680,null,null,null,null,null,null,null,null,"Windham Twp",85680,131]
[null,null,null,null,null,null,"Carroll Twp",11432,null,null,null,null,null,null,null,null,"Carroll Twp",11432,133]
[null,null,null,null,null,null,"Chanceford Twp",12584,null,null,null,null,null,null,null,null,"Chanceford Twp",12584,133]
[null,null,null,null,null,null,"Codorus Twp",14832,null,null,null,null,null,null,null,null,"Codorus Twp",14832,133]
[null,null,null,null,null,null,"Conewago Twp",15656,null,null,null,null,null,null,null,null,"Conewago Twp",15656,133]
[null,null,null,null,null,null,"Cross Roads Boro",17416,null,null,null,null,null,null,null,null,"Cross Roads Boro",17416,133]
[null,null,null,null,null,null,"Dallastown Boro",18072,null,null,null,null,null,null,null,null,"Dallastown Boro",18072,133]
[null,null,null,null,null,null,"Delta Boro",18800,null,null,null,null,null,null,null,null,"Delta Boro",18800,133]
[null,null,null,null,null,null,"Dillsburg Boro",19208,null,null,null,null,null,null,null,null,"Dillsburg Boro",19208,133]
[null,null,null,null,null,null,"Dover Boro",19696,null,null,null,null,null,null,null,null,"Dover Boro",19696,133]
[null,null,null,null,null,null,"Dover Twp",19704,null,null,null,null,null,null,null,null,"Dover Twp",19704,133]
[null,null,null,null,null,null,"East Hopewell Twp",21296,null,null,null,null,null,null,null,null,"East Hopewell Twp",21296,133]
[null,null,null,null,null,null,"East Manchester Twp",21464,null,null,null,null,null,null,null,null,"East Manchester Twp",21464,133]
[null,null,null,null,null,null,"East Prospect Boro",21728,null,null,null,null,null,null,null,null,"East Prospect Boro",21728,133]
[null,null,null,null,null,null,"Fairview Twp",24936,null,null,null,null,null,null,null,null,"Fairview Twp",24936,133]
[null,null,null,null,null,null,"Fawn Twp",25408,null,null,null,null,null,null,null,null,"Fawn Twp",25408,133]
[null,null,null,null,null,null,"Fawn Grove Boro",25416,null,null,null,null,null,null,null,null,"Fawn Grove Boro",25416,133]
[null,null,null,null,null,null,"Felton Boro",25584,null,null,null,null,null,null,null,null,"Felton Boro",25584,133]
[null,null,null,null,null,null,"Franklin Twp",27480,null,null,null,null,null,null,null,null,"Franklin Twp",27480,133]
[null,null,null,null,null,null,"Franklintown Boro",27576,null,null,null,null,null,null,null,null,"Franklintown Boro",27576,133]
[null,null,null,null,null,null,"Glen Rock Boro",29760,null,null,null,null,null,null,null,null,"Glen Rock Boro",29760,133]
[null,null,null,null,null,null,"Goldsboro Boro",30016,null,null,null,null,null,null,null,null,"Goldsboro Boro",30016,133]
[null,null,null,null,null,null,"Hallam Boro",32056,null,null,null,null,null,null,null,null,"Hallam Boro",32056,133]
[null,null,null,null,null,null,"Hanover Boro",32448,null,null,null,null,null,null,null,null,"Hanover Boro",32448,133]
[null,null,null,null,null,null,"Heidelberg Twp",33624,null,null,null,null,null,null,null,null,"Heidelberg Twp",33624,133]
[null,null,null,null,null,null,"Hellam Twp",33728,null,null,null,null,null,null,null,null,"Hellam Twp",33728,133]
[null,null,null,null,null,null,"Hopewell Twp",35704,null,null,null,null,null,null,null,null,"Hopewell Twp",35704,133]
[null,null,null,null,null,null,"Jackson Twp",37488,null,null,null,null,null,null,null,null,"Jackson Twp",37488,133]
[null,null,null,null,null,null,"Jacobus Boro",37640,null,null,null,null,null,null,null,null,"Jacobus Boro",37640,133]
[null,null,null,null,null,null,"Jefferson Boro",37944,null,null,null,null,null,null,null,null,"Jefferson Boro",37944,133]
[null,null,null,null,null,null,"Lewisberry Boro",42968,null,null,null,null,null,null,null,null,"Lewisberry Boro",42968,133]
[null,null,null,null,null,null,"Loganville Boro",44416,null,null,null,null,null,null,null,null,"Loganville Boro",44416,133]
[null,null,null,null,null,null,"Lower Chanceford Twp",44872,null,null,null,null,null,null,null,null,"Lower Chanceford Twp",44872,133]
[null,null,null,null,null,null,"Lower Windsor Twp",45152,null,null,null,null,null,null,null,null,"Lower Windsor Twp",45152,133]
[null,null,null,null,null,null,"Manchester Boro",46864,null,null,null,null,null,null,null,null,"Manchester Boro",46864,133]
[null,null,null,null,null,null,"Manchester Twp",46872,null,null,null,null,null,null,null,null,"Manchester Twp",46872,133]
[null,null,null,null,null,null,"Manheim Twp",46904,null,null,null,null,null,null,null,null,"Manheim Twp",46904,133]
[null,null,null,null,null,null,"Monaghan Twp",50328,null,null,null,null,null,null,null,null,"Monaghan Twp",50328,133]
[null,null,null,null,null,null,"Mount Wolf Boro",52056,null,null,null,null,null,null,null,null,"Mount Wolf Boro",52056,133]
[null,null,null,null,null,null,"Newberry Twp",53224,null,null,null,null,null,null,null,null,"Newberry Twp",53224,133]
[null,null,null,null,null,null,"New Freedom Boro",53568,null,null,null,null,null,null,null,null,"New Freedom Boro",53568,133]
[null,null,null,null,null,null,"New Salem Boro",54056,null,null,null,null,null,null,null,null,"New Salem Boro",54056,133]
[null,null,null,null,null,null,"North Codorus Twp",54904,null,null,null,null,null,null,null,null,"North Codorus Twp",54904,133]
[null,null,null,null,null,null,"North Hopewell Twp",55112,null,null,null,null,null,null,null,null,"North Hopewell Twp",55112,133]
[null,null,null,null,null,null,"North York Boro",55608,null,null,null,null,null,null,null,null,"North York Boro",55608,133]
[null,null,null,null,null,null,"Paradise Twp",57872,null,null,null,null,null,null,null,null,"Paradise Twp",57872,133]
[null,null,null,null,null,null,"Peach Bottom Twp",58560,null,null,null,null,null,null,null,null,"Peach Bottom Twp",58560,133]
[null,null,null,null,null,null,"Penn Twp",58888,null,null,null,null,null,null,null,null,"Penn Twp",58888,133]
[null,null,null,null,null,null,"Railroad Boro",63288,null,null,null,null,null,null,null,null,"Railroad Boro",63288,133]
[null,null,null,null,null,null,"Red Lion Boro",63840,null,null,null,null,null,null,null,null,"Red Lion Boro",63840,133]
[null,null,null,null,null,null,"Seven Valleys Boro",69360,null,null,null,null,null,null,null,null,"Seven Valleys Boro",69360,133]
[null,null,null,null,null,null,"Shrewsbury Boro",70568,null,null,null,null,null,null,null,null,"Shrewsbury Boro",70568,133]
[null,null,null,null,null,null,"Shrewsbury Twp",70576,null,null,null,null,null,null,null,null,"Shrewsbury Twp",70576,133]
[null,null,null,null,null,null,"Springettsbury Twp",72992,null,null,null,null,null,null,null,null,"Springettsbury Twp",72992,133]
[null,null,null,null,null,null,"Springfield Twp",73096,null,null,null,null,null,null,null,null,"Springfield Twp",73096,133]
[null,null,null,null,null,null,"Spring Garden Twp",73168,null,null,null,null,null,null,null,null,"Spring Garden Twp",73168,133]
[null,null,null,null,null,null,"Spring Grove Boro",73192,null,null,null,null,null,null,null,null,"Spring Grove Boro",73192,133]
[null,null,null,null,null,null,"Stewartstown Boro",74104,null,null,null,null,null,null,null,null,"Stewartstown Boro",74104,133]
[null,null,null,null,null,null,"Warrington Twp",81056,null,null,null,null,null,null,null,null,"Warrington Twp",81056,133]
[null,null,null,null,null,null,"Washington Twp",81352,null,null,null,null,null,null,null,null,"Washington Twp",81352,133]
[null,null,null,null,null,null,"Wellsville Boro",82200,null,null,null,null,null,null,null,null,"Wellsville Boro",82200,133]
[null,null,null,null,null,null,"West Manchester Twp",83432,null,null,null,null,null,null,null,null,"West Manchester Twp",83432,133]
[null,null,null,null,null,null,"West Manheim Twp",83440,null,null,null,null,null,null,null,null,"West Manheim Twp",83440,133]
[null,null,null,null,null,null,"West York Boro",84288,null,null,null,null,null,null,null,null,"West York Boro",84288,133]
[null,null,null,null,null,null,"Windsor Boro",85728,null,null,null,null,null,null,null,null,"Windsor Boro",85728,133]
[null,null,null,null,null,null,"Windsor Twp",85736,null,null,null,null,null,null,null,null,"Windsor Twp",85736,133]
[null,null,null,null,null,null,"Winterstown Boro",85872,null,null,null,null,null,null,null,null,"Winterstown Boro",85872,133]
[null,null,null,null,null,null,"Wrightsville Boro",86640,null,null,null,null,null,null,null,null,"Wrightsville Boro",86640,133]
[null,null,null,null,null,null,"Yoe Boro",87040,null,null,null,null,null,null,null,null,"Yoe Boro",87040,133]
[null,null,null,null,null,null,"York City",87048,null,null,null,null,null,null,null,null,"York City",87048,133]
[null,null,null,null,null,null,"York Twp",87056,null,null,null,null,null,null,null,null,"York Twp",87056,133]
[null,null,null,null,null,null,"Yorkanna Boro",87064,null,null,null,null,null,null,null,null,"Yorkanna Boro",87064,133]
[null,null,null,null,null,null,"York Haven Boro",87080,null,null,null,null,null,null,null,null,"York Haven Boro",87080,133]

{"sheet":"Data","index":3,"n_rows":2,"n_cols":55,"rows_kept":2,"cut":false,"hidden":true,"merged":[]}
["TIF_NUM","DISTRICT","COUNTY","MUNIC","ECMS","FAC_TYP","OTHER_DES","LIM_RW","EX_UTIL","STRUCT","HISTORIC","ENVIRON","GRADE_SEP","OTHER1","OTHER2","OTHER3","OTHER4","RESURF_PROJ","SIG_PROJ","WIDE_PROJ","RECON_PROJ","NEW_PROJ","OTHER_PROJ","OTHER_PROJ_DES","PED_TRAF","TRIP_GEN","SAFETY","R9-3A","EX_XWALK","EX_SW","EX_PB","ADT","SUBMIT_BY","SUBMIT_CO","DATE_SUB","SR_NORTH","SR_SOUTH","SR_EAST","SR_WEST","LOC_ID","INV1","INV2","INV3","DROP1","DROP2","DROP3","SEL_ALT","ARC_APPROV","ADE_APPROV","TP_ITEM","SUG_REPAIR","APPROX_COST","ACT_COSTS","ACT_REPAIRED","DATE_REPAIRED"]
[{"$f":"IF('Tech Infeasible Form'!B72=\"\",\"\",'Tech Infeasible Form'!B72)","v":""},{"$f":"IF('Tech Infeasible Form'!G11=\"\",\"\",'Tech Infeasible Form'!G11)","v":""},{"$f":"IF('Tech Infeasible Form'!G12=\"\",\"\",'Tech Infeasible Form'!G12)","v":""},{"$f":"IF('Tech Infeasible Form'!G13=\"\",\"\",'Tech Infeasible Form'!G13)","v":""},{"$f":"IF('Tech Infeasible Form'!G14=\"\",\"\",'Tech Infeasible Form'!G14)","v":""},"Curb Ramp",{"$f":"IF('Tech Infeasible Form'!B8=\"\",\"\",'Tech Infeasible Form'!B8)","v":""},false,false,false,false,null,null,{"$f":"IF('Tech Infeasible Form'!B18=\"\",\"\",'Tech Infeasible Form'!B18)","v":""},{"$f":"IF('Tech Infeasible Form'!B19=\"\",\"\",'Tech Infeasible Form'!B19)","v":""},{"$f":"IF('Tech Infeasible Form'!B20=\"\",\"\",'Tech Infeasible Form'!B20)","v":""},{"$f":"IF('Tech Infeasible Form'!B21=\"\",\"\",'Tech Infeasible Form'!B21)","v":""},false,null,null,null,null,null,{"$f":"IF('Tech Infeasible Form'!B30=\"\",\"\",'Tech Infeasible Form'!B30)","v":""},"Yes","Yes","No","No","Yes","Yes","Yes",{"$f":"IF('Tech Infeasible Form'!B38=\"\",\"\",'Tech Infeasible Form'!B38)","v":""},{"$f":"IF('Tech Infeasible Form'!G17=\"\",\"\",'Tech Infeasible Form'!G17)","v":""},{"$f":"IF('Tech Infeasible Form'!G18=\"\",\"\",'Tech Infeasible Form'!G18)","v":""},{"$f":"IF('Tech Infeasible Form'!G22=\"\",\"\",TEXT('Tech Infeasible Form'!G22,\"mmmm d, yyyy\"))","v":""},{"$f":"IF('Tech Infeasible Form'!E25=\"\",\"\",'Tech Infeasible Form'!E25)","v":""},{"$f":"IF('Tech Infeasible Form'!E28=\"\",\"\",'Tech Infeasible Form'!E28)","v":""},{"$f":"IF('Tech Infeasible Form'!E31=\"\",\"\",'Tech Infeasible Form'!E31)","v":""},{"$f":"IF('Tech Infeasible Form'!E34=\"\",\"\",'Tech Infeasible Form'!E34)","v":""},{"$f":"IF('Tech Infeasible Form'!E37=\"\",\"\",TEXT('Tech Infeasible Form'!E37,\"00\"))","v":""},{"$f":"IF('Tech Infeasible Form'!A41=\"1.) \",\"\",'Tech Infeasible Form'!A41)","v":""},{"$f":"IF('Tech Infeasible Form'!A42=\"2.) \",\"\",'Tech Infeasible Form'!A42)","v":""},{"$f":"IF('Tech Infeasible Form'!A43=\"3.) \",\"\",'Tech Infeasible Form'!A43)","v":""},{"$f":"IF('Tech Infeasible Form'!D41=\"\",\"\",'Tech Infeasible Form'!D41)","v":""},{"$f":"IF('Tech Infeasible Form'!D42=\"\",\"\",'Tech Infeasible Form'!D42)","v":""},{"$f":"IF('Tech Infeasible Form'!D43=\"\",\"\",'Tech Infeasible Form'!D43)","v":""},{"$f":"IF('Tech Infeasible Form'!A45=\"\",\"\",'Tech Infeasible Form'!A45)","v":""},"Approved","Approved","No",{"$f":"IF('Tech Infeasible Form'!G5=\"\",\"\",'Tech Infeasible Form'!G5)","v":""},{"$f":"IF('Tech Infeasible Form'!G6=\"\",\"\",'Tech Infeasible Form'!G6)","v":""},{"$f":"IF('Tech Infeasible Form'!G7=\"\",\"\",'Tech Infeasible Form'!G7)","v":""},{"$f":"IF('Tech Infeasible Form'!G8=\"\",\"\",'Tech Infeasible Form'!G8)","v":""},{"$f":"IF('Tech Infeasible Form'!G9=\"\",\"\",TEXT('Tech Infeasible Form'!G9,\"mmmm d, yyyy\"))","v":""}]

{"sheet":"Instructions","index":4,"n_rows":129,"n_cols":11,"rows_kept":129,"cut":false,"hidden":false,"merged":[[0,0,0,1],[65,0,65,1],[67,0,127,8],[2,0,60,8]]}
["(6-12)",null,null,null,null,null,null,null,"TIF Instructions"]
[]
["ADA Technically Infeasible Form (TIF) Instructions\n \nThe Technically Infeasible Form will be used for existing sites where it is technically infeasible to construct pedestrian facilities\nto fully meet current PennDOT standards, as determined by using sound engineering judgment.  This must be submitted\nand approved before construction to document that access has been designed to the maximum extent feasible. \n \nProject scope, not cost, will determine when existing site constraints justify the use of the Technically Infeasible Form. In certain situations, existing site constraints may justify the use of a design that provides access to the maximum extent feasible if removing the existing site constraints would require additional work that is not included as part of the project scope.  See DM-2 Chapter 6.\n\nGeneral Setup\nBefore you Begin: The electronic file is delivered in Excel Template *.xlt format. When saving the file, use Excel 2003 format with a *.xls extension. Do not use a different file format.  \n\nSet the macro security to low or medium. (Tools – Options – Security Tab – Macro Security – Low or Medium)\n \nFacility Type\nIndicate which facility type is being investigated.  If “Other” is selected, please provide a description of the facility.\n \nJustification for Technically Infeasible\nIndicate which justifications for technically infeasible apply for the investigated facility (there can be more than one option checked).  If “Other” is selected, please provide a description of the justification.  Items checked must not be included in the scope of the project.  NOTE:  If using the Technically Infeasible form to document a grievance use “Other 1” and put “Grievance” \n \nProject Information\nIndicate project type.  If “Other” is selected, please provide a description of the project being performed. Also, be sure to complete the remaining questions by answering “Yes” or “No” to the appropriate questions then provide the Average Daily Traffic(ADT) for the roadway the pedestrian facility crosses on the line provided.\nPedestrian Traffic, Pedestrian Trip Generators, Safety Concerns, R9-3A Signs\nExisting Crosswalk, Existing Sidewalk, Existing Push Buttons.\nAverage Daily Traffic(ADT)\n \nTransition Plan Location\nThe Transition Plan is a list of pedestrian facilities to be repaired at a later date.  Complete this section if the identified facility is going to be placed on the Transition Plan.  Marking “YES” in the “Add Location to Transition Plan will automatically assign a Transition Plan number to the form.\n\nGeneral Information\nSelect the appropriate PennDOT Engineering District number, County, Township/Borough, and ECMS number.\n \nSubmitter Information\nComplete the submitter information section by indicating who is submitting the TIF, the submitter’s company, their street address and city, state, and zip of their location, the company’s telephone number and the date the TIF was submitted. \n\nLocation Identification\nUsing the intersection figure, click the appropriate button for the investigated facility (The location # will automatically be assigned when the appropriate button is selected).  Then, provide the State Route (SR) number, segment and offset for the appropriate segment of roadway the facility crosses.  NOTE:  Segment and offsets shall identify the center of the intersection.  \n \nInvestigated Design Alternatives/Why Alternative Was Not Selected\nProvide a description for the investigated design alternatives and why each alternative was not selected to justify why Technically Infeasible is being applied to the particular pedestrian facility.\n\nAlternative Selected and Description of What Requirement is Not Met\nProvide a description of the alternative that was selected and what requirement(s) per PennDOT standards that the project does not meet."]
[]
[]
[]
[]
[]
[]
[]
[]
[]
[]
[]
[]
[]
[null,null,null,null,null,null,null,null,null,null," "]
[]
[]
[]
[]
[]
[]
[]
[]
[]
[]
[]
[]
[]
[]
[]
[]
[]
[]
[]
[]
[]
[]
[]
[]
[]
[]
[]
[]
[]
[]
[]
[]
[]
[]
[]
[]
[]
[]
[]
[]
[]
[]
[]
[]
[]
[]
["Sheet 1 - Instructions"]
[]
["(1-09)",null,null,null,null,null,null,null,{"$f":"I1","v":"TIF Instructions"}]
[]
["Example Pictures\nClick on the first button labeled “Insert Ex Picture Left 3”x3” to navigate to the appropriate folder where example pictures for the pedestrian facility being investigated are located.  Select an appropriate, illustrative photograph to be included with the TIF.  Once selected, the picture will automatically be formatted to the appropriate size (3”x3”).  Repeat the steps above by clicking on the button labeled “Insert Ex Picture Right 3”x3” to insert the second example picture.  Macros must be enabled to for these buttons to operate properly.   \n\nTIF #\nThe TIF number will automatically be assigned as information is entered into the TIF form. \n\nSubmisson/ Approval Process\nSubmit a hard copy and electronic copy to the ADA Review Committee. The ADA Review Committee will review the form. The committee will either deny the form, providing guidance and recommendations to the submitter, or recommend it to the District ADE of Design for approval. The ADE of Design will approve or deny the TIF. Once approved, the hard copy with signatures shall be included in the contract documents. \n\nUpon approval, forward the electronic file and a copy of the signed form to the District ADA Coordinator.   \n\nQuarterly, Central Office will request all electronic TIFs be submitted for uploading into a database.  Electronic files will not have signatures.  Each District will be responsible for providing signed hard copies upon request.\n\n\n"]
[]
[]
[]
[]
[]
[]
[]
[]
[]
[]
[]
[]
[]
[]
[]
[]
[]
[]
[]
[]
[]
[]
[]
[]
[]
[]
[]
[]
[]
[]
[]
[]
[]
[]
[]
[]
[]
[]
[]
[]
[]
[]
[]
[]
[]
[]
[]
[]
[]
[]
[]
[]
[]
[]
[]
[]
[]
[]
[]
[]
["Sheet 2 - Instructions "]